Workbook

Sheet SOFR_3_Mo_Master
B4: ="CQG "&RTD("cqg.rtd",,"ContractData",K6,"LongDescription") -> CQG 3 Month SOFR, Jun 23 | M4: CQG 3 Month SOFR Forward Curves | AB4: =RTD("cqg.rtd", ,"SystemInfo", "Linetime") -> 45020.56177
K6: =RTD("cqg.rtd", ,"ContractData",'SR3'!Q2, "Symbol") -> SR3M23 | L6: =RTD("cqg.rtd", ,"ContractData",'SR3'!Q3, "Symbol") -> SR3U23 | M6: =RTD("cqg.rtd", ,"ContractData",'SR3'!Q4, "Symbol") -> SR3Z23 | N6: =RTD("cqg.rtd", ,"ContractData",'SR3'!Q5, "Symbol") -> SR3H24 | O6: =RTD("cqg.rtd", ,"ContractData",'SR3'!Q6, "Symbol") -> SR3M24 | P6: =RTD("cqg.rtd", ,"ContractData",'SR3'!Q7, "Symbol") -> SR3U24 | Q6: =RTD("cqg.rtd", ,"ContractData",'SR3'!Q8, "Symbol") -> SR3Z24 | R6: =RTD("cqg.rtd", ,"ContractData",'SR3'!Q9, "Symbol") -> SR3H25 | S6: =RTD("cqg.rtd", ,"ContractData",'SR3'!Q10, "Symbol") -> SR3M25 | T6: =RTD("cqg.rtd", ,"ContractData",'SR3'!Q11, "Symbol") -> SR3U25 | U6: =RTD("cqg.rtd", ,"ContractData",'SR3'!Q12, "Symbol") -> SR3Z25 | V6: =RTD("cqg.rtd", ,"ContractData",'SR3'!Q13, "Symbol") -> SR3H26 | W6: =RTD("cqg.rtd", ,"ContractData",'SR3'!Q14, "Symbol") -> SR3M26 | X6: =RTD("cqg.rtd", ,"ContractData",'SR3'!Q15, "Symbol") -> SR3U26 | Y6: =RTD("cqg.rtd", ,"ContractData",'SR3'!Q16, "Symbol") -> SR3Z26 | Z6: =RTD("cqg.rtd", ,"ContractData",'SR3'!Q17, "Symbol") -> SR3H27 | AA6: =RTD("cqg.rtd", ,"ContractData",'SR3'!Q18, "Symbol") -> SR3M27 | AB6: =RTD("cqg.rtd", ,"ContractData",'SR3'!Q18, "Symbol") -> SR3M27 | AC6: =RTD("cqg.rtd", ,"ContractData",'SR3'!Q20, "Symbol") -> SR3Z27 | AD6: =RTD("cqg.rtd", ,"ContractData",'SR3'!Q21, "Symbol") -> SR3H28 | AI6: =LEFT(RIGHT(K6,3),1) -> M | AJ6: =LEFT(RIGHT(L6,3),1) -> U | AK6: =LEFT(RIGHT(M6,3),1) -> Z | AL6: H | AM6: M | AN6: U | AO6: Z | AP6: H | AQ6: M | AR6: U | AS6: Z | AT6: H | AU6: M | AV6: U | AW6: =LEFT(RIGHT(Y6,3),1) -> Z | AX6: =LEFT(RIGHT(Z6,3),1) -> H | AY6: =LEFT(RIGHT(AA6,3),1) -> M | AZ6: =LEFT(RIGHT(AB6,3),1) -> M | BA6: =LEFT(RIGHT(AC6,3),1) -> Z | BB6: =LEFT(RIGHT(AD6,3),1) -> H
B7: Ask | C7: =RTD("cqg.rtd", ,"ContractData",K6, "MT_LastAskVolume") -> 1142 | E7: =RTD("cqg.rtd", ,"ContractData",K6, "Ask",,"T") -> 95.175 | G7: Last Trade | K7: =IF(AI6="F","JAN",IF(AI6="G","FEB",IF(AI6="H","MAR",IF(AI6="J","APR",IF(AI6="K","MAY",IF(AI6="M","JUN",IF(AI6="N","JUL",IF(AI6="Q","AUG",IF(AI6="U","SEP",IF(AI6="V","OCT",IF(AI6="X","NOV",IF(AI6="Z","DEC",))))))))))))&" "&RIGHT(K6,2) -> JUN 23 | L7: SEP 23 | M7: DEC 23 | N7: MAR 24 | O7: JUN 24 | P7: SEP 24 | Q7: DEC 24 | R7: MAR 25 | S7: JUN 25 | T7: SEP 25 | U7: DEC 25 | V7: MAR 26 | W7: JUN 26 | X7: SEP 26 | Y7: =IF(AW6="F","JAN",IF(AW6="G","FEB",IF(AW6="H","MAR",IF(AW6="J","APR",IF(AW6="K","MAY",IF(AW6="M","JUN",IF(AW6="N","JUL",IF(AW6="Q","AUG",IF(AW6="U","SEP",IF(AW6="V","OCT",IF(AW6="X","NOV",IF(AW6="Z","DEC",))))))))))))&" "&RIGHT(Y6,2) -> DEC 26 | Z7: MAR 27 | AA7: JUN 27 | AB7: JUN 27 | AC7: DEC 27 | AD7: MAR 28
K8: =IF(RTD("cqg.rtd",,"ContractData",K6,"Ask",,"T")="","",TEXT(RTD("cqg.rtd",,"ContractData",K6,"Ask",,"T"),"#.0000")&" "&"A") -> 95.1750 A | L8: =IF(RTD("cqg.rtd",,"ContractData",L6,"Ask",,"T")="","",TEXT(RTD("cqg.rtd",,"ContractData",L6,"Ask",,"T"),"#.000")&" "&"A") -> 95.520 A | M8: =IF(RTD("cqg.rtd",,"ContractData",M6,"Ask",,"T")="","",TEXT(RTD("cqg.rtd",,"ContractData",M6,"Ask",,"T"),"#.000")&" "&"A") -> 95.890 A | N8: =IF(RTD("cqg.rtd",,"ContractData",N6,"Ask",,"T")="","",TEXT(RTD("cqg.rtd",,"ContractData",N6,"Ask",,"T"),"#.000")&" "&"A") -> 96.345 A | O8: =IF(RTD("cqg.rtd",,"ContractData",O6,"Ask",,"T")="","",TEXT(RTD("cqg.rtd",,"ContractData",O6,"Ask",,"T"),"#.000")&" "&"A") -> 96.725 A | P8: =IF(RTD("cqg.rtd",,"ContractData",P6,"Ask",,"T")="","",TEXT(RTD("cqg.rtd",,"ContractData",P6,"Ask",,"T"),"#.000")&" "&"A") -> 97.005 A | Q8: =IF(RTD("cqg.rtd",,"ContractData",Q6,"Ask",,"T")="","",TEXT(RTD("cqg.rtd",,"ContractData",Q6,"Ask",,"T"),"#.000")&" "&"A") -> 97.150 A | R8: =IF(RTD("cqg.rtd",,"ContractData",R6,"Ask",,"T")="","",TEXT(RTD("cqg.rtd",,"ContractData",R6,"Ask",,"T"),"#.000")&" "&"A") -> 97.220 A | S8: =IF(RTD("cqg.rtd",,"ContractData",S6,"Ask",,"T")="","",TEXT(RTD("cqg.rtd",,"ContractData",S6,"Ask",,"T"),"#.000")&" "&"A") -> 97.245 A | T8: =IF(RTD("cqg.rtd",,"ContractData",T6,"Ask",,"T")="","",TEXT(RTD("cqg.rtd",,"ContractData",T6,"Ask",,"T"),"#.000")&" "&"A") -> 97.255 A | U8: =IF(RTD("cqg.rtd",,"ContractData",U6,"Ask",,"T")="","",TEXT(RTD("cqg.rtd",,"ContractData",U6,"Ask",,"T"),"#.000")&" "&"A") -> 97.265 A | V8: =IF(RTD("cqg.rtd",,"ContractData",V6,"Ask",,"T")="","",TEXT(RTD("cqg.rtd",,"ContractData",V6,"Ask",,"T"),"#.000")&" "&"A") -> 97.255 A | W8: =IF(RTD("cqg.rtd",,"ContractData",W6,"Ask",,"T")="","",TEXT(RTD("cqg.rtd",,"ContractData",W6,"Ask",,"T"),"#.000")&" "&"A") -> 97.240 A | X8: =IF(RTD("cqg.rtd",,"ContractData",X6,"Ask",,"T")="","",TEXT(RTD("cqg.rtd",,"ContractData",X6,"Ask",,"T"),"#.000")&" "&"A") -> 97.215 A | Y8: =IF(RTD("cqg.rtd",,"ContractData",Y6,"Ask",,"T")="","",TEXT(RTD("cqg.rtd",,"ContractData",Y6,"Ask",,"T"),"#.000")&" "&"A") -> 97.200 A | Z8: =IF(RTD("cqg.rtd",,"ContractData",Z6,"Ask",,"T")="","",TEXT(RTD("cqg.rtd",,"ContractData",Z6,"Ask",,"T"),"#.000")&" "&"A") -> 97.175 A | AA8: =IF(RTD("cqg.rtd",,"ContractData",AA6,"Ask",,"T")="","",TEXT(RTD("cqg.rtd",,"ContractData",AA6,"Ask",,"T"),"#.000")&" "&"A") -> 97.150 A | AB8: =IF(RTD("cqg.rtd",,"ContractData",AB6,"Ask",,"T")="","",TEXT(RTD("cqg.rtd",,"ContractData",AB6,"Ask",,"T"),"#.000")&" "&"A") -> 97.150 A | AC8: =IF(RTD("cqg.rtd",,"ContractData",AC6,"Ask",,"T")="","",TEXT(RTD("cqg.rtd",,"ContractData",AC6,"Ask",,"T"),"#.000")&" "&"A") -> 97.080 A | AD8: =IF(RTD("cqg.rtd",,"ContractData",AD6,"Ask",,"T")="","",TEXT(RTD("cqg.rtd",,"ContractData",AD6,"Ask",,"T"),"#.000")&" "&"A") -> 97.050 A
B9: Bid | C9: =RTD("cqg.rtd", ,"ContractData",K6, "MT_LastBidVolume") -> 1334 | E9: =RTD("cqg.rtd", ,"ContractData",K6, "Bid",,"T") -> 95.17 | G9: =RTD("cqg.rtd", ,"ContractData",K6,"LastTradeorSettle",,"T") -> 95.175 | I9: =IF(G13>0,"+"&TEXT(RTD("cqg.rtd",,"ContractData",K6,"NetLastTradeToday",,"T"),"#.0000"),TEXT(G13,"#.0000")) -> +.1050 | K9: =IF(RTD("cqg.rtd",,"ContractData",K6,"Bid",,"T")="","",TEXT(RTD("cqg.rtd",,"ContractData",K6,"Bid",,"T"),"#.0000")&" "&"B") -> 95.1700 B | L9: =IF(RTD("cqg.rtd",,"ContractData",L6,"Bid",,"T")="","",TEXT(RTD("cqg.rtd",,"ContractData",L6,"Bid",,"T"),"#.000")&" "&"B") -> 95.515 B | M9: =IF(RTD("cqg.rtd",,"ContractData",M6,"Bid",,"T")="","",TEXT(RTD("cqg.rtd",,"ContractData",M6,"Bid",,"T"),"#.000")&" "&"B") -> 95.885 B | N9: =IF(RTD("cqg.rtd",,"ContractData",N6,"Bid",,"T")="","",TEXT(RTD("cqg.rtd",,"ContractData",N6,"Bid",,"T"),"#.000")&" "&"B") -> 96.340 B | O9: =IF(RTD("cqg.rtd",,"ContractData",O6,"Bid",,"T")="","",TEXT(RTD("cqg.rtd",,"ContractData",O6,"Bid",,"T"),"#.000")&" "&"B") -> 96.720 B | P9: =IF(RTD("cqg.rtd",,"ContractData",P6,"Bid",,"T")="","",TEXT(RTD("cqg.rtd",,"ContractData",P6,"Bid",,"T"),"#.000")&" "&"B") -> 96.995 B | Q9: =IF(RTD("cqg.rtd",,"ContractData",Q6,"Bid",,"T")="","",TEXT(RTD("cqg.rtd",,"ContractData",Q6,"Bid",,"T"),"#.000")&" "&"B") -> 97.145 B | R9: =IF(RTD("cqg.rtd",,"ContractData",R6,"Bid",,"T")="","",TEXT(RTD("cqg.rtd",,"ContractData",R6,"Bid",,"T"),"#.000")&" "&"B") -> 97.215 B | S9: =IF(RTD("cqg.rtd",,"ContractData",S6,"Bid",,"T")="","",TEXT(RTD("cqg.rtd",,"ContractData",S6,"Bid",,"T"),"#.000")&" "&"B") -> 97.240 B | T9: =IF(RTD("cqg.rtd",,"ContractData",T6,"Bid",,"T")="","",TEXT(RTD("cqg.rtd",,"ContractData",T6,"Bid",,"T"),"#.000")&" "&"B") -> 97.250 B | U9: =IF(RTD("cqg.rtd",,"ContractData",U6,"Bid",,"T")="","",TEXT(RTD("cqg.rtd",,"ContractData",U6,"Bid",,"T"),"#.000")&" "&"B") -> 97.260 B | V9: =IF(RTD("cqg.rtd",,"ContractData",V6,"Bid",,"T")="","",TEXT(RTD("cqg.rtd",,"ContractData",V6,"Bid",,"T"),"#.000")&" "&"B") -> 97.245 B | W9: =IF(RTD("cqg.rtd",,"ContractData",W6,"Bid",,"T")="","",TEXT(RTD("cqg.rtd",,"ContractData",W6,"Bid",,"T"),"#.000")&" "&"B") -> 97.235 B | X9: =IF(RTD("cqg.rtd",,"ContractData",X6,"Bid",,"T")="","",TEXT(RTD("cqg.rtd",,"ContractData",X6,"Bid",,"T"),"#.000")&" "&"B") -> 97.210 B | Y9: =IF(RTD("cqg.rtd",,"ContractData",Y6,"Bid",,"T")="","",TEXT(RTD("cqg.rtd",,"ContractData",Y6,"Bid",,"T"),"#.000")&" "&"B") -> 97.195 B | Z9: =IF(RTD("cqg.rtd",,"ContractData",Z6,"Bid",,"T")="","",TEXT(RTD("cqg.rtd",,"ContractData",Z6,"Bid",,"T"),"#.000")&" "&"B") -> 97.170 B | AA9: =IF(RTD("cqg.rtd",,"ContractData",AA6,"Bid",,"T")="","",TEXT(RTD("cqg.rtd",,"ContractData",AA6,"Bid",,"T"),"#.000")&" "&"B") -> 97.140 B | AB9: =IF(RTD("cqg.rtd",,"ContractData",AB6,"Bid",,"T")="","",TEXT(RTD("cqg.rtd",,"ContractData",AB6,"Bid",,"T"),"#.000")&" "&"B") -> 97.140 B | AC9: =IF(RTD("cqg.rtd",,"ContractData",AC6,"Bid",,"T")="","",TEXT(RTD("cqg.rtd",,"ContractData",AC6,"Bid",,"T"),"#.000")&" "&"B") -> 97.070 B | AD9: =IF(RTD("cqg.rtd",,"ContractData",AD6,"Bid",,"T")="","",TEXT(RTD("cqg.rtd",,"ContractData",AD6,"Bid",,"T"),"#.000")&" "&"B") -> 97.040 B
K10: =TEXT(RTD("cqg.rtd", ,"ContractData",K6,"LastTradeorSettle",,"T"),"#.0000")&" "&"L" -> 95.1750 L | L10: =TEXT(RTD("cqg.rtd", ,"ContractData",L6,"LastTradeorSettle",,"T"),"#.000")&" "&"L" -> 95.515 L | M10: =TEXT(RTD("cqg.rtd", ,"ContractData",M6,"LastTradeorSettle",,"T"),"#.000")&" "&"L" -> 95.890 L | N10: =TEXT(RTD("cqg.rtd", ,"ContractData",N6,"LastTradeorSettle",,"T"),"#.000")&" "&"L" -> 96.340 L | O10: =TEXT(RTD("cqg.rtd", ,"ContractData",O6,"LastTradeorSettle",,"T"),"#.000")&" "&"L" -> 96.725 L | P10: =TEXT(RTD("cqg.rtd", ,"ContractData",P6,"LastTradeorSettle",,"T"),"#.000")&" "&"L" -> 97.000 L | Q10: =TEXT(RTD("cqg.rtd", ,"ContractData",Q6,"LastTradeorSettle",,"T"),"#.000")&" "&"L" -> 97.145 L | R10: =TEXT(RTD("cqg.rtd", ,"ContractData",R6,"LastTradeorSettle",,"T"),"#.000")&" "&"L" -> 97.220 L | S10: =TEXT(RTD("cqg.rtd", ,"ContractData",S6,"LastTradeorSettle",,"T"),"#.000")&" "&"L" -> 97.245 L | T10: =TEXT(RTD("cqg.rtd", ,"ContractData",T6,"LastTradeorSettle",,"T"),"#.000")&" "&"L" -> 97.255 L | U10: =TEXT(RTD("cqg.rtd", ,"ContractData",U6,"LastTradeorSettle",,"T"),"#.000")&" "&"L" -> 97.265 L | V10: =TEXT(RTD("cqg.rtd", ,"ContractData",V6,"LastTradeorSettle",,"T"),"#.000")&" "&"L" -> 97.250 L | W10: =TEXT(RTD("cqg.rtd", ,"ContractData",W6,"LastTradeorSettle",,"T"),"#.000")&" "&"L" -> 97.240 L | X10: =TEXT(RTD("cqg.rtd", ,"ContractData",X6,"LastTradeorSettle",,"T"),"#.000")&" "&"L" -> 97.215 L | Y10: =TEXT(RTD("cqg.rtd", ,"ContractData",Y6,"LastTradeorSettle",,"T"),"#.000")&" "&"L" -> 97.200 L | Z10: =TEXT(RTD("cqg.rtd", ,"ContractData",Z6,"LastTradeorSettle",,"T"),"#.000")&" "&"L" -> 97.175 L | AA10: =TEXT(RTD("cqg.rtd", ,"ContractData",AA6,"LastTradeorSettle",,"T"),"#.000")&" "&"L" -> 97.145 L | AB10: =TEXT(RTD("cqg.rtd", ,"ContractData",AB6,"LastTradeorSettle",,"T"),"#.000")&" "&"L" -> 97.145 L | AC10: =TEXT(RTD("cqg.rtd", ,"ContractData",AC6,"LastTradeorSettle",,"T"),"#.000")&" "&"L" -> 97.075 L | AD10: =TEXT(RTD("cqg.rtd", ,"ContractData",AD6,"LastTradeorSettle",,"T"),"#.000")&" "&"L" -> 97.045 L
B11: Enter First Contract Symbol: | E11: SR3M23 | G11: ='SR3'!C18 -> 98 | H11: ='SR3'!D18 -> 94
B12: Symbols | C12: Open | D12: High | E12: Low | F12: Last | G12: Net | H12: Net | I12: Volume
A13: =RTD("cqg.rtd",,"ContractData",K6, "Symbol") -> SR3M23 | B13: =RIGHT(RTD("cqg.rtd",,"ContractData",A13, "LongDescription"),7) -> Jun 23 | C13: =RTD("cqg.rtd", ,"ContractData",A13, "Open",,"T") -> 95.085 | D13: =RTD("cqg.rtd", ,"ContractData",A13, "High",,"T") -> 95.235 | E13: =RTD("cqg.rtd", ,"ContractData",A13, "Low",,"T") -> 95.025 | F13: =RTD("cqg.rtd", ,"ContractData",A13, "LastTradeorSettle",,"T") -> 95.175 | G13: =RTD("cqg.rtd",,"ContractData",A13,"NetLastTradeToday",,"T") -> 0.105 | H13: =RTD("cqg.rtd",,"ContractData",A13,"NetLastTradeToday",,"T") -> 0.105 | I13: =RTD("cqg.rtd", ,"ContractData",A13, "T_CVol") -> 364640
A14: =RTD("cqg.rtd",,"ContractData",L6, "Symbol") -> SR3U23 | B14: =RIGHT(RTD("cqg.rtd",,"ContractData",A14, "LongDescription"),7) -> Sep 23 | C14: =RTD("cqg.rtd", ,"ContractData",A14, "Open",,"T") -> 95.405 | D14: =RTD("cqg.rtd", ,"ContractData",A14, "High",,"T") -> 95.6 | E14: =RTD("cqg.rtd", ,"ContractData",A14, "Low",,"T") -> 95.315 | F14: =RTD("cqg.rtd", ,"ContractData",A14, "LastTradeorSettle",,"T") -> 95.515 | G14: =RTD("cqg.rtd",,"ContractData",A14,"NetLastTradeToday",,"T") -> 0.135 | H14: =RTD("cqg.rtd",,"ContractData",A14,"NetLastTradeToday",,"T") -> 0.135 | I14: =RTD("cqg.rtd", ,"ContractData",A14, "T_CVol") -> 325168
A15: =RTD("cqg.rtd",,"ContractData",M6, "Symbol") -> SR3Z23 | B15: =RIGHT(RTD("cqg.rtd",,"ContractData",A15, "LongDescription"),7) -> Dec 23 | C15: =RTD("cqg.rtd", ,"ContractData",A15, "Open",,"T") -> 95.77 | D15: =RTD("cqg.rtd", ,"ContractData",A15, "High",,"T") -> 95.965 | E15: =RTD("cqg.rtd", ,"ContractData",A15, "Low",,"T") -> 95.66 | F15: =RTD("cqg.rtd", ,"ContractData",A15, "LastTradeorSettle",,"T") -> 95.89 | G15: =RTD("cqg.rtd",,"ContractData",A15,"NetLastTradeToday",,"T") -> 0.15 | H15: =RTD("cqg.rtd",,"ContractData",A15,"NetLastTradeToday",,"T") -> 0.15 | I15: =RTD("cqg.rtd", ,"ContractData",A15, "T_CVol") -> 324645
A16: =RTD("cqg.rtd",,"ContractData",N6, "Symbol") -> SR3H24 | B16: =RIGHT(RTD("cqg.rtd",,"ContractData",A16, "LongDescription"),7) -> Mar 24 | C16: =RTD("cqg.rtd", ,"ContractData",A16, "Open",,"T") -> 96.215 | D16: =RTD("cqg.rtd", ,"ContractData",A16, "High",,"T") -> 96.4 | E16: =RTD("cqg.rtd", ,"ContractData",A16, "Low",,"T") -> 96.1 | F16: =RTD("cqg.rtd", ,"ContractData",A16, "LastTradeorSettle",,"T") -> 96.34 | G16: =RTD("cqg.rtd",,"ContractData",A16,"NetLastTradeToday",,"T") -> 0.16 | H16: =RTD("cqg.rtd",,"ContractData",A16,"NetLastTradeToday",,"T") -> 0.16 | I16: =RTD("cqg.rtd", ,"ContractData",A16, "T_CVol") -> 204189
A17: =RTD("cqg.rtd",,"ContractData",O6, "Symbol") -> SR3M24 | B17: =RIGHT(RTD("cqg.rtd",,"ContractData",A17, "LongDescription"),7) -> Jun 24 | C17: =RTD("cqg.rtd", ,"ContractData",A17, "Open",,"T") -> 96.6 | D17: =RTD("cqg.rtd", ,"ContractData",A17, "High",,"T") -> 96.76 | E17: =RTD("cqg.rtd", ,"ContractData",A17, "Low",,"T") -> 96.49 | F17: =RTD("cqg.rtd", ,"ContractData",A17, "LastTradeorSettle",,"T") -> 96.725 | G17: =RTD("cqg.rtd",,"ContractData",A17,"NetLastTradeToday",,"T") -> 0.16 | H17: =RTD("cqg.rtd",,"ContractData",A17,"NetLastTradeToday",,"T") -> 0.16 | I17: =RTD("cqg.rtd", ,"ContractData",A17, "T_CVol") -> 195686
A18: =RTD("cqg.rtd",,"ContractData",P6, "Symbol") -> SR3U24 | B18: =RIGHT(RTD("cqg.rtd",,"ContractData",A18, "LongDescription"),7) -> Sep 24 | C18: =RTD("cqg.rtd", ,"ContractData",A18, "Open",,"T") -> 96.89 | D18: =RTD("cqg.rtd", ,"ContractData",A18, "High",,"T") -> 97.03 | E18: =RTD("cqg.rtd", ,"ContractData",A18, "Low",,"T") -> 96.795 | F18: =RTD("cqg.rtd", ,"ContractData",A18, "LastTradeorSettle",,"T") -> 97 | G18: =RTD("cqg.rtd",,"ContractData",A18,"NetLastTradeToday",,"T") -> 0.14 | H18: =RTD("cqg.rtd",,"ContractData",A18,"NetLastTradeToday",,"T") -> 0.14 | I18: =RTD("cqg.rtd", ,"ContractData",A18, "T_CVol") -> 133002
A19: =RTD("cqg.rtd",,"ContractData",Q6, "Symbol") -> SR3Z24 | B19: =RIGHT(RTD("cqg.rtd",,"ContractData",A19, "LongDescription"),7) -> Dec 24 | C19: =RTD("cqg.rtd", ,"ContractData",A19, "Open",,"T") -> 97.05 | D19: =RTD("cqg.rtd", ,"ContractData",A19, "High",,"T") -> 97.175 | E19: =RTD("cqg.rtd", ,"ContractData",A19, "Low",,"T") -> 96.96 | F19: =RTD("cqg.rtd", ,"ContractData",A19, "LastTradeorSettle",,"T") -> 97.145 | G19: =RTD("cqg.rtd",,"ContractData",A19,"NetLastTradeToday",,"T") -> 0.125 | H19: =RTD("cqg.rtd",,"ContractData",A19,"NetLastTradeToday",,"T") -> 0.125 | I19: =RTD("cqg.rtd", ,"ContractData",A19, "T_CVol") -> 130969
A20: =RTD("cqg.rtd",,"ContractData",R6, "Symbol") -> SR3H25 | B20: =RIGHT(RTD("cqg.rtd",,"ContractData",A20, "LongDescription"),7) -> Mar 25 | C20: =RTD("cqg.rtd", ,"ContractData",A20, "Open",,"T") -> 97.12 | D20: =RTD("cqg.rtd", ,"ContractData",A20, "High",,"T") -> 97.245 | E20: =RTD("cqg.rtd", ,"ContractData",A20, "Low",,"T") -> 97.045 | F20: =RTD("cqg.rtd", ,"ContractData",A20, "LastTradeorSettle",,"T") -> 97.22 | G20: =RTD("cqg.rtd",,"ContractData",A20,"NetLastTradeToday",,"T") -> 0.12 | H20: =RTD("cqg.rtd",,"ContractData",A20,"NetLastTradeToday",,"T") -> 0.12 | I20: =RTD("cqg.rtd", ,"ContractData",A20, "T_CVol") -> 88835
A21: =RTD("cqg.rtd",,"ContractData",S6, "Symbol") -> SR3M25 | B21: =RIGHT(RTD("cqg.rtd",,"ContractData",A21, "LongDescription"),7) -> Jun 25 | C21: =RTD("cqg.rtd", ,"ContractData",A21, "Open",,"T") -> 97.15 | D21: =RTD("cqg.rtd", ,"ContractData",A21, "High",,"T") -> 97.27 | E21: =RTD("cqg.rtd", ,"ContractData",A21, "Low",,"T") -> 97.075 | F21: =RTD("cqg.rtd", ,"ContractData",A21, "LastTradeorSettle",,"T") -> 97.245 | G21: =RTD("cqg.rtd",,"ContractData",A21,"NetLastTradeToday",,"T") -> 0.12 | H21: =RTD("cqg.rtd",,"ContractData",A21,"NetLastTradeToday",,"T") -> 0.12 | I21: =RTD("cqg.rtd", ,"ContractData",A21, "T_CVol") -> 70231
A22: =RTD("cqg.rtd",,"ContractData",T6, "Symbol") -> SR3U25 | B22: =RIGHT(RTD("cqg.rtd",,"ContractData",A22, "LongDescription"),7) -> Sep 25 | C22: =RTD("cqg.rtd", ,"ContractData",A22, "Open",,"T") -> 97.17 | D22: =RTD("cqg.rtd", ,"ContractData",A22, "High",,"T") -> 97.28 | E22: =RTD("cqg.rtd", ,"ContractData",A22, "Low",,"T") -> 97.095 | F22: =RTD("cqg.rtd", ,"ContractData",A22, "LastTradeorSettle",,"T") -> 97.255 | G22: =RTD("cqg.rtd",,"ContractData",A22,"NetLastTradeToday",,"T") -> 0.115 | H22: =RTD("cqg.rtd",,"ContractData",A22,"NetLastTradeToday",,"T") -> 0.115 | I22: =RTD("cqg.rtd", ,"ContractData",A22, "T_CVol") -> 56511
A23: =RTD("cqg.rtd",,"ContractData",U6, "Symbol") -> SR3Z25 | B23: =RIGHT(RTD("cqg.rtd",,"ContractData",A23, "LongDescription"),7) -> Dec 25 | C23: =RTD("cqg.rtd", ,"ContractData",A23, "Open",,"T") -> 97.185 | D23: =RTD("cqg.rtd", ,"ContractData",A23, "High",,"T") -> 97.285 | E23: =RTD("cqg.rtd", ,"ContractData",A23, "Low",,"T") -> 97.11 | F23: =RTD("cqg.rtd", ,"ContractData",A23, "LastTradeorSettle",,"T") -> 97.265 | G23: =RTD("cqg.rtd",,"ContractData",A23,"NetLastTradeToday",,"T") -> 0.11 | H23: =RTD("cqg.rtd",,"ContractData",A23,"NetLastTradeToday",,"T") -> 0.11 | I23: =RTD("cqg.rtd", ,"ContractData",A23, "T_CVol") -> 69476
A24: =RTD("cqg.rtd",,"ContractData",V6, "Symbol") -> SR3H26 | B24: =RIGHT(RTD("cqg.rtd",,"ContractData",A24, "LongDescription"),7) -> Mar 26 | C24: =RTD("cqg.rtd", ,"ContractData",A24, "Open",,"T") -> 97.175 | D24: =RTD("cqg.rtd", ,"ContractData",A24, "High",,"T") -> 97.275 | E24: =RTD("cqg.rtd", ,"ContractData",A24, "Low",,"T") -> 97.1 | F24: =RTD("cqg.rtd", ,"ContractData",A24, "LastTradeorSettle",,"T") -> 97.25 | G24: =RTD("cqg.rtd",,"ContractData",A24,"NetLastTradeToday",,"T") -> 0.105 | H24: =RTD("cqg.rtd",,"ContractData",A24,"NetLastTradeToday",,"T") -> 0.105 | I24: =RTD("cqg.rtd", ,"ContractData",A24, "T_CVol") -> 57747
B25: Calendar Spread: | D25: 3-Mon | E25: Enter First Leg Spread Symbol: | I25: M23
A26: ='SR3'!Y24 -> 4.5 | B26: =D25&"th"&" Calendar Spreads" -> 3-Month Calendar Spreads | K26: =RIGHT(RTD("cqg.rtd",,"ContractData",'SR3'!U35, "LongDescription"),15) -> Jun 23, Sep 23 | L26: =RIGHT(RTD("cqg.rtd",,"ContractData",'SR3'!U36, "LongDescription"),15) -> Sep 23, Dec 23 | M26: =RIGHT(RTD("cqg.rtd",,"ContractData",'SR3'!U37, "LongDescription"),15) -> Dec 23, Mar 24 | N26: =RIGHT(RTD("cqg.rtd",,"ContractData",'SR3'!U38, "LongDescription"),15) -> Mar 24, Jun 24 | O26: =RIGHT(RTD("cqg.rtd",,"ContractData",'SR3'!U39, "LongDescription"),15) -> Jun 24, Sep 24 | P26: =RIGHT(RTD("cqg.rtd",,"ContractData",'SR3'!U40, "LongDescription"),15) -> Sep 24, Dec 24 | Q26: =RIGHT(RTD("cqg.rtd",,"ContractData",'SR3'!U41, "LongDescription"),15) -> Dec 24, Mar 25 | R26: =RIGHT(RTD("cqg.rtd",,"ContractData",'SR3'!U42, "LongDescription"),15) -> Mar 25, Jun 25 | S26: =RIGHT(RTD("cqg.rtd",,"ContractData",'SR3'!U43, "LongDescription"),15) -> Jun 25, Sep 25 | T26: =RIGHT(RTD("cqg.rtd",,"ContractData",'SR3'!U44, "LongDescription"),15) -> Sep 25, Dec 25 | U26: =RIGHT(RTD("cqg.rtd",,"ContractData",'SR3'!U45, "LongDescription"),15) -> Dec 25, Mar 26 | V26: =RIGHT(RTD("cqg.rtd",,"ContractData",'SR3'!U46, "LongDescription"),15) -> Mar 26, Jun 26 | W26: =RIGHT(RTD("cqg.rtd",,"ContractData",'SR3'!U47, "LongDescription"),15) -> Jun 26, Sep 26 | X26: =RIGHT(RTD("cqg.rtd",,"ContractData",'SR3'!U48, "LongDescription"),15) -> Sep 26, Dec 26 | Y26: =RIGHT(RTD("cqg.rtd",,"ContractData",'SR3'!U49, "LongDescription"),15) -> Dec 26, Mar 27 | Z26: =RIGHT(RTD("cqg.rtd",,"ContractData",'SR3'!U50, "LongDescription"),15) -> Mar 27, Jun 27 | AA26: =RIGHT(RTD("cqg.rtd",,"ContractData",'SR3'!U51, "LongDescription"),15) -> Jun 27, Sep 27 | AB26: =IF(LEFT(RTD("cqg.rtd", ,"ContractData", 'SR3'!U52,"LongDescription",,"T"),3)="768","",RIGHT(RTD("cqg.rtd",,"ContractData",'SR3'!U52, "LongDescription"),15)) -> Sep 27, Dec 27 | AC26: =IF(LEFT(RTD("cqg.rtd", ,"ContractData", 'SR3'!U53,"LongDescription",,"T"),3)="768","",RIGHT(RTD("cqg.rtd",,"ContractData",'SR3'!U53, "LongDescription"),15)) -> Dec 27, Mar 28 | AD26: =IF(LEFT(RTD("cqg.rtd", ,"ContractData", 'SR3'!U54,"LongDescription",,"T"),3)="768","",RIGHT(RTD("cqg.rtd",,"ContractData",'SR3'!U54, "LongDescription"),15)) -> Mar 28, Jun 28
A27: ='SR3'!Z24 -> -45 | K27: =IF(RTD("cqg.rtd",,"ContractData",'SR3'!U35, "Ask")="","",TEXT(RTD("cqg.rtd",,"ContractData",'SR3'!U35, "Ask"),"#.000")&" "&"A") -> -34.000 A | L27: =IF(RTD("cqg.rtd",,"ContractData",'SR3'!U36,"Ask")="","",TEXT(RTD("cqg.rtd",,"ContractData",'SR3'!U36,"Ask"),"#.000")&" "&"A") -> -37.000 A | M27: =IF(RTD("cqg.rtd",,"ContractData",'SR3'!U37,"Ask")="","",TEXT(RTD("cqg.rtd",,"ContractData",'SR3'!U37,"Ask"),"#.000")&" "&"A") -> -45.000 A | N27: =IF(RTD("cqg.rtd",,"ContractData",'SR3'!U38,"Ask")="","",TEXT(RTD("cqg.rtd",,"ContractData",'SR3'!U38,"Ask"),"#.000")&" "&"A") -> -38.000 A | O27: =IF(RTD("cqg.rtd",,"ContractData",'SR3'!U39,"Ask")="","",TEXT(RTD("cqg.rtd",,"ContractData",'SR3'!U39,"Ask"),"#.000")&" "&"A") -> -27.500 A | P27: =IF(RTD("cqg.rtd",,"ContractData",'SR3'!U40,"Ask")="","",TEXT(RTD("cqg.rtd",,"ContractData",'SR3'!U40,"Ask"),"#.000")&" "&"A") -> -14.500 A | Q27: =IF(RTD("cqg.rtd",,"ContractData",'SR3'!U41,"Ask")="","",TEXT(RTD("cqg.rtd",,"ContractData",'SR3'!U41,"Ask"),"#.000")&" "&"A") -> -7.000 A | R27: =IF(RTD("cqg.rtd",,"ContractData",'SR3'!U42,"Ask")="","",TEXT(RTD("cqg.rtd",,"ContractData",'SR3'!U42,"Ask"),"#.000")&" "&"A") -> -2.000 A | S27: =IF(RTD("cqg.rtd",,"ContractData",'SR3'!U43,"Ask")="","",TEXT(RTD("cqg.rtd",,"ContractData",'SR3'!U43,"Ask"),"#.000")&" "&"A") -> -1.000 A | T27: =IF(RTD("cqg.rtd",,"ContractData",'SR3'!U44,"Ask")="","",TEXT(RTD("cqg.rtd",,"ContractData",'SR3'!U44,"Ask"),"#.000")&" "&"A") -> -.500 A | U27: =IF(RTD("cqg.rtd",,"ContractData",'SR3'!U45,"Ask")="","",TEXT(RTD("cqg.rtd",,"ContractData",'SR3'!U45,"Ask"),"#.000")&" "&"A") -> 1.500 A | V27: =IF(RTD("cqg.rtd",,"ContractData",'SR3'!U46,"Ask")="","",TEXT(RTD("cqg.rtd",,"ContractData",'SR3'!U46,"Ask"),"#.000")&" "&"A") -> 1.500 A | W27: =IF(RTD("cqg.rtd",,"ContractData",'SR3'!U47,"Ask")="","",TEXT(RTD("cqg.rtd",,"ContractData",'SR3'!U47,"Ask"),"#.000")&" "&"A") -> 2.500 A | X27: =IF(RTD("cqg.rtd",,"ContractData",'SR3'!U48,"Ask")="","",TEXT(RTD("cqg.rtd",,"ContractData",'SR3'!U48,"Ask"),"#.000")&" "&"A") -> 1.500 A | Y27: =IF(RTD("cqg.rtd",,"ContractData",'SR3'!U49,"Ask")="","",TEXT(RTD("cqg.rtd",,"ContractData",'SR3'!U49,"Ask"),"#.000")&" "&"A") -> 3.000 A | Z27: =IF(RTD("cqg.rtd",,"ContractData",'SR3'!U50,"Ask")="","",TEXT(RTD("cqg.rtd",,"ContractData",'SR3'!U50,"Ask"),"#.000")&" "&"A") -> 3.000 A | AA27: =IF(RTD("cqg.rtd",,"ContractData",'SR3'!U51,"Ask")="","",TEXT(RTD("cqg.rtd",,"ContractData",'SR3'!U51,"Ask"),"#.000")&" "&"A") -> 4.500 A | AB27: =IF(RTD("cqg.rtd",,"ContractData",'SR3'!U52,"Ask")="","",TEXT(RTD("cqg.rtd",,"ContractData",'SR3'!U52,"Ask"),"#.000")&" "&"A") -> 3.000 A | AC27: =IF(LEFT(RTD("cqg.rtd",,"ContractData",'SR3'!U53,"Ask"),3)="768","",IF(RTD("cqg.rtd",,"ContractData",'SR3'!U53,"Ask")="","",TEXT(RTD("cqg.rtd",,"ContractData",'SR3'!U53,"Ask"),"#.000")&" "&"A")) -> 3.500 A | AD27: =IF(LEFT(RTD("cqg.rtd",,"ContractData",'SR3'!U54,"Ask"),3)="768","",IF(RTD("cqg.rtd",,"ContractData",'SR3'!U54,"Ask")="","",TEXT(RTD("cqg.rtd",,"ContractData",'SR3'!U54,"Ask"),"#.000")&" "&"A")) -> 4.500 A
B28: Symbols | C28: Open | D28: High | E28: Low | F28: Last | G28: Net | H28: Net | I28: Volume | K28: =IF(RTD("cqg.rtd",,"ContractData",'SR3'!U35, "Bid")="","",TEXT(RTD("cqg.rtd",,"ContractData",'SR3'!U35, "Bid"),"#.000")&" "&"B") -> -34.500 B | L28: =IF(RTD("cqg.rtd",,"ContractData",'SR3'!U36,"Bid")="","",TEXT(RTD("cqg.rtd",,"ContractData",'SR3'!U36,"Bid"),"#.000")&" "&"B") -> -37.500 B | M28: =IF(RTD("cqg.rtd",,"ContractData",'SR3'!U37,"Bid")="","",TEXT(RTD("cqg.rtd",,"ContractData",'SR3'!U37,"Bid"),"#.000")&" "&"B") -> -45.500 B | N28: =IF(RTD("cqg.rtd",,"ContractData",'SR3'!U38,"Bid")="","",TEXT(RTD("cqg.rtd",,"ContractData",'SR3'!U38,"Bid"),"#.000")&" "&"B") -> -38.500 B | O28: =IF(RTD("cqg.rtd",,"ContractData",'SR3'!U39,"Bid")="","",TEXT(RTD("cqg.rtd",,"ContractData",'SR3'!U39,"Bid"),"#.000")&" "&"B") -> -28.000 B | P28: =IF(RTD("cqg.rtd",,"ContractData",'SR3'!U40,"Bid")="","",TEXT(RTD("cqg.rtd",,"ContractData",'SR3'!U40,"Bid"),"#.000")&" "&"B") -> -15.000 B | Q28: =IF(RTD("cqg.rtd",,"ContractData",'SR3'!U41,"Bid")="","",TEXT(RTD("cqg.rtd",,"ContractData",'SR3'!U41,"Bid"),"#.000")&" "&"B") -> -7.500 B | R28: =IF(RTD("cqg.rtd",,"ContractData",'SR3'!U42,"Bid")="","",TEXT(RTD("cqg.rtd",,"ContractData",'SR3'!U42,"Bid"),"#.000")&" "&"B") -> -3.000 B | S28: =IF(RTD("cqg.rtd",,"ContractData",'SR3'!U43,"Bid")="","",TEXT(RTD("cqg.rtd",,"ContractData",'SR3'!U43,"Bid"),"#.000")&" "&"B") -> -1.500 B | T28: =IF(RTD("cqg.rtd",,"ContractData",'SR3'!U44,"Bid")="","",TEXT(RTD("cqg.rtd",,"ContractData",'SR3'!U44,"Bid"),"#.000")&" "&"B") -> -1.000 B | U28: =IF(RTD("cqg.rtd",,"ContractData",'SR3'!U45,"Bid")="","",TEXT(RTD("cqg.rtd",,"ContractData",'SR3'!U45,"Bid"),"#.000")&" "&"B") -> 1.000 B | V28: =IF(RTD("cqg.rtd",,"ContractData",'SR3'!U46,"Bid")="","",TEXT(RTD("cqg.rtd",,"ContractData",'SR3'!U46,"Bid"),"#.000")&" "&"B") -> 1.000 B | W28: =IF(RTD("cqg.rtd",,"ContractData",'SR3'!U47,"Bid")="","",TEXT(RTD("cqg.rtd",,"ContractData",'SR3'!U47,"Bid"),"#.000")&" "&"B") -> 2.000 B | X28: =IF(RTD("cqg.rtd",,"ContractData",'SR3'!U48,"Bid")="","",TEXT(RTD("cqg.rtd",,"ContractData",'SR3'!U48,"Bid"),"#.000")&" "&"B") -> 1.000 B | Y28: =IF(RTD("cqg.rtd",,"ContractData",'SR3'!U49,"Bid")="","",TEXT(RTD("cqg.rtd",,"ContractData",'SR3'!U49,"Bid"),"#.000")&" "&"B") -> 2.500 B | Z28: =IF(RTD("cqg.rtd",,"ContractData",'SR3'!U50,"Bid")="","",TEXT(RTD("cqg.rtd",,"ContractData",'SR3'!U50,"Bid"),"#.000")&" "&"B") -> 2.500 B | AA28: =IF(RTD("cqg.rtd",,"ContractData",'SR3'!U51,"Bid")="","",TEXT(RTD("cqg.rtd",,"ContractData",'SR3'!U51,"Bid"),"#.000")&" "&"B") -> 4.000 B | AB28: =IF(RTD("cqg.rtd",,"ContractData",'SR3'!U52,"Bid")="","",TEXT(RTD("cqg.rtd",,"ContractData",'SR3'!U52,"Bid"),"#.000")&" "&"B") -> 2.500 B | AC28: =IF(LEFT(RTD("cqg.rtd",,"ContractData",'SR3'!U53,"Bid"),3)="768","",IF(RTD("cqg.rtd",,"ContractData",'SR3'!U53,"Bid")="","",TEXT(RTD("cqg.rtd",,"ContractData",'SR3'!U53,"Bid"),"#.000")&" "&"B")) -> 2.500 B | AD28: =IF(LEFT(RTD("cqg.rtd",,"ContractData",'SR3'!U54,"Bid"),3)="768","",IF(RTD("cqg.rtd",,"ContractData",'SR3'!U54,"Bid")="","",TEXT(RTD("cqg.rtd",,"ContractData",'SR3'!U54,"Bid"),"#.000")&" "&"B")) -> 3.000 B
A29: ='SR3'!U35 -> SR3S3M23 | B29: =RIGHT(RTD("cqg.rtd",,"ContractData",A29, "LongDescription"),15) -> Jun 23, Sep 23 | C29: =RTD("cqg.rtd", ,"ContractData",A29, "Open",,"T") -> -32 | D29: =RTD("cqg.rtd", ,"ContractData",A29, "High",,"T") -> -29 | E29: =RTD("cqg.rtd", ,"ContractData",A29, "Low",,"T") -> -38.5 | F29: =RTD("cqg.rtd", ,"ContractData",A29, "LastTradeorSettle",,"T") -> -34.5 | G29: =RTD("cqg.rtd",,"ContractData",A29,"NetLastTradeToday",,"T") -> -3.5 | H29: =RTD("cqg.rtd",,"ContractData",A29,"NetLastTradeToday",,"T") -> -3.5 | I29: =RTD("cqg.rtd", ,"ContractData",A29, "T_CVol") -> 43911 | K29: =IF(RTD("cqg.rtd", ,"ContractData",'SR3'!U35,"LastTradeorSettle",,"T")="","",TEXT(RTD("cqg.rtd", ,"ContractData",'SR3'!U35,"LastTradeorSettle",,"T"),"#.000")&" "&"L") -> -34.500 L | L29: =IF(RTD("cqg.rtd", ,"ContractData",'SR3'!U36,"LastTradeorSettle",,"T")="","",TEXT(RTD("cqg.rtd", ,"ContractData",'SR3'!U36,"LastTradeorSettle",,"T"),"#.000")&" "&"L") -> -37.000 L | M29: =IF(RTD("cqg.rtd", ,"ContractData",'SR3'!U37,"LastTradeorSettle",,"T")="","",TEXT(RTD("cqg.rtd", ,"ContractData",'SR3'!U37,"LastTradeorSettle",,"T"),"#.000")&" "&"L") -> -45.000 L | N29: =IF(RTD("cqg.rtd", ,"ContractData",'SR3'!U38,"LastTradeorSettle",,"T")="","",TEXT(RTD("cqg.rtd", ,"ContractData",'SR3'!U38,"LastTradeorSettle",,"T"),"#.000")&" "&"L") -> -38.000 L | O29: =IF(RTD("cqg.rtd", ,"ContractData",'SR3'!U39,"LastTradeorSettle",,"T")="","",TEXT(RTD("cqg.rtd", ,"ContractData",'SR3'!U39,"LastTradeorSettle",,"T"),"#.000")&" "&"L") -> -27.500 L | P29: =IF(RTD("cqg.rtd", ,"ContractData",'SR3'!U40,"LastTradeorSettle",,"T")="","",TEXT(RTD("cqg.rtd", ,"ContractData",'SR3'!U40,"LastTradeorSettle",,"T"),"#.000")&" "&"L") -> -15.000 L | Q29: =IF(RTD("cqg.rtd", ,"ContractData",'SR3'!U41,"LastTradeorSettle",,"T")="","",TEXT(RTD("cqg.rtd", ,"ContractData",'SR3'!U41,"LastTradeorSettle",,"T"),"#.000")&" "&"L") -> -7.500 L | R29: =IF(RTD("cqg.rtd", ,"ContractData",'SR3'!U42,"LastTradeorSettle",,"T")="","",TEXT(RTD("cqg.rtd", ,"ContractData",'SR3'!U42,"LastTradeorSettle",,"T"),"#.000")&" "&"L") -> -2.500 L | S29: =IF(RTD("cqg.rtd", ,"ContractData",'SR3'!U43,"LastTradeorSettle",,"T")="","",TEXT(RTD("cqg.rtd", ,"ContractData",'SR3'!U43,"LastTradeorSettle",,"T"),"#.000")&" "&"L") -> -1.500 L | T29: =IF(RTD("cqg.rtd", ,"ContractData",'SR3'!U44,"LastTradeorSettle",,"T")="","",TEXT(RTD("cqg.rtd", ,"ContractData",'SR3'!U44,"LastTradeorSettle",,"T"),"#.000")&" "&"L") -> -1.000 L | U29: =IF(RTD("cqg.rtd", ,"ContractData",'SR3'!U45,"LastTradeorSettle",,"T")="","",TEXT(RTD("cqg.rtd", ,"ContractData",'SR3'!U45,"LastTradeorSettle",,"T"),"#.000")&" "&"L") -> 1.500 L | V29: =IF(RTD("cqg.rtd", ,"ContractData",'SR3'!U46,"LastTradeorSettle",,"T")="","",TEXT(RTD("cqg.rtd", ,"ContractData",'SR3'!U46,"LastTradeorSettle",,"T"),"#.000")&" "&"L") -> 1.500 L | W29: =IF(RTD("cqg.rtd", ,"ContractData",'SR3'!U47,"LastTradeorSettle",,"T")="","",TEXT(RTD("cqg.rtd", ,"ContractData",'SR3'!U47,"LastTradeorSettle",,"T"),"#.000")&" "&"L") -> 2.500 L | X29: =IF(RTD("cqg.rtd", ,"ContractData",'SR3'!U48,"LastTradeorSettle",,"T")="","",TEXT(RTD("cqg.rtd", ,"ContractData",'SR3'!U48,"LastTradeorSettle",,"T"),"#.000")&" "&"L") -> 1.500 L | Y29: =IF(RTD("cqg.rtd", ,"ContractData",'SR3'!U49,"LastTradeorSettle",,"T")="","",TEXT(RTD("cqg.rtd", ,"ContractData",'SR3'!U49,"LastTradeorSettle",,"T"),"#.000")&" "&"L") -> 2.500 L | Z29: =IF(RTD("cqg.rtd", ,"ContractData",'SR3'!U50,"LastTradeorSettle",,"T")="","",TEXT(RTD("cqg.rtd", ,"ContractData",'SR3'!U50,"LastTradeorSettle",,"T"),"#.000")&" "&"L") -> 2.500 L | AA29: =IF(RTD("cqg.rtd", ,"ContractData",'SR3'!U51,"LastTradeorSettle",,"T")="","",TEXT(RTD("cqg.rtd", ,"ContractData",'SR3'!U51,"LastTradeorSettle",,"T"),"#.000")&" "&"L") -> 4.500 L | AB29: =IF(LEFT(RTD("cqg.rtd",,"ContractData",'SR3'!U52,"LastTradeorSettle"),3)="768","",IF(RTD("cqg.rtd",,"ContractData",'SR3'!U52,"LastTradeorSettle")="","",TEXT(RTD("cqg.rtd",,"ContractData",'SR3'!U52,"LastTradeorSettle"),"#.000")&" "&"L")) -> 2.500 L | AC29: =IF(LEFT(RTD("cqg.rtd",,"ContractData",'SR3'!U53,"LastTradeorSettle"),3)="768","",IF(RTD("cqg.rtd",,"ContractData",'SR3'!U53,"LastTradeorSettle")="","",TEXT(RTD("cqg.rtd",,"ContractData",'SR3'!U53,"LastTradeorSettle"),"#.000")&" "&"L")) -> 3.000 L | AD29: =IF(LEFT(RTD("cqg.rtd",,"ContractData",'SR3'!U54,"LastTradeorSettle"),3)="768","",IF(RTD("cqg.rtd",,"ContractData",'SR3'!U54,"LastTradeorSettle")="","",TEXT(RTD("cqg.rtd",,"ContractData",'SR3'!U54,"LastTradeorSettle"),"#.000")&" "&"L")) -> 3.000 L
A30: ='SR3'!U36 -> SR3S3U23 | B30: =RIGHT(RTD("cqg.rtd",,"ContractData",A30, "LongDescription"),15) -> Sep 23, Dec 23 | C30: =RTD("cqg.rtd", ,"ContractData",A30, "Open",,"T") -> -36.5 | D30: =RTD("cqg.rtd", ,"ContractData",A30, "High",,"T") -> -34.5 | E30: =RTD("cqg.rtd", ,"ContractData",A30, "Low",,"T") -> -38.5 | F30: =RTD("cqg.rtd", ,"ContractData",A30, "LastTradeorSettle",,"T") -> -37 | G30: =RTD("cqg.rtd",,"ContractData",A30,"NetLastTradeToday",,"T") -> -1 | H30: =RTD("cqg.rtd",,"ContractData",A30,"NetLastTradeToday",,"T") -> -1 | I30: =RTD("cqg.rtd", ,"ContractData",A30, "T_CVol") -> 32910
A31: ='SR3'!U37 -> SR3S3Z23 | B31: =RIGHT(RTD("cqg.rtd",,"ContractData",A31, "LongDescription"),15) -> Dec 23, Mar 24 | C31: =RTD("cqg.rtd", ,"ContractData",A31, "Open",,"T") -> -44.5 | D31: =RTD("cqg.rtd", ,"ContractData",A31, "High",,"T") -> -42 | E31: =RTD("cqg.rtd", ,"ContractData",A31, "Low",,"T") -> -46 | F31: =RTD("cqg.rtd", ,"ContractData",A31, "LastTradeorSettle",,"T") -> -45 | G31: =RTD("cqg.rtd",,"ContractData",A31,"NetLastTradeToday",,"T") -> -1 | H31: =RTD("cqg.rtd",,"ContractData",A31,"NetLastTradeToday",,"T") -> -1 | I31: =RTD("cqg.rtd", ,"ContractData",A31, "T_CVol") -> 19465
A32: ='SR3'!U38 -> SR3S3H24 | B32: =RIGHT(RTD("cqg.rtd",,"ContractData",A32, "LongDescription"),15) -> Mar 24, Jun 24 | C32: =RTD("cqg.rtd", ,"ContractData",A32, "Open",,"T") -> -38.5 | D32: =RTD("cqg.rtd", ,"ContractData",A32, "High",,"T") -> -35 | E32: =RTD("cqg.rtd", ,"ContractData",A32, "Low",,"T") -> -39.5 | F32: =RTD("cqg.rtd", ,"ContractData",A32, "LastTradeorSettle",,"T") -> -38 | G32: =RTD("cqg.rtd",,"ContractData",A32,"NetLastTradeToday",,"T") -> 0.5 | H32: =RTD("cqg.rtd",,"ContractData",A32,"NetLastTradeToday",,"T") -> 0.5 | I32: =RTD("cqg.rtd", ,"ContractData",A32, "T_CVol") -> 12005
A33: ='SR3'!U39 -> SR3S3M24 | B33: =RIGHT(RTD("cqg.rtd",,"ContractData",A33, "LongDescription"),15) -> Jun 24, Sep 24 | C33: =RTD("cqg.rtd", ,"ContractData",A33, "Open",,"T") -> -29 | D33: =RTD("cqg.rtd", ,"ContractData",A33, "High",,"T") -> -25.5 | E33: =RTD("cqg.rtd", ,"ContractData",A33, "Low",,"T") -> -30.5 | F33: =RTD("cqg.rtd", ,"ContractData",A33, "LastTradeorSettle",,"T") -> -27.5 | G33: =RTD("cqg.rtd",,"ContractData",A33,"NetLastTradeToday",,"T") -> 2 | H33: =RTD("cqg.rtd",,"ContractData",A33,"NetLastTradeToday",,"T") -> 2 | I33: =RTD("cqg.rtd", ,"ContractData",A33, "T_CVol") -> 9061
A34: ='SR3'!U40 -> SR3S3U24 | B34: =RIGHT(RTD("cqg.rtd",,"ContractData",A34, "LongDescription"),15) -> Sep 24, Dec 24 | C34: =RTD("cqg.rtd", ,"ContractData",A34, "Open",,"T") -> -16 | D34: =RTD("cqg.rtd", ,"ContractData",A34, "High",,"T") -> -13 | E34: =RTD("cqg.rtd", ,"ContractData",A34, "Low",,"T") -> -17 | F34: =RTD("cqg.rtd", ,"ContractData",A34, "LastTradeorSettle",,"T") -> -15 | G34: =RTD("cqg.rtd",,"ContractData",A34,"NetLastTradeToday",,"T") -> 1 | H34: =RTD("cqg.rtd",,"ContractData",A34,"NetLastTradeToday",,"T") -> 1 | I34: =RTD("cqg.rtd", ,"ContractData",A34, "T_CVol") -> 7158
A35: ='SR3'!U41 -> SR3S3Z24 | B35: =RIGHT(RTD("cqg.rtd",,"ContractData",A35, "LongDescription"),15) -> Dec 24, Mar 25 | C35: =RTD("cqg.rtd", ,"ContractData",A35, "Open",,"T") -> -7.5 | D35: =RTD("cqg.rtd", ,"ContractData",A35, "High",,"T") -> -5.5 | E35: =RTD("cqg.rtd", ,"ContractData",A35, "Low",,"T") -> -8.5 | F35: =RTD("cqg.rtd", ,"ContractData",A35, "LastTradeorSettle",,"T") -> -7.5 | G35: =RTD("cqg.rtd",,"ContractData",A35,"NetLastTradeToday",,"T") -> 0.5 | H35: =RTD("cqg.rtd",,"ContractData",A35,"NetLastTradeToday",,"T") -> 0.5 | I35: =RTD("cqg.rtd", ,"ContractData",A35, "T_CVol") -> 3308
A36: ='SR3'!U42 -> SR3S3H25 | B36: =RIGHT(RTD("cqg.rtd",,"ContractData",A36, "LongDescription"),15) -> Mar 25, Jun 25 | C36: =RTD("cqg.rtd", ,"ContractData",A36, "Open",,"T") -> -2.5 | D36: =RTD("cqg.rtd", ,"ContractData",A36, "High",,"T") -> -1.5 | E36: =RTD("cqg.rtd", ,"ContractData",A36, "Low",,"T") -> -3.5 | F36: =RTD("cqg.rtd", ,"ContractData",A36, "LastTradeorSettle",,"T") -> -2.5 | G36: =RTD("cqg.rtd",,"ContractData",A36,"NetLastTradeToday",,"T") -> 0 | H36: =RTD("cqg.rtd",,"ContractData",A36,"NetLastTradeToday",,"T") -> 0 | I36: =RTD("cqg.rtd", ,"ContractData",A36, "T_CVol") -> 1970
A37: ='SR3'!U43 -> SR3S3M25 | B37: =RIGHT(RTD("cqg.rtd",,"ContractData",A37, "LongDescription"),15) -> Jun 25, Sep 25 | C37: =RTD("cqg.rtd", ,"ContractData",A37, "Open",,"T") -> -1.5 | D37: =RTD("cqg.rtd", ,"ContractData",A37, "High",,"T") -> -1 | E37: =RTD("cqg.rtd", ,"ContractData",A37, "Low",,"T") -> -2.5 | F37: =RTD("cqg.rtd", ,"ContractData",A37, "LastTradeorSettle",,"T") -> -1.5 | G37: =RTD("cqg.rtd",,"ContractData",A37,"NetLastTradeToday",,"T") -> 0 | H37: =RTD("cqg.rtd",,"ContractData",A37,"NetLastTradeToday",,"T") -> 0 | I37: =RTD("cqg.rtd", ,"ContractData",A37, "T_CVol") -> 3150
A38: ='SR3'!U44 -> SR3S3U25 | B38: =RIGHT(RTD("cqg.rtd",,"ContractData",A38, "LongDescription"),15) -> Sep 25, Dec 25 | C38: =RTD("cqg.rtd", ,"ContractData",A38, "Open",,"T") -> -1.5 | D38: =RTD("cqg.rtd", ,"ContractData",A38, "High",,"T") -> 0 | E38: =RTD("cqg.rtd", ,"ContractData",A38, "Low",,"T") -> -1.5 | F38: =RTD("cqg.rtd", ,"ContractData",A38, "LastTradeorSettle",,"T") -> -1 | G38: =RTD("cqg.rtd",,"ContractData",A38,"NetLastTradeToday",,"T") -> 0.5 | H38: =RTD("cqg.rtd",,"ContractData",A38,"NetLastTradeToday",,"T") -> 0.5 | I38: =RTD("cqg.rtd", ,"ContractData",A38, "T_CVol") -> 1346
A39: ='SR3'!U45 -> SR3S3Z25 | B39: =RIGHT(RTD("cqg.rtd",,"ContractData",A39, "LongDescription"),15) -> Dec 25, Mar 26 | C39: =RTD("cqg.rtd", ,"ContractData",A39, "Open",,"T") -> 1 | D39: =RTD("cqg.rtd", ,"ContractData",A39, "High",,"T") -> 1.5 | E39: =RTD("cqg.rtd", ,"ContractData",A39, "Low",,"T") -> 1 | F39: =RTD("cqg.rtd", ,"ContractData",A39, "LastTradeorSettle",,"T") -> 1.5 | G39: =RTD("cqg.rtd",,"ContractData",A39,"NetLastTradeToday",,"T") -> 0.5 | H39: =RTD("cqg.rtd",,"ContractData",A39,"NetLastTradeToday",,"T") -> 0.5 | I39: =RTD("cqg.rtd", ,"ContractData",A39, "T_CVol") -> 2372
A40: ='SR3'!U46 -> SR3S3H26 | B40: =RIGHT(RTD("cqg.rtd",,"ContractData",A40, "LongDescription"),15) -> Mar 26, Jun 26 | C40: =RTD("cqg.rtd", ,"ContractData",A40, "Open",,"T") -> 1.5 | D40: =RTD("cqg.rtd", ,"ContractData",A40, "High",,"T") -> 1.5 | E40: =RTD("cqg.rtd", ,"ContractData",A40, "Low",,"T") -> 0.5 | F40: =RTD("cqg.rtd", ,"ContractData",A40, "LastTradeorSettle",,"T") -> 1.5 | G40: =RTD("cqg.rtd",,"ContractData",A40,"NetLastTradeToday",,"T") -> 0.5 | H40: =RTD("cqg.rtd",,"ContractData",A40,"NetLastTradeToday",,"T") -> 0.5 | I40: =RTD("cqg.rtd", ,"ContractData",A40, "T_CVol") -> 1406
B41: Calendar Spread: | D41: 12-Mon | E41: Enter First Contract Spread Symbol: | I41: M23
A42: ='SR3'!AH24 -> 14 | B42: =D41&" Calendar Spreads" -> 12-Mon Calendar Spreads | K42: =RIGHT(RTD("cqg.rtd",,"ContractData",'SR3'!AF35, "LongDescription"),15) -> Jun 23, Jun 24 | L42: =RIGHT(RTD("cqg.rtd",,"ContractData",'SR3'!AF36, "LongDescription"),15) -> Sep 23, Sep 24 | M42: =RIGHT(RTD("cqg.rtd",,"ContractData",'SR3'!AF37, "LongDescription"),15) -> Dec 23, Dec 24 | N42: =RIGHT(RTD("cqg.rtd",,"ContractData",'SR3'!AF38, "LongDescription"),15) -> Mar 24, Mar 25 | O42: =RIGHT(RTD("cqg.rtd",,"ContractData",'SR3'!AF39, "LongDescription"),15) -> Jun 24, Jun 25 | P42: =RIGHT(RTD("cqg.rtd",,"ContractData",'SR3'!AF40, "LongDescription"),15) -> Sep 24, Sep 25 | Q42: =RIGHT(RTD("cqg.rtd",,"ContractData",'SR3'!AF41, "LongDescription"),15) -> Dec 24, Dec 25 | R42: =RIGHT(RTD("cqg.rtd",,"ContractData",'SR3'!AF42, "LongDescription"),15) -> Mar 25, Mar 26 | S42: =RIGHT(RTD("cqg.rtd",,"ContractData",'SR3'!AF43, "LongDescription"),15) -> Jun 25, Jun 26 | T42: =RIGHT(RTD("cqg.rtd",,"ContractData",'SR3'!AF44, "LongDescription"),15) -> Sep 25, Sep 26 | U42: =RIGHT(RTD("cqg.rtd",,"ContractData",'SR3'!AF45, "LongDescription"),15) -> Dec 25, Dec 26 | V42: =RIGHT(RTD("cqg.rtd",,"ContractData",'SR3'!AF46, "LongDescription"),15) -> Mar 26, Mar 27 | W42: =RIGHT(RTD("cqg.rtd",,"ContractData",'SR3'!AF47, "LongDescription"),15) -> Jun 26, Jun 27 | X42: =RIGHT(RTD("cqg.rtd",,"ContractData",'SR3'!AF48, "LongDescription"),15) -> Sep 26, Sep 27 | Y42: =RIGHT(RTD("cqg.rtd",,"ContractData",'SR3'!AF49, "LongDescription"),15) -> Dec 26, Dec 27 | Z42: =RIGHT(RTD("cqg.rtd",,"ContractData",'SR3'!AF50, "LongDescription"),15) -> Mar 27, Mar 28 | AA42: =RIGHT(RTD("cqg.rtd",,"ContractData",'SR3'!AF51, "LongDescription"),15) -> Jun 27, Jun 28 | AB42: =RIGHT(RTD("cqg.rtd",,"ContractData",'SR3'!AF52, "LongDescription"),15) -> Sep 27, Sep 28 | AC42: =IF(LEFT(RTD("cqg.rtd", ,"ContractData", 'SR3'!AF53,"LongDescription",,"T"),3)="768","",RIGHT(RTD("cqg.rtd",,"ContractData",'SR3'!AF53, "LongDescription"),15)) -> Dec 27, Dec 28 | AD42: =IF(LEFT(RTD("cqg.rtd", ,"ContractData", 'SR3'!AF54,"LongDescription",,"T"),3)="768","",RIGHT(RTD("cqg.rtd",,"ContractData",'SR3'!AF54, "LongDescription"),15)) -> Mar 28, Mar 29
A43: ='SR3'!AI24 -> -154.5 | K43: =IF(RTD("cqg.rtd",,"ContractData",'SR3'!AF35, "Ask")="","",TEXT(RTD("cqg.rtd",,"ContractData",'SR3'!AF35, "Ask"),"#.000")&" "&"A") -> -154.500 A | L43: =IF(RTD("cqg.rtd",,"ContractData",'SR3'!AF36, "Ask")="","",TEXT(RTD("cqg.rtd",,"ContractData",'SR3'!AF36, "Ask"),"#.000")&" "&"A") -> -148.000 A | M43: =IF(RTD("cqg.rtd",,"ContractData",'SR3'!AF37, "Ask")="","",TEXT(RTD("cqg.rtd",,"ContractData",'SR3'!AF37, "Ask"),"#.000")&" "&"A") -> -125.500 A | N43: =IF(RTD("cqg.rtd",,"ContractData",'SR3'!AF38, "Ask")="","",TEXT(RTD("cqg.rtd",,"ContractData",'SR3'!AF38, "Ask"),"#.000")&" "&"A") -> -87.500 A | O43: =IF(RTD("cqg.rtd",,"ContractData",'SR3'!AF39, "Ask")="","",TEXT(RTD("cqg.rtd",,"ContractData",'SR3'!AF39, "Ask"),"#.000")&" "&"A") -> -51.500 A | P43: =IF(RTD("cqg.rtd",,"ContractData",'SR3'!AF40, "Ask")="","",TEXT(RTD("cqg.rtd",,"ContractData",'SR3'!AF40, "Ask"),"#.000")&" "&"A") -> -25.000 A | Q43: =IF(RTD("cqg.rtd",,"ContractData",'SR3'!AF41, "Ask")="","",TEXT(RTD("cqg.rtd",,"ContractData",'SR3'!AF41, "Ask"),"#.000")&" "&"A") -> -11.500 A | R43: =IF(RTD("cqg.rtd",,"ContractData",'SR3'!AF42, "Ask")="","",TEXT(RTD("cqg.rtd",,"ContractData",'SR3'!AF42, "Ask"),"#.000")&" "&"A") -> -3.000 A | S43: =IF(RTD("cqg.rtd",,"ContractData",'SR3'!AF43, "Ask")="","",TEXT(RTD("cqg.rtd",,"ContractData",'SR3'!AF43, "Ask"),"#.000")&" "&"A") -> 1.000 A | T43: =IF(RTD("cqg.rtd",,"ContractData",'SR3'!AF44, "Ask")="","",TEXT(RTD("cqg.rtd",,"ContractData",'SR3'!AF44, "Ask"),"#.000")&" "&"A") -> 4.500 A | U43: =IF(RTD("cqg.rtd",,"ContractData",'SR3'!AF45, "Ask")="","",TEXT(RTD("cqg.rtd",,"ContractData",'SR3'!AF45, "Ask"),"#.000")&" "&"A") -> 6.500 A | V43: =IF(RTD("cqg.rtd",,"ContractData",'SR3'!AF46, "Ask")="","",TEXT(RTD("cqg.rtd",,"ContractData",'SR3'!AF46, "Ask"),"#.000")&" "&"A") -> 8.000 A | W43: =IF(RTD("cqg.rtd",,"ContractData",'SR3'!AF47, "Ask")="","",TEXT(RTD("cqg.rtd",,"ContractData",'SR3'!AF47, "Ask"),"#.000")&" "&"A") -> 9.500 A | X43: =IF(RTD("cqg.rtd",,"ContractData",'SR3'!AF48, "Ask")="","",TEXT(RTD("cqg.rtd",,"ContractData",'SR3'!AF48, "Ask"),"#.000")&" "&"A") -> 11.500 A | Y43: =IF(RTD("cqg.rtd",,"ContractData",'SR3'!AF49, "Ask")="","",TEXT(RTD("cqg.rtd",,"ContractData",'SR3'!AF49, "Ask"),"#.000")&" "&"A") -> 13.000 A | Z43: =IF(RTD("cqg.rtd",,"ContractData",'SR3'!AF50, "Ask")="","",TEXT(RTD("cqg.rtd",,"ContractData",'SR3'!AF50, "Ask"),"#.000")&" "&"A") -> 13.500 A | AA43: =IF(RTD("cqg.rtd",,"ContractData",'SR3'!AF51, "Ask")="","",TEXT(RTD("cqg.rtd",,"ContractData",'SR3'!AF51, "Ask"),"#.000")&" "&"A") -> 15.000 A | AB43: =IF(RTD("cqg.rtd",,"ContractData",'SR3'!AF52, "Ask")="","",TEXT(RTD("cqg.rtd",,"ContractData",'SR3'!AF52, "Ask"),"#.000")&" "&"A") -> 21.500 A | AC43: =IF(LEFT(RTD("cqg.rtd",,"ContractData",'SR3'!AF53,"Ask"),3)="768","",IF(RTD("cqg.rtd",,"ContractData",'SR3'!AF53,"Ask")="","",TEXT(RTD("cqg.rtd",,"ContractData",'SR3'!AF53,"Ask"),"#.000")&" "&"A")) -> 15.000 A | AD43: =IF(LEFT(RTD("cqg.rtd",,"ContractData",'SR3'!AF54,"Ask"),3)="768","",IF(RTD("cqg.rtd",,"ContractData",'SR3'!AF54,"Ask")="","",TEXT(RTD("cqg.rtd",,"ContractData",'SR3'!AF54,"Ask"),"#.000")&" "&"A")) -> 18.500 A
B44: Symbols | C44: Open | D44: High | E44: Low | F44: Last | G44: Net | H44: Net | I44: Volume | K44: =IF(RTD("cqg.rtd",,"ContractData",'SR3'!AF35, "Bid")="","",TEXT(RTD("cqg.rtd",,"ContractData",'SR3'!AF35, "Bid"),"#.000")&" "&"B") -> -155.500 B | L44: =IF(RTD("cqg.rtd",,"ContractData",'SR3'!AF36, "Bid")="","",TEXT(RTD("cqg.rtd",,"ContractData",'SR3'!AF36, "Bid"),"#.000")&" "&"B") -> -148.500 B | M44: =IF(RTD("cqg.rtd",,"ContractData",'SR3'!AF37, "Bid")="","",TEXT(RTD("cqg.rtd",,"ContractData",'SR3'!AF37, "Bid"),"#.000")&" "&"B") -> -126.000 B | N44: =IF(RTD("cqg.rtd",,"ContractData",'SR3'!AF38, "Bid")="","",TEXT(RTD("cqg.rtd",,"ContractData",'SR3'!AF38, "Bid"),"#.000")&" "&"B") -> -88.000 B | O44: =IF(RTD("cqg.rtd",,"ContractData",'SR3'!AF39, "Bid")="","",TEXT(RTD("cqg.rtd",,"ContractData",'SR3'!AF39, "Bid"),"#.000")&" "&"B") -> -52.500 B | P44: =IF(RTD("cqg.rtd",,"ContractData",'SR3'!AF40, "Bid")="","",TEXT(RTD("cqg.rtd",,"ContractData",'SR3'!AF40, "Bid"),"#.000")&" "&"B") -> -26.000 B | Q44: =IF(RTD("cqg.rtd",,"ContractData",'SR3'!AF41, "Bid")="","",TEXT(RTD("cqg.rtd",,"ContractData",'SR3'!AF41, "Bid"),"#.000")&" "&"B") -> -12.000 B | R44: =IF(RTD("cqg.rtd",,"ContractData",'SR3'!AF42, "Bid")="","",TEXT(RTD("cqg.rtd",,"ContractData",'SR3'!AF42, "Bid"),"#.000")&" "&"B") -> -3.500 B | S44: =IF(RTD("cqg.rtd",,"ContractData",'SR3'!AF43, "Bid")="","",TEXT(RTD("cqg.rtd",,"ContractData",'SR3'!AF43, "Bid"),"#.000")&" "&"B") -> .500 B | T44: =IF(RTD("cqg.rtd",,"ContractData",'SR3'!AF44, "Bid")="","",TEXT(RTD("cqg.rtd",,"ContractData",'SR3'!AF44, "Bid"),"#.000")&" "&"B") -> 4.000 B | U44: =IF(RTD("cqg.rtd",,"ContractData",'SR3'!AF45, "Bid")="","",TEXT(RTD("cqg.rtd",,"ContractData",'SR3'!AF45, "Bid"),"#.000")&" "&"B") -> 6.000 B | V44: =IF(RTD("cqg.rtd",,"ContractData",'SR3'!AF46, "Bid")="","",TEXT(RTD("cqg.rtd",,"ContractData",'SR3'!AF46, "Bid"),"#.000")&" "&"B") -> 7.500 B | W44: =IF(RTD("cqg.rtd",,"ContractData",'SR3'!AF47, "Bid")="","",TEXT(RTD("cqg.rtd",,"ContractData",'SR3'!AF47, "Bid"),"#.000")&" "&"B") -> 8.500 B | X44: =IF(RTD("cqg.rtd",,"ContractData",'SR3'!AF48, "Bid")="","",TEXT(RTD("cqg.rtd",,"ContractData",'SR3'!AF48, "Bid"),"#.000")&" "&"B") -> 10.500 B | Y44: =IF(RTD("cqg.rtd",,"ContractData",'SR3'!AF49, "Bid")="","",TEXT(RTD("cqg.rtd",,"ContractData",'SR3'!AF49, "Bid"),"#.000")&" "&"B") -> 12.000 B | Z44: =IF(RTD("cqg.rtd",,"ContractData",'SR3'!AF50, "Bid")="","",TEXT(RTD("cqg.rtd",,"ContractData",'SR3'!AF50, "Bid"),"#.000")&" "&"B") -> 12.000 B | AA44: =IF(RTD("cqg.rtd",,"ContractData",'SR3'!AF51, "Bid")="","",TEXT(RTD("cqg.rtd",,"ContractData",'SR3'!AF51, "Bid"),"#.000")&" "&"B") -> 12.000 B | AB44: =IF(RTD("cqg.rtd",,"ContractData",'SR3'!AF52, "Bid")="","",TEXT(RTD("cqg.rtd",,"ContractData",'SR3'!AF52, "Bid"),"#.000")&" "&"B") -> 7.000 B | AC44: =IF(LEFT(RTD("cqg.rtd",,"ContractData",'SR3'!AF53,"Bid"),3)="768","",IF(RTD("cqg.rtd",,"ContractData",'SR3'!AF53,"Bid")="","",TEXT(RTD("cqg.rtd",,"ContractData",'SR3'!AF53,"Bid"),"#.000")&" "&"B")) -> 10.000 B | AD44: =IF(LEFT(RTD("cqg.rtd",,"ContractData",'SR3'!AF54,"Bid"),3)="768","",IF(RTD("cqg.rtd",,"ContractData",'SR3'!AF54,"Bid")="","",TEXT(RTD("cqg.rtd",,"ContractData",'SR3'!AF54,"Bid"),"#.000")&" "&"B")) -> 6.000 B
A45: =RTD("cqg.rtd",,"ContractData",'SR3'!AF35, "Symbol") -> SR3S12M23 | B45: =RIGHT(RTD("cqg.rtd",,"ContractData",A45, "LongDescription"),15) -> Jun 23, Jun 24 | C45: =RTD("cqg.rtd", ,"ContractData",A45, "Open",,"T") -> -151 | D45: =RTD("cqg.rtd", ,"ContractData",A45, "High",,"T") -> -146 | E45: =RTD("cqg.rtd", ,"ContractData",A45, "Low",,"T") -> -158 | F45: =RTD("cqg.rtd", ,"ContractData",A45, "LastTradeorSettle",,"T") -> -154.5 | G45: =RTD("cqg.rtd",,"ContractData",A45,"NetLastTradeToday",,"T") -> -5 | H45: =RTD("cqg.rtd",,"ContractData",A45,"NetLastTradeToday",,"T") -> -5 | I45: =RTD("cqg.rtd", ,"ContractData",A45, "T_CVol") -> 6274 | K45: =IF(RTD("cqg.rtd", ,"ContractData",'SR3'!AF35,"LastTradeorSettle",,"T")="","",TEXT(RTD("cqg.rtd", ,"ContractData",'SR3'!AF35,"LastTradeorSettle",,"T"),"#.000")&" "&"L") -> -154.500 L | L45: =IF(RTD("cqg.rtd", ,"ContractData",'SR3'!AF36,"LastTradeorSettle",,"T")="","",TEXT(RTD("cqg.rtd", ,"ContractData",'SR3'!AF36,"LastTradeorSettle",,"T"),"#.000")&" "&"L") -> -148.000 L | M45: =IF(RTD("cqg.rtd", ,"ContractData",'SR3'!AF37,"LastTradeorSettle",,"T")="","",TEXT(RTD("cqg.rtd", ,"ContractData",'SR3'!AF37,"LastTradeorSettle",,"T"),"#.000")&" "&"L") -> -125.500 L | N45: =IF(RTD("cqg.rtd", ,"ContractData",'SR3'!AF38,"LastTradeorSettle",,"T")="","",TEXT(RTD("cqg.rtd", ,"ContractData",'SR3'!AF38,"LastTradeorSettle",,"T"),"#.000")&" "&"L") -> -87.500 L | O45: =IF(RTD("cqg.rtd", ,"ContractData",'SR3'!AF39,"LastTradeorSettle",,"T")="","",TEXT(RTD("cqg.rtd", ,"ContractData",'SR3'!AF39,"LastTradeorSettle",,"T"),"#.000")&" "&"L") -> -52.500 L | P45: =IF(RTD("cqg.rtd", ,"ContractData",'SR3'!AF40,"LastTradeorSettle",,"T")="","",TEXT(RTD("cqg.rtd", ,"ContractData",'SR3'!AF40,"LastTradeorSettle",,"T"),"#.000")&" "&"L") -> -25.500 L | Q45: =IF(RTD("cqg.rtd", ,"ContractData",'SR3'!AF41,"LastTradeorSettle",,"T")="","",TEXT(RTD("cqg.rtd", ,"ContractData",'SR3'!AF41,"LastTradeorSettle",,"T"),"#.000")&" "&"L") -> -12.000 L | R45: =IF(RTD("cqg.rtd", ,"ContractData",'SR3'!AF42,"LastTradeorSettle",,"T")="","",TEXT(RTD("cqg.rtd", ,"ContractData",'SR3'!AF42,"LastTradeorSettle",,"T"),"#.000")&" "&"L") -> -3.000 L | S45: =IF(RTD("cqg.rtd", ,"ContractData",'SR3'!AF43,"LastTradeorSettle",,"T")="","",TEXT(RTD("cqg.rtd", ,"ContractData",'SR3'!AF43,"LastTradeorSettle",,"T"),"#.000")&" "&"L") -> .500 L | T45: =IF(RTD("cqg.rtd", ,"ContractData",'SR3'!AF44,"LastTradeorSettle",,"T")="","",TEXT(RTD("cqg.rtd", ,"ContractData",'SR3'!AF44,"LastTradeorSettle",,"T"),"#.000")&" "&"L") -> 4.000 L | U45: =IF(RTD("cqg.rtd", ,"ContractData",'SR3'!AF45,"LastTradeorSettle",,"T")="","",TEXT(RTD("cqg.rtd", ,"ContractData",'SR3'!AF45,"LastTradeorSettle",,"T"),"#.000")&" "&"L") -> 6.500 L | V45: =IF(RTD("cqg.rtd", ,"ContractData",'SR3'!AF46,"LastTradeorSettle",,"T")="","",TEXT(RTD("cqg.rtd", ,"ContractData",'SR3'!AF46,"LastTradeorSettle",,"T"),"#.000")&" "&"L") -> 8.000 L | W45: =IF(RTD("cqg.rtd", ,"ContractData",'SR3'!AF47,"LastTradeorSettle",,"T")="","",TEXT(RTD("cqg.rtd", ,"ContractData",'SR3'!AF47,"LastTradeorSettle",,"T"),"#.000")&" "&"L") -> 9.000 L | X45: =IF(RTD("cqg.rtd", ,"ContractData",'SR3'!AF48,"LastTradeorSettle",,"T")="","",TEXT(RTD("cqg.rtd", ,"ContractData",'SR3'!AF48,"LastTradeorSettle",,"T"),"#.000")&" "&"L") -> 11.000 L | Y45: =IF(RTD("cqg.rtd", ,"ContractData",'SR3'!AF49,"LastTradeorSettle",,"T")="","",TEXT(RTD("cqg.rtd", ,"ContractData",'SR3'!AF49,"LastTradeorSettle",,"T"),"#.000")&" "&"L") -> 12.500 L | Z45: =IF(RTD("cqg.rtd", ,"ContractData",'SR3'!AF50,"LastTradeorSettle",,"T")="","",TEXT(RTD("cqg.rtd", ,"ContractData",'SR3'!AF50,"LastTradeorSettle",,"T"),"#.000")&" "&"L") -> 12.500 L | AA45: =IF(RTD("cqg.rtd", ,"ContractData",'SR3'!AF51,"LastTradeorSettle",,"T")="","",TEXT(RTD("cqg.rtd", ,"ContractData",'SR3'!AF51,"LastTradeorSettle",,"T"),"#.000")&" "&"L") -> 14.000 L | AB45: =IF(LEFT(RTD("cqg.rtd",,"ContractData",'SR3'!AF52,"LastTradeorSettle"),3)="768","",IF(RTD("cqg.rtd",,"ContractData",'SR3'!AF52,"LastTradeorSettle")="","",TEXT(RTD("cqg.rtd",,"ContractData",'SR3'!AF52,"LastTradeorSettle"),"#.000")&" "&"L")) ->  | AC45: =IF(LEFT(RTD("cqg.rtd",,"ContractData",'SR3'!AF53,"LastTradeorSettle"),3)="768","",IF(RTD("cqg.rtd",,"ContractData",'SR3'!AF53,"LastTradeorSettle")="","",TEXT(RTD("cqg.rtd",,"ContractData",'SR3'!AF53,"LastTradeorSettle"),"#.000")&" "&"L")) -> 13.000 L | AD45: =IF(LEFT(RTD("cqg.rtd",,"ContractData",'SR3'!AF53,"LastTradeorSettle"),3)="768","",IF(RTD("cqg.rtd",,"ContractData",'SR3'!AF53,"LastTradeorSettle")="","",TEXT(RTD("cqg.rtd",,"ContractData",'SR3'!AF53,"LastTradeorSettle"),"#.000")&" "&"L")) -> 13.000 L
A46: =RTD("cqg.rtd",,"ContractData",'SR3'!AF36, "Symbol") -> SR3S12U23 | B46: =RIGHT(RTD("cqg.rtd",,"ContractData",A46, "LongDescription"),15) -> Sep 23, Sep 24 | C46: =RTD("cqg.rtd", ,"ContractData",A46, "Open",,"T") -> -148.5 | D46: =RTD("cqg.rtd", ,"ContractData",A46, "High",,"T") -> -140 | E46: =RTD("cqg.rtd", ,"ContractData",A46, "Low",,"T") -> -150.5 | F46: =RTD("cqg.rtd", ,"ContractData",A46, "LastTradeorSettle",,"T") -> -148 | G46: =RTD("cqg.rtd",,"ContractData",A46,"NetLastTradeToday",,"T") -> 0 | H46: =RTD("cqg.rtd",,"ContractData",A46,"NetLastTradeToday",,"T") -> 0 | I46: =RTD("cqg.rtd", ,"ContractData",A46, "T_CVol") -> 4064
A47: =RTD("cqg.rtd",,"ContractData",'SR3'!AF37, "Symbol") -> SR3S12Z23 | B47: =RIGHT(RTD("cqg.rtd",,"ContractData",A47, "LongDescription"),15) -> Dec 23, Dec 24 | C47: =RTD("cqg.rtd", ,"ContractData",A47, "Open",,"T") -> -127.5 | D47: =RTD("cqg.rtd", ,"ContractData",A47, "High",,"T") -> -116.5 | E47: =RTD("cqg.rtd", ,"ContractData",A47, "Low",,"T") -> -131.5 | F47: =RTD("cqg.rtd", ,"ContractData",A47, "LastTradeorSettle",,"T") -> -125.5 | G47: =RTD("cqg.rtd",,"ContractData",A47,"NetLastTradeToday",,"T") -> 2.5 | H47: =RTD("cqg.rtd",,"ContractData",A47,"NetLastTradeToday",,"T") -> 2.5 | I47: =RTD("cqg.rtd", ,"ContractData",A47, "T_CVol") -> 8660
A48: =RTD("cqg.rtd",,"ContractData",'SR3'!AF38, "Symbol") -> SR3S12H24 | B48: =RIGHT(RTD("cqg.rtd",,"ContractData",A48, "LongDescription"),15) -> Mar 24, Mar 25 | C48: =RTD("cqg.rtd", ,"ContractData",A48, "Open",,"T") -> -92 | D48: =RTD("cqg.rtd", ,"ContractData",A48, "High",,"T") -> -80.5 | E48: =RTD("cqg.rtd", ,"ContractData",A48, "Low",,"T") -> -95 | F48: =RTD("cqg.rtd", ,"ContractData",A48, "LastTradeorSettle",,"T") -> -87.5 | G48: =RTD("cqg.rtd",,"ContractData",A48,"NetLastTradeToday",,"T") -> 4.5 | H48: =RTD("cqg.rtd",,"ContractData",A48,"NetLastTradeToday",,"T") -> 4.5 | I48: =RTD("cqg.rtd", ,"ContractData",A48, "T_CVol") -> 5805
A49: =RTD("cqg.rtd",,"ContractData",'SR3'!AF39, "Symbol") -> SR3S12M24 | B49: =RIGHT(RTD("cqg.rtd",,"ContractData",A49, "LongDescription"),15) -> Jun 24, Jun 25 | C49: =RTD("cqg.rtd", ,"ContractData",A49, "Open",,"T") -> -55.5 | D49: =RTD("cqg.rtd", ,"ContractData",A49, "High",,"T") -> -46 | E49: =RTD("cqg.rtd", ,"ContractData",A49, "Low",,"T") -> -58.5 | F49: =RTD("cqg.rtd", ,"ContractData",A49, "LastTradeorSettle",,"T") -> -52.5 | G49: =RTD("cqg.rtd",,"ContractData",A49,"NetLastTradeToday",,"T") -> 3.5 | H49: =RTD("cqg.rtd",,"ContractData",A49,"NetLastTradeToday",,"T") -> 3.5 | I49: =RTD("cqg.rtd", ,"ContractData",A49, "T_CVol") -> 7569
A50: =RTD("cqg.rtd",,"ContractData",'SR3'!AF40, "Symbol") -> SR3S12U24 | B50: =RIGHT(RTD("cqg.rtd",,"ContractData",A50, "LongDescription"),15) -> Sep 24, Sep 25 | C50: =RTD("cqg.rtd", ,"ContractData",A50, "Open",,"T") -> -28 | D50: =RTD("cqg.rtd", ,"ContractData",A50, "High",,"T") -> -21 | E50: =RTD("cqg.rtd", ,"ContractData",A50, "Low",,"T") -> -30.5 | F50: =RTD("cqg.rtd", ,"ContractData",A50, "LastTradeorSettle",,"T") -> -25.5 | G50: =RTD("cqg.rtd",,"ContractData",A50,"NetLastTradeToday",,"T") -> 2.5 | H50: =RTD("cqg.rtd",,"ContractData",A50,"NetLastTradeToday",,"T") -> 2.5 | I50: =RTD("cqg.rtd", ,"ContractData",A50, "T_CVol") -> 4431
A51: =RTD("cqg.rtd",,"ContractData",'SR3'!AF41, "Symbol") -> SR3S12Z24 | B51: =RIGHT(RTD("cqg.rtd",,"ContractData",A51, "LongDescription"),15) -> Dec 24, Dec 25 | C51: =RTD("cqg.rtd", ,"ContractData",A51, "Open",,"T") -> -13 | D51: =RTD("cqg.rtd", ,"ContractData",A51, "High",,"T") -> -8.5 | E51: =RTD("cqg.rtd", ,"ContractData",A51, "Low",,"T") -> -15.5 | F51: =RTD("cqg.rtd", ,"ContractData",A51, "LastTradeorSettle",,"T") -> -12 | G51: =RTD("cqg.rtd",,"ContractData",A51,"NetLastTradeToday",,"T") -> 1.5 | H51: =RTD("cqg.rtd",,"ContractData",A51,"NetLastTradeToday",,"T") -> 1.5 | I51: =RTD("cqg.rtd", ,"ContractData",A51, "T_CVol") -> 6565
A52: =RTD("cqg.rtd",,"ContractData",'SR3'!AF42, "Symbol") -> SR3S12H25 | B52: =RIGHT(RTD("cqg.rtd",,"ContractData",A52, "LongDescription"),15) -> Mar 25, Mar 26 | C52: =RTD("cqg.rtd", ,"ContractData",A52, "Open",,"T") -> -4.5 | D52: =RTD("cqg.rtd", ,"ContractData",A52, "High",,"T") -> -1 | E52: =RTD("cqg.rtd", ,"ContractData",A52, "Low",,"T") -> -6.5 | F52: =RTD("cqg.rtd", ,"ContractData",A52, "LastTradeorSettle",,"T") -> -3 | G52: =RTD("cqg.rtd",,"ContractData",A52,"NetLastTradeToday",,"T") -> 1.5 | H52: =RTD("cqg.rtd",,"ContractData",A52,"NetLastTradeToday",,"T") -> 1.5 | I52: =RTD("cqg.rtd", ,"ContractData",A52, "T_CVol") -> 3105
A53: =RTD("cqg.rtd",,"ContractData",'SR3'!AF43, "Symbol") -> SR3S12M25 | B53: =RIGHT(RTD("cqg.rtd",,"ContractData",A53, "LongDescription"),15) -> Jun 25, Jun 26 | C53: =RTD("cqg.rtd", ,"ContractData",A53, "Open",,"T") -> 0 | D53: =RTD("cqg.rtd", ,"ContractData",A53, "High",,"T") -> 2 | E53: =RTD("cqg.rtd", ,"ContractData",A53, "Low",,"T") -> -2 | F53: =RTD("cqg.rtd", ,"ContractData",A53, "LastTradeorSettle",,"T") -> 0.5 | G53: =RTD("cqg.rtd",,"ContractData",A53,"NetLastTradeToday",,"T") -> 1.5 | H53: =RTD("cqg.rtd",,"ContractData",A53,"NetLastTradeToday",,"T") -> 1.5 | I53: =RTD("cqg.rtd", ,"ContractData",A53, "T_CVol") -> 2421
A54: =RTD("cqg.rtd",,"ContractData",'SR3'!AF44, "Symbol") -> SR3S12U25 | B54: =RIGHT(RTD("cqg.rtd",,"ContractData",A54, "LongDescription"),15) -> Sep 25, Sep 26 | C54: =RTD("cqg.rtd", ,"ContractData",A54, "Open",,"T") -> 3.5 | D54: =RTD("cqg.rtd", ,"ContractData",A54, "High",,"T") -> 5 | E54: =RTD("cqg.rtd", ,"ContractData",A54, "Low",,"T") -> 2 | F54: =RTD("cqg.rtd", ,"ContractData",A54, "LastTradeorSettle",,"T") -> 4 | G54: =RTD("cqg.rtd",,"ContractData",A54,"NetLastTradeToday",,"T") -> 1.5 | H54: =RTD("cqg.rtd",,"ContractData",A54,"NetLastTradeToday",,"T") -> 1.5 | I54: =RTD("cqg.rtd", ,"ContractData",A54, "T_CVol") -> 918
A55: =RTD("cqg.rtd",,"ContractData",'SR3'!AF45, "Symbol") -> SR3S12Z25 | B55: =RIGHT(RTD("cqg.rtd",,"ContractData",A55, "LongDescription"),15) -> Dec 25, Dec 26 | C55: =RTD("cqg.rtd", ,"ContractData",A55, "Open",,"T") -> 6 | D55: =RTD("cqg.rtd", ,"ContractData",A55, "High",,"T") -> 7.5 | E55: =RTD("cqg.rtd", ,"ContractData",A55, "Low",,"T") -> 4.5 | F55: =RTD("cqg.rtd", ,"ContractData",A55, "LastTradeorSettle",,"T") -> 6.5 | G55: =RTD("cqg.rtd",,"ContractData",A55,"NetLastTradeToday",,"T") -> 1.5 | H55: =RTD("cqg.rtd",,"ContractData",A55,"NetLastTradeToday",,"T") -> 1.5 | I55: =RTD("cqg.rtd", ,"ContractData",A55, "T_CVol") -> 4676
A56: =RTD("cqg.rtd",,"ContractData",'SR3'!AF46, "Symbol") -> SR3S12H26 | B56: =RIGHT(RTD("cqg.rtd",,"ContractData",A56, "LongDescription"),15) -> Mar 26, Mar 27 | C56: =RTD("cqg.rtd", ,"ContractData",A56, "Open",,"T") -> 7 | D56: =RTD("cqg.rtd", ,"ContractData",A56, "High",,"T") -> 8.5 | E56: =RTD("cqg.rtd", ,"ContractData",A56, "Low",,"T") -> 6 | F56: =RTD("cqg.rtd", ,"ContractData",A56, "LastTradeorSettle",,"T") -> 8 | G56: =RTD("cqg.rtd",,"ContractData",A56,"NetLastTradeToday",,"T") -> 2.5 | H56: =RTD("cqg.rtd",,"ContractData",A56,"NetLastTradeToday",,"T") -> 2.5 | I56: =RTD("cqg.rtd", ,"ContractData",A56, "T_CVol") -> 2935
B57: CQG, Inc. Copyright © 2023 | E57: Designed by Thom Hartle

Sheet SR3 (hidden)
C1: S | D1: 1 | N1: =UPPER(SOFR_3_Mo_Master!E11) -> SR3M23 | Q1: SR3 | R1: LastTradeorSettle | S1: Bid | T1: Ask | U1: NetLastQuoteToday | V1: ="SR3S"&AB25&SOFR_3_Mo_Master!I25 -> SR3S3M23 | AA1: =LEN(AB1) -> 5 | AB1: 1-Mon | AO1: =V1 -> SR3S3M23 | AP1: =AB25*1 -> 3 | AT1: =LEN(AU1) -> 5 | AU1: 1-Mon | AX1: ="SR3S"&AU25&SOFR_3_Mo_Master!I41 -> SR3S12M23 | AY1: =AU25*1 -> 12
A2: =Q2 -> SR3M23 | B2: =RTD("cqg.rtd", ,"ContractData",A2, "ContractMonth") -> JUN | C2: =IF(B2="Jan","F",IF(B2="Feb","G",IF(B2="Mar","H",IF(B2="Apr","J",IF(B2="May","K",IF(B2="JUN","M",IF(B2="Jul","N",IF(B2="Aug","Q",IF(B2="Sep","U",IF(B2="Oct","V",IF(B2="Nov","X",IF(B2="Dec","Z")))))))))))) -> M | D2: =$Q$1&$C$1&$D$1&$C2 -> SR3S1M | N2: =VLOOKUP(N1,Q35:R38,2,FALSE) -> 2 | P2: =LEFT(RIGHT(Q2,2),1) -> 2 | Q2: =N1 -> SR3M23 | R2: =RTD("cqg.rtd", ,"ContractData", Q2, $R$1,,"T") -> 95.175 | S2: =RTD("cqg.rtd", ,"ContractData", Q2,$S$1,,"T") -> 95.17 | T2: =RTD("cqg.rtd", ,"ContractData", Q2,$T$1,,"T") -> 95.175 | U2: =RTD("cqg.rtd", ,"ContractData", "F."&$Q$1&"?1", $U$1,,"T") -> 0.0125 | V2: 1 | W2: ="SR3S"&$AB$25&"?"&V2 -> SR3S3?1 | X2: =RTD("cqg.rtd",,"ContractData",W2,"Symbol",, "T") -> SR3S3H23 | Y2: 1 | Z2: 1 | AA2: =LEN(AB2) -> 5 | AB2: 2-Mon | AK2: =V2 -> 1 | AL2: =X2 -> SR3S3H23 | AN2: 1 | AO2: ="SR3S"&$AP$1&"?"&AN2 -> SR3S3?1 | AP2: =RTD("cqg.rtd",,"ContractData",AO2,"Symbol",, "T") -> SR3S3H23 | AQ2: 1 | AT2: =LEN(AU2) -> 5 | AU2: 2-Mon | AV2: 1 | AW2: ="SR3S"&$AU$25&"?"&AV2 -> SR3S12?1 | AX2: =RTD("cqg.rtd",,"ContractData",AW2,"Symbol",, "T") -> SR3S12H23 | AY2: 1 | AZ2: 1 | BA2: =RTD("cqg.rtd",,"ContractData",AW2,"Symbol",, "T") -> SR3S12H23
A3: =Q3 -> SR3U23 | B3: =RTD("cqg.rtd", ,"ContractData",A3, "ContractMonth") -> SEP | C3: =IF(B3="Jan","F",IF(B3="Feb","G",IF(B3="Mar","H",IF(B3="Apr","J",IF(B3="May","K",IF(B3="JUN","M",IF(B3="Jul","N",IF(B3="Aug","Q",IF(B3="Sep","U",IF(B3="Oct","V",IF(B3="Nov","X",IF(B3="Dec","Z")))))))))))) -> U | D3: =$Q$1&$C$1&$D$1&$C3 -> SR3S1U | N3: =N2+1 -> 3 | P3: =LEFT(RIGHT(Q3,2),1) -> 2 | Q3: =RTD("cqg.rtd", ,"ContractData", $Q$1&"?"&N3, "Symbol") -> SR3U23 | R3: =RTD("cqg.rtd", ,"ContractData", Q3, $R$1,,"T") -> 95.515 | S3: =RTD("cqg.rtd", ,"ContractData", Q3,$S$1,,"T") -> 95.515 | T3: =RTD("cqg.rtd", ,"ContractData", Q3,$T$1,,"T") -> 95.52 | U3: =RTD("cqg.rtd", ,"ContractData", "F."&$Q$1&"?2", $U$1,,"T") -> 0.105 | V3: =V2+1 -> 2 | W3: ="SR3S"&$AB$25&"?"&V3 -> SR3S3?2 | X3: =RTD("cqg.rtd",,"ContractData",W3,"Symbol",, "T") -> SR3S3M23 | Y3: 2 | Z3: =Z2+1 -> 2 | AA3: 5 | AB3: 3-Mon | AK3: =V3 -> 2 | AL3: =X3 -> SR3S3M23 | AN3: =AN2+1 -> 2 | AO3: SR3S3?2 | AP3: =RTD("cqg.rtd",,"ContractData",AO3,"Symbol",, "T") -> SR3S3M23 | AQ3: 2 | AT3: 5 | AU3: 3-Mon | AV3: =AV2+1 -> 2 | AW3: ="SR3S"&$AU$25&"?"&AV3 -> SR3S12?2 | AX3: =RTD("cqg.rtd",,"ContractData",AW3,"Symbol",, "T") -> SR3S12M23 | AY3: 2 | AZ3: =AZ2+1 -> 2 | BA3: =RTD("cqg.rtd",,"ContractData",AW3,"Symbol",, "T") -> SR3S12M23
A4: SR3Z23 | B4: =RTD("cqg.rtd", ,"ContractData",A4, "ContractMonth") -> DEC | C4: Z | D4: SR3S1Z | N4: =N3+1 -> 4 | P4: 2 | Q4: =RTD("cqg.rtd", ,"ContractData", $Q$1&"?"&N4, "Symbol") -> SR3Z23 | R4: =RTD("cqg.rtd", ,"ContractData", Q4, $R$1,,"T") -> 95.89 | S4: =RTD("cqg.rtd", ,"ContractData", Q4,$S$1,,"T") -> 95.885 | T4: =RTD("cqg.rtd", ,"ContractData", Q4,$T$1,,"T") -> 95.89 | U4: =RTD("cqg.rtd", ,"ContractData", "F."&$Q$1&"?3", $U$1,,"T") -> 0.135 | V4: =V3+1 -> 3 | W4: SR3S3?3 | X4: =RTD("cqg.rtd",,"ContractData",W4,"Symbol",, "T") -> SR3S3U23 | Y4: 3 | Z4: =Z3+1 -> 3 | AA4: 5 | AB4: 4-Mon | AK4: 3 | AL4: SR3S3U23 | AN4: =AN3+1 -> 3 | AO4: SR3S3?3 | AP4: =RTD("cqg.rtd",,"ContractData",AO4,"Symbol",, "T") -> SR3S3U23 | AQ4: 3 | AT4: 5 | AU4: 4-Mon | AV4: =AV3+1 -> 3 | AW4: SR3S12?3 | AX4: =RTD("cqg.rtd",,"ContractData",AW4,"Symbol",, "T") -> SR3S12U23 | AY4: 3 | AZ4: =AZ3+1 -> 3 | BA4: =RTD("cqg.rtd",,"ContractData",AW4,"Symbol",, "T") -> SR3S12U23
A5: SR3H24 | B5: =RTD("cqg.rtd", ,"ContractData",A5, "ContractMonth") -> MAR | C5: H | D5: SR3S1H | N5: 5 | P5: 2 | Q5: =RTD("cqg.rtd", ,"ContractData", $Q$1&"?"&N5, "Symbol") -> SR3H24 | R5: =RTD("cqg.rtd", ,"ContractData", Q5, $R$1,,"T") -> 96.34 | S5: =RTD("cqg.rtd", ,"ContractData", Q5,$S$1,,"T") -> 96.34 | T5: =RTD("cqg.rtd", ,"ContractData", Q5,$T$1,,"T") -> 96.345 | U5: =RTD("cqg.rtd", ,"ContractData", "F."&$Q$1&"?4", $U$1,,"T") -> 0.15 | V5: 4 | W5: SR3S3?4 | X5: =RTD("cqg.rtd",,"ContractData",W5,"Symbol",, "T") -> SR3S3Z23 | Y5: 4 | Z5: 4 | AA5: 5 | AB5: 5-Mon | AK5: 4 | AL5: SR3S3Z23 | AN5: 4 | AO5: SR3S3?4 | AP5: =RTD("cqg.rtd",,"ContractData",AO5,"Symbol",, "T") -> SR3S3Z23 | AQ5: 4 | AT5: 5 | AU5: 5-Mon | AV5: 4 | AW5: SR3S12?4 | AX5: =RTD("cqg.rtd",,"ContractData",AW5,"Symbol",, "T") -> SR3S12Z23 | AY5: 4 | AZ5: 4 | BA5: =RTD("cqg.rtd",,"ContractData",AW5,"Symbol",, "T") -> SR3S12Z23
A6: SR3M24 | B6: =RTD("cqg.rtd", ,"ContractData",A6, "ContractMonth") -> JUN | C6: M | D6: SR3S1M | N6: 6 | P6: 2 | Q6: =RTD("cqg.rtd", ,"ContractData", $Q$1&"?"&N6, "Symbol") -> SR3M24 | R6: =RTD("cqg.rtd", ,"ContractData", Q6, $R$1,,"T") -> 96.725 | S6: =RTD("cqg.rtd", ,"ContractData", Q6,$S$1,,"T") -> 96.72 | T6: =RTD("cqg.rtd", ,"ContractData", Q6,$T$1,,"T") -> 96.725 | U6: =RTD("cqg.rtd", ,"ContractData", "F."&$Q$1&"?5", $U$1,,"T") -> 0.16 | V6: 5 | W6: SR3S3?5 | X6: =RTD("cqg.rtd",,"ContractData",W6,"Symbol",, "T") -> SR3S3H24 | Y6: 5 | Z6: 5 | AA6: 5 | AB6: 6-Mon | AK6: 5 | AL6: SR3S3H24 | AN6: 5 | AO6: SR3S3?5 | AP6: =RTD("cqg.rtd",,"ContractData",AO6,"Symbol",, "T") -> SR3S3H24 | AQ6: 5 | AT6: 5 | AU6: 6-Mon | AV6: 5 | AW6: SR3S12?5 | AX6: =RTD("cqg.rtd",,"ContractData",AW6,"Symbol",, "T") -> SR3S12H24 | AY6: 5 | AZ6: 5 | BA6: =RTD("cqg.rtd",,"ContractData",AW6,"Symbol",, "T") -> SR3S12H24
A7: SR3U24 | B7: =RTD("cqg.rtd", ,"ContractData",A7, "ContractMonth") -> SEP | C7: U | D7: SR3S1U | N7: 7 | P7: 2 | Q7: =RTD("cqg.rtd", ,"ContractData", $Q$1&"?"&N7, "Symbol") -> SR3U24 | R7: =RTD("cqg.rtd", ,"ContractData", Q7, $R$1,,"T") -> 97 | S7: =RTD("cqg.rtd", ,"ContractData", Q7,$S$1,,"T") -> 96.995 | T7: =RTD("cqg.rtd", ,"ContractData", Q7,$T$1,,"T") -> 97.005 | U7: =RTD("cqg.rtd", ,"ContractData", "F."&$Q$1&"?6", $U$1,,"T") -> 0.16 | V7: 6 | W7: SR3S3?6 | X7: =RTD("cqg.rtd",,"ContractData",W7,"Symbol",, "T") -> SR3S3M24 | Y7: 6 | Z7: 6 | AA7: 5 | AB7: 7-Mon | AK7: 6 | AL7: SR3S3M24 | AN7: 6 | AO7: SR3S3?6 | AP7: =RTD("cqg.rtd",,"ContractData",AO7,"Symbol",, "T") -> SR3S3M24 | AQ7: 6 | AT7: 5 | AU7: 7-Mon | AV7: 6 | AW7: SR3S12?6 | AX7: =RTD("cqg.rtd",,"ContractData",AW7,"Symbol",, "T") -> SR3S12M24 | AY7: 6 | AZ7: 6 | BA7: =RTD("cqg.rtd",,"ContractData",AW7,"Symbol",, "T") -> SR3S12M24
A8: SR3Z24 | B8: =RTD("cqg.rtd", ,"ContractData",A8, "ContractMonth") -> DEC | C8: Z | D8: SR3S1Z | N8: 8 | P8: 2 | Q8: =RTD("cqg.rtd", ,"ContractData", $Q$1&"?"&N8, "Symbol") -> SR3Z24 | R8: =RTD("cqg.rtd", ,"ContractData", Q8, $R$1,,"T") -> 97.145 | S8: =RTD("cqg.rtd", ,"ContractData", Q8,$S$1,,"T") -> 97.145 | T8: =RTD("cqg.rtd", ,"ContractData", Q8,$T$1,,"T") -> 97.15 | U8: =RTD("cqg.rtd", ,"ContractData", "F."&$Q$1&"?7", $U$1,,"T") -> 0.145 | V8: 7 | W8: SR3S3?7 | X8: =RTD("cqg.rtd",,"ContractData",W8,"Symbol",, "T") -> SR3S3U24 | Y8: 8 | Z8: 7 | AA8: 5 | AB8: 8-Mon | AK8: 7 | AL8: SR3S3U24 | AN8: 7 | AO8: SR3S3?7 | AP8: =RTD("cqg.rtd",,"ContractData",AO8,"Symbol",, "T") -> SR3S3U24 | AQ8: 8 | AT8: 5 | AU8: 8-Mon | AV8: 7 | AW8: SR3S12?7 | AX8: =RTD("cqg.rtd",,"ContractData",AW8,"Symbol",, "T") -> SR3S12U24 | AY8: 8 | AZ8: 7 | BA8: =RTD("cqg.rtd",,"ContractData",AW8,"Symbol",, "T") -> SR3S12U24
A9: SR3H25 | B9: =RTD("cqg.rtd", ,"ContractData",A9, "ContractMonth") -> MAR | C9: H | D9: SR3S1H | N9: 9 | P9: 2 | Q9: =RTD("cqg.rtd", ,"ContractData", $Q$1&"?"&N9, "Symbol") -> SR3H25 | R9: =RTD("cqg.rtd", ,"ContractData", Q9, $R$1,,"T") -> 97.22 | S9: =RTD("cqg.rtd", ,"ContractData", Q9,$S$1,,"T") -> 97.215 | T9: =RTD("cqg.rtd", ,"ContractData", Q9,$T$1,,"T") -> 97.22 | U9: =RTD("cqg.rtd", ,"ContractData", "F."&$Q$1&"?8", $U$1,,"T") -> 0.125 | V9: 8 | W9: SR3S3?8 | X9: =RTD("cqg.rtd",,"ContractData",W9,"Symbol",, "T") -> SR3S3Z24 | Y9: 9 | Z9: 8 | AA9: 5 | AB9: 9-Mon | AK9: 8 | AL9: SR3S3Z24 | AN9: 8 | AO9: SR3S3?8 | AP9: =RTD("cqg.rtd",,"ContractData",AO9,"Symbol",, "T") -> SR3S3Z24 | AQ9: 9 | AT9: 5 | AU9: 9-Mon | AV9: 8 | AW9: SR3S12?8 | AX9: =RTD("cqg.rtd",,"ContractData",AW9,"Symbol",, "T") -> SR3S12Z24 | AY9: 9 | AZ9: 8 | BA9: =RTD("cqg.rtd",,"ContractData",AW9,"Symbol",, "T") -> SR3S12Z24
A10: SR3M25 | B10: =RTD("cqg.rtd", ,"ContractData",A10, "ContractMonth") -> JUN | C10: M | D10: SR3S1M | N10: 10 | P10: 2 | Q10: =RTD("cqg.rtd", ,"ContractData", $Q$1&"?"&N10, "Symbol") -> SR3M25 | R10: =RTD("cqg.rtd", ,"ContractData", Q10, $R$1,,"T") -> 97.245 | S10: =RTD("cqg.rtd", ,"ContractData", Q10,$S$1,,"T") -> 97.24 | T10: =RTD("cqg.rtd", ,"ContractData", Q10,$T$1,,"T") -> 97.245 | U10: =RTD("cqg.rtd", ,"ContractData", "F."&$Q$1&"?9", $U$1,,"T") -> 0.12 | V10: 9 | W10: SR3S3?9 | X10: =RTD("cqg.rtd",,"ContractData",W10,"Symbol",, "T") -> SR3S3H25 | Y10: =VLOOKUP(V1,X2:Y9,2,) -> 2 | Z10: 9 | AA10: 6 | AB10: 12-Mon | AK10: 9 | AL10: SR3S3H25 | AN10: 9 | AO10: SR3S3?9 | AP10: =RTD("cqg.rtd",,"ContractData",AO10,"Symbol",, "T") -> SR3S3H25 | AQ10: =VLOOKUP(AO1,AP2:AQ9,2,) -> 2 | AT10: 6 | AU10: 12-Mon | AV10: 9 | AW10: SR3S12?9 | AY10: =VLOOKUP(AX1,AX2:AY9,2,) -> 2 | AZ10: 9 | BA10: =RTD("cqg.rtd",,"ContractData",AW10,"Symbol",, "T") -> SR3S12H25
A11: SR3U25 | B11: =RTD("cqg.rtd", ,"ContractData",A11, "ContractMonth") -> SEP | C11: U | D11: SR3S1U | N11: 11 | P11: 2 | Q11: =RTD("cqg.rtd", ,"ContractData", $Q$1&"?"&N11, "Symbol") -> SR3U25 | R11: =RTD("cqg.rtd", ,"ContractData", Q11, $R$1,,"T") -> 97.255 | S11: =RTD("cqg.rtd", ,"ContractData", Q11,$S$1,,"T") -> 97.25 | T11: =RTD("cqg.rtd", ,"ContractData", Q11,$T$1,,"T") -> 97.255 | U11: =RTD("cqg.rtd", ,"ContractData", "F."&$Q$1&"?10", $U$1,,"T") -> 0.12 | V11: 10 | W11: SR3S3?10 | X11: =RTD("cqg.rtd",,"ContractData",W11,"Symbol",, "T") -> SR3S3M25 | Z11: 10 | AA11: 6 | AB11: 15-Mon | AK11: 10 | AL11: SR3S3M25 | AN11: 10 | AO11: SR3S3?10 | AP11: =RTD("cqg.rtd",,"ContractData",AO11,"Symbol",, "T") -> SR3S3M25 | AT11: 6 | AU11: 15-Mon | AV11: 10 | AW11: SR3S12?10 | AZ11: 10 | BA11: =RTD("cqg.rtd",,"ContractData",AW11,"Symbol",, "T") -> SR3S12M25
A12: SR3Z25 | B12: =RTD("cqg.rtd", ,"ContractData",A12, "ContractMonth") -> DEC | C12: Z | D12: SR3S1Z | N12: 12 | P12: 2 | Q12: =RTD("cqg.rtd", ,"ContractData", $Q$1&"?"&N12, "Symbol") -> SR3Z25 | R12: =RTD("cqg.rtd", ,"ContractData", Q12, $R$1,,"T") -> 97.265 | S12: =RTD("cqg.rtd", ,"ContractData", Q12,$S$1,,"T") -> 97.26 | T12: =RTD("cqg.rtd", ,"ContractData", Q12,$T$1,,"T") -> 97.265 | U12: =RTD("cqg.rtd", ,"ContractData", "F."&$Q$1&"?11",$U$1,,"T") -> 0.115 | V12: 11 | W12: SR3S3?11 | X12: =RTD("cqg.rtd",,"ContractData",W12,"Symbol",, "T") -> SR3S3U25 | Z12: 11 | AA12: 6 | AB12: 18-Mon | AK12: 11 | AL12: SR3S3U25 | AN12: 11 | AO12: SR3S3?11 | AP12: =RTD("cqg.rtd",,"ContractData",AO12,"Symbol",, "T") -> SR3S3U25 | AT12: 6 | AU12: 18-Mon | AV12: 11 | AW12: SR3S12?11 | AZ12: 11 | BA12: =RTD("cqg.rtd",,"ContractData",AW12,"Symbol",, "T") -> SR3S12U25
A13: SR3H26 | B13: =RTD("cqg.rtd", ,"ContractData",A13, "ContractMonth") -> MAR | C13: H | D13: SR3S1H | N13: 13 | P13: 2 | Q13: =RTD("cqg.rtd", ,"ContractData", $Q$1&"?"&N13, "Symbol") -> SR3H26 | R13: =RTD("cqg.rtd", ,"ContractData", Q13, $R$1,,"T") -> 97.25 | S13: =RTD("cqg.rtd", ,"ContractData", Q13,$S$1,,"T") -> 97.245 | T13: =RTD("cqg.rtd", ,"ContractData", Q13,$T$1,,"T") -> 97.255 | U13: =RTD("cqg.rtd", ,"ContractData", "F."&$Q$1&"?12",$U$1,,"T") -> 0.11 | V13: 12 | W13: SR3S3?12 | X13: =RTD("cqg.rtd",,"ContractData",W13,"Symbol",, "T") -> SR3S3Z25 | Z13: 12 | AA13: 6 | AB13: 21-Mon | AK13: 12 | AL13: SR3S3Z25 | AN13: 12 | AO13: SR3S3?12 | AP13: =RTD("cqg.rtd",,"ContractData",AO13,"Symbol",, "T") -> SR3S3Z25 | AT13: 6 | AU13: 21-Mon | AV13: 12 | AW13: SR3S12?12 | AZ13: 12 | BA13: =RTD("cqg.rtd",,"ContractData",AW13,"Symbol",, "T") -> SR3S12Z25
N14: 14 | P14: 2 | Q14: =RTD("cqg.rtd", ,"ContractData", $Q$1&"?"&N14, "Symbol") -> SR3M26 | R14: =RTD("cqg.rtd", ,"ContractData", Q14, $R$1,,"T") -> 97.24 | S14: =RTD("cqg.rtd", ,"ContractData", Q14,$S$1,,"T") -> 97.235 | T14: =RTD("cqg.rtd", ,"ContractData", Q14,$T$1,,"T") -> 97.24 | U14: =RTD("cqg.rtd", ,"ContractData", "F."&$Q$1&"?12",$U$1,,"T") -> 0.11 | V14: 13 | W14: SR3S3?13 | X14: =RTD("cqg.rtd",,"ContractData",W14,"Symbol",, "T") -> SR3S3H26 | Z14: 13 | AA14: 6 | AB14: 24-Mon | AK14: 13 | AL14: SR3S3H26 | AN14: 13 | AO14: SR3S3?13 | AP14: =RTD("cqg.rtd",,"ContractData",AO14,"Symbol",, "T") -> SR3S3H26 | AT14: 6 | AU14: 24-Mon | AV14: 13 | AW14: SR3S12?13 | AZ14: 13 | BA14: =RTD("cqg.rtd",,"ContractData",AW14,"Symbol",, "T") -> SR3S12H26
N15: 15 | P15: 2 | Q15: =RTD("cqg.rtd", ,"ContractData", $Q$1&"?"&N15, "Symbol") -> SR3U26 | R15: =RTD("cqg.rtd", ,"ContractData", Q15, $R$1,,"T") -> 97.215 | S15: =RTD("cqg.rtd", ,"ContractData", Q15,$S$1,,"T") -> 97.21 | T15: =RTD("cqg.rtd", ,"ContractData", Q15,$T$1,,"T") -> 97.215 | U15: =RTD("cqg.rtd", ,"ContractData", "F."&$Q$1&"?12",$U$1,,"T") -> 0.11 | V15: 14 | W15: SR3S3?14 | X15: =RTD("cqg.rtd",,"ContractData",W15,"Symbol",, "T") -> SR3S3M26 | Z15: 14 | AA15: 6 | AB15: 27-Mon | AK15: 14 | AL15: SR3S3M26 | AN15: 14 | AO15: SR3S3?14 | AP15: =RTD("cqg.rtd",,"ContractData",AO15,"Symbol",, "T") -> SR3S3M26 | AT15: 6 | AU15: 27-Mon | AV15: 14 | AW15: SR3S12?14 | AZ15: 14 | BA15: =RTD("cqg.rtd",,"ContractData",AW15,"Symbol",, "T") -> SR3S12M26
N16: 16 | P16: 2 | Q16: =RTD("cqg.rtd", ,"ContractData", $Q$1&"?"&N16, "Symbol") -> SR3Z26 | R16: =RTD("cqg.rtd", ,"ContractData", Q16, $R$1,,"T") -> 97.2 | S16: =RTD("cqg.rtd", ,"ContractData", Q16,$S$1,,"T") -> 97.195 | T16: =RTD("cqg.rtd", ,"ContractData", Q16,$T$1,,"T") -> 97.2 | U16: =RTD("cqg.rtd", ,"ContractData", "F."&$Q$1&"?12",$U$1,,"T") -> 0.11 | V16: 15 | W16: SR3S3?15 | X16: =RTD("cqg.rtd",,"ContractData",W16,"Symbol",, "T") -> SR3S3U26 | Z16: 15 | AA16: 6 | AB16: 30-Mon | AK16: 15 | AL16: SR3S3U26 | AN16: 15 | AO16: SR3S3?15 | AP16: =RTD("cqg.rtd",,"ContractData",AO16,"Symbol",, "T") -> SR3S3U26 | AT16: 6 | AU16: 30-Mon | AV16: 15 | AW16: SR3S12?15 | AZ16: 15 | BA16: =RTD("cqg.rtd",,"ContractData",AW16,"Symbol",, "T") -> SR3S12U26
C17: Max | D17: Min | N17: 17 | P17: 2 | Q17: =RTD("cqg.rtd", ,"ContractData", $Q$1&"?"&N17, "Symbol") -> SR3H27 | R17: =RTD("cqg.rtd", ,"ContractData", Q17, $R$1,,"T") -> 97.175 | S17: =RTD("cqg.rtd", ,"ContractData", Q17,$S$1,,"T") -> 97.17 | T17: =RTD("cqg.rtd", ,"ContractData", Q17,$T$1,,"T") -> 97.175 | U17: =RTD("cqg.rtd", ,"ContractData", "F."&$Q$1&"?12",$U$1,,"T") -> 0.11 | V17: 16 | W17: SR3S3?16 | X17: =RTD("cqg.rtd",,"ContractData",W17,"Symbol",, "T") -> SR3S3Z26 | Z17: 16 | AA17: 6 | AB17: 33-Mon | AK17: 16 | AL17: SR3S3Z26 | AN17: 16 | AO17: SR3S3?16 | AP17: =RTD("cqg.rtd",,"ContractData",AO17,"Symbol",, "T") -> SR3S3Z26 | AT17: 6 | AU17: 33-Mon | AV17: 16 | AW17: SR3S12?16 | AZ17: 16 | BA17: =RTD("cqg.rtd",,"ContractData",AW17,"Symbol",, "T") -> SR3S12Z26
C18: =ROUNDUP(MAX(C19:C20),0) -> 98 | D18: =ROUNDDOWN(MIN(D19:D20),0) -> 94 | N18: 18 | P18: 2 | Q18: =RTD("cqg.rtd", ,"ContractData", $Q$1&"?"&N18, "Symbol") -> SR3M27 | R18: =IF(RTD("cqg.rtd", ,"ContractData", Q18, $R$1,,"T")="",NA(),RTD("cqg.rtd", ,"ContractData", Q18, $R$1,,"T")) -> 97.145 | S18: =RTD("cqg.rtd", ,"ContractData", Q18,$S$1,,"T") -> 97.14 | T18: =RTD("cqg.rtd", ,"ContractData", Q18,$T$1,,"T") -> 97.15 | U18: =RTD("cqg.rtd", ,"ContractData", "F."&$Q$1&"?12",$U$1,,"T") -> 0.11 | V18: 17 | W18: SR3S3?17 | X18: =RTD("cqg.rtd",,"ContractData",W18,"Symbol",, "T") -> SR3S3H27 | Z18: 17 | AA18: 6 | AB18: 36-Mon | AK18: 17 | AL18: SR3S3H27 | AN18: 17 | AO18: SR3S3?17 | AP18: =RTD("cqg.rtd",,"ContractData",AO18,"Symbol",, "T") -> SR3S3H27 | AT18: 6 | AU18: 36-Mon | AV18: 17 | AW18: SR3S12?17 | AZ18: 17 | BA18: =RTD("cqg.rtd",,"ContractData",AW18,"Symbol",, "T") -> SR3S12H27
C19: =_xlfn.AGGREGATE(4,6,R2:R21) -> 97.265 | D19: =_xlfn.AGGREGATE(5,6,R2:R21) -> 95.175 | N19: 19 | P19: 2 | Q19: =RTD("cqg.rtd", ,"ContractData", $Q$1&"?"&N19, "Symbol") -> SR3U27 | R19: =IF(RTD("cqg.rtd", ,"ContractData", Q19, $R$1,,"T")="",NA(),RTD("cqg.rtd", ,"ContractData", Q19, $R$1,,"T")) -> 97.1 | S19: =RTD("cqg.rtd", ,"ContractData", Q19,$S$1,,"T") -> 97.1 | T19: =RTD("cqg.rtd", ,"ContractData", Q19,$T$1,,"T") -> 97.105 | U19: =RTD("cqg.rtd", ,"ContractData", "F."&$Q$1&"?12",$U$1,,"T") -> 0.11 | V19: 18 | W19: SR3S3?18 | X19: =RTD("cqg.rtd",,"ContractData",W19,"Symbol",, "T") -> SR3S3M27 | Z19: 18 | AA19: 6 | AB19: 39-Mon | AK19: 18 | AL19: SR3S3M27 | AN19: 18 | AO19: SR3S3?18 | AP19: =RTD("cqg.rtd",,"ContractData",AO19,"Symbol",, "T") -> SR3S3M27 | AT19: 6 | AU19: 39-Mon | AV19: 18 | AW19: SR3S12?18 | AZ19: 18 | BA19: =RTD("cqg.rtd",,"ContractData",AW19,"Symbol",, "T") -> SR3S12M27
C20: =_xlfn.AGGREGATE(4,6,B26:D45) -> 97.155 | D20: =_xlfn.AGGREGATE(5,6,B26:D45) -> 94.355 | N20: 20 | P20: 2 | Q20: =RTD("cqg.rtd", ,"ContractData", $Q$1&"?"&N20, "Symbol") -> SR3Z27 | R20: =IF(RTD("cqg.rtd", ,"ContractData", Q20, $R$1,,"T")="",NA(),RTD("cqg.rtd", ,"ContractData", Q20, $R$1,,"T")) -> 97.075 | S20: =RTD("cqg.rtd", ,"ContractData", Q20,$S$1,,"T") -> 97.07 | T20: =RTD("cqg.rtd", ,"ContractData", Q20,$T$1,,"T") -> 97.08 | U20: =RTD("cqg.rtd", ,"ContractData", "F."&$Q$1&"?12",$U$1,,"T") -> 0.11 | V20: 19 | W20: SR3S3?19 | X20: =RTD("cqg.rtd",,"ContractData",W20,"Symbol",, "T") -> SR3S3U27 | Z20: 19 | AA20: 6 | AB20: 42-Mon | AK20: 19 | AL20: SR3S3U27 | AN20: 19 | AO20: SR3S3?19 | AP20: =RTD("cqg.rtd",,"ContractData",AO20,"Symbol",, "T") -> SR3S3U27 | AT20: 6 | AU20: 42-Mon | AV20: 19 | AW20: SR3S12?19 | AZ20: 19 | BA20: =RTD("cqg.rtd",,"ContractData",AW20,"Symbol",, "T") -> SR3S12U27
N21: 21 | P21: 2 | Q21: =RTD("cqg.rtd", ,"ContractData", $Q$1&"?"&N21, "Symbol") -> SR3H28 | R21: =IF(RTD("cqg.rtd", ,"ContractData", Q21, $R$1,,"T")="",NA(),RTD("cqg.rtd", ,"ContractData", Q21, $R$1,,"T")) -> 97.045 | S21: =RTD("cqg.rtd", ,"ContractData", Q21,$S$1,,"T") -> 97.04 | T21: =RTD("cqg.rtd", ,"ContractData", Q21,$T$1,,"T") -> 97.05 | U21: =RTD("cqg.rtd", ,"ContractData", "F."&$Q$1&"?12",$U$1,,"T") -> 0.11 | V21: 20 | W21: SR3S3?20 | X21: =RTD("cqg.rtd",,"ContractData",W21,"Symbol",, "T") -> SR3S3Z27 | Z21: 20 | AA21: 6 | AB21: 45-Mon | AK21: 20 | AL21: SR3S3Z27 | AN21: 20 | AO21: SR3S3?20 | AP21: =RTD("cqg.rtd",,"ContractData",AO21,"Symbol",, "T") -> SR3S3Z27 | AT21: 6 | AU21: 45-Mon | AV21: 20 | AW21: SR3S12?20 | AZ21: 20 | BA21: =RTD("cqg.rtd",,"ContractData",AW21,"Symbol",, "T") -> SR3S12Z27
N22: 22 | P22: 2 | Q22: =RTD("cqg.rtd", ,"ContractData", $Q$1&"?"&N22, "Symbol") -> SR3M28 | R22: =IF(RTD("cqg.rtd", ,"ContractData", Q22, $R$1,,"T")="",NA(),RTD("cqg.rtd", ,"ContractData", Q22, $R$1,,"T")) -> 97.02 | S22: =RTD("cqg.rtd", ,"ContractData", Q22,$S$1,,"T") -> 96.995 | T22: =RTD("cqg.rtd", ,"ContractData", Q22,$T$1,,"T") -> 97.02 | U22: =RTD("cqg.rtd", ,"ContractData", "F."&$Q$1&"?12",$U$1,,"T") -> 0.11 | V22: =V21+1 -> 21 | W22: SR3S3?21 | X22: =RTD("cqg.rtd",,"ContractData",W22,"Symbol",, "T") -> SR3S3H28 | AA22: 6 | AB22: 48-Mon | AK22: =V22 -> 21 | AL22: =X22 -> SR3S3H28 | AN22: =AN21+1 -> 21 | AO22: SR3S3?21 | AP22: =RTD("cqg.rtd",,"ContractData",AO22,"Symbol",, "T") -> SR3S3H28 | AT22: 6 | AU22: 48-Mon | AV22: 21 | AW22: SR3S12?21 | AZ22: 21 | BA22: =RTD("cqg.rtd",,"ContractData",AW22,"Symbol",, "T") -> SR3S12H28
N23: 23 | P23: 2 | Q23: =RTD("cqg.rtd", ,"ContractData", $Q$1&"?"&N23, "Symbol") -> SR3U28 | R23: =IF(RTD("cqg.rtd", ,"ContractData", Q23, $R$1,,"T")="",NA(),RTD("cqg.rtd", ,"ContractData", Q23, $R$1,,"T")) ->  | S23: =RTD("cqg.rtd", ,"ContractData", Q23,$S$1,,"T") -> 96.965 | T23: =RTD("cqg.rtd", ,"ContractData", Q23,$T$1,,"T") -> 96.985 | U23: =RTD("cqg.rtd", ,"ContractData", "F."&$Q$1&"?12",$U$1,,"T") -> 0.11 | V23: 22 | W23: SR3S3?22 | X23: =RTD("cqg.rtd",,"ContractData",W23,"Symbol",, "T") -> SR3S3M28 | Y23: Max | AH23: Max | AK23: 22 | AL23: SR3S3M28 | AN23: 22 | AO23: SR3S3?22 | AP23: =RTD("cqg.rtd",,"ContractData",AO23,"Symbol",, "T") -> SR3S3M28 | AV23: 22 | AW23: SR3S12?22 | AZ23: 22 | BA23: =RTD("cqg.rtd",,"ContractData",AW23,"Symbol",, "T") -> SR3S12M28
V24: 23 | W24: SR3S3?23 | X24: =RTD("cqg.rtd",,"ContractData",W24,"Symbol",, "T") -> SR3S3U28 | Y24: =ROUNDUP(MAX(Y25:Y26),1) -> 4.5 | Z24: =ROUNDUP(MAX(Z25:Z26),1)*-1 -> -45 | AA24: 5 | AB24: =SOFR_3_Mo_Master!D25 -> 3-Mon | AH24: =ROUNDUP(MAX(AH25:AH26),1) -> 14 | AI24: =ROUNDUP(MAX(AI25:AI26),1)*-1 -> -154.5 | AK24: 23 | AL24: SR3S3U28 | AN24: 23 | AO24: SR3S3?23 | AP24: =RTD("cqg.rtd",,"ContractData",AO24,"Symbol",, "T") -> SR3S3U28 | AT24: 6 | AU24: =SOFR_3_Mo_Master!D41 -> 12-Mon | AV24: 23 | AW24: SR3S12?23 | AZ24: 23 | BA24: =RTD("cqg.rtd",,"ContractData",AW24,"Symbol",, "T") -> SR3S12U28
B25: Yesterday | C25: 5-days | D25: 20-days | E25: Yesterday | F25: 5-days | G25: 20-days | V25: 24 | W25: SR3S3?24 | X25: =RTD("cqg.rtd",,"ContractData",W25,"Symbol",, "T") -> SR3S3Z28 | Y25: =_xlfn.AGGREGATE(4,6,V35:V54) -> 4.5 | Z25: =ABS(_xlfn.AGGREGATE(5,6,V35:V54)) -> 45 | AB25: =IF(AA24=5,LEFT(AB24,1),LEFT(AB24,2)) -> 3 | AH25: =_xlfn.AGGREGATE(4,6,AG35:AG54) -> 14 | AI25: =ABS(_xlfn.AGGREGATE(5,6,AG35:AG54)) -> 154.5 | AK25: 24 | AL25: SR3S3Z28 | AN25: 24 | AO25: SR3S3?24 | AP25: =RTD("cqg.rtd",,"ContractData",AO25,"Symbol",, "T") -> SR3S3Z28 | AU25: =IF(AT24=5,LEFT(AU24,1),LEFT(AU24,2)) -> 12 | AV25: 24 | AW25: SR3S12?24 | AZ25: 24 | BA25: =RTD("cqg.rtd",,"ContractData",AW25,"Symbol",, "T") -> SR3S12Z28
B26: =RTD("cqg.rtd",,"StudyData",Q2, "Bar",, "Close","D","-1","All",,,,"T") -> 95.07 | C26: =RTD("cqg.rtd",,"StudyData",Q2, "Bar",, "Close","D","-5","All",,,,"T") -> 95.21 | D26: =RTD("cqg.rtd",,"StudyData",Q2, "Bar",, "Close","D","-20","All",,,,"T") -> 94.4 | E26: =R2-B26 -> 0.105 | F26: =R2-C26 -> -0.035 | G26: =R2-D26 -> 0.775 | V26: 25 | W26: SR3S3?25 | X26: =RTD("cqg.rtd",,"ContractData",W26,"Symbol",, "T") -> SR3S3H29 | Y26: =_xlfn.AGGREGATE(4,6,X35:Z54) -> 4.5 | Z26: =ABS(_xlfn.AGGREGATE(5,6,X35:Z54)) -> 44 | AH26: =_xlfn.AGGREGATE(4,6,AI35:AK54) -> 13 | AI26: =ABS(_xlfn.AGGREGATE(5,6,AI35:AK54)) -> 149.5 | AK26: 25 | AL26: SR3S3H29 | AN26: 25 | AO26: SR3S3?25 | AP26: =RTD("cqg.rtd",,"ContractData",AO26,"Symbol",, "T") -> SR3S3H29 | AV26: 25 | AW26: SR3S12?25 | AZ26: 25 | BA26: =RTD("cqg.rtd",,"ContractData",AW26,"Symbol",, "T") -> SR3S12H29
B27: =RTD("cqg.rtd",,"StudyData",Q3, "Bar",, "Close","D","-1","All",,,,"T") -> 95.38 | C27: =RTD("cqg.rtd",,"StudyData",Q3, "Bar",, "Close","D","-5","All",,,,"T") -> 95.485 | D27: =RTD("cqg.rtd",,"StudyData",Q3, "Bar",, "Close","D","-20","All",,,,"T") -> 94.355 | E27: =R3-B27 -> 0.135 | F27: =R3-C27 -> 0.03 | G27: =R3-D27 -> 1.16 | AK27: 0 | AL27: 0 | AN27: 26 | AO27: SR3S3?26 | AP27: =RTD("cqg.rtd",,"ContractData",AO27,"Symbol",, "T") -> SR3S3M29 | AV27: =AV26+1 -> 26 | AW27: SR3S12?26 | AZ27: 26 | BA27: =RTD("cqg.rtd",,"ContractData",AW27,"Symbol",, "T") -> SR3S12M29
B28: =RTD("cqg.rtd",,"StudyData",Q4, "Bar",, "Close","D","-1","All",,,,"T") -> 95.74 | C28: =RTD("cqg.rtd",,"StudyData",Q4, "Bar",, "Close","D","-5","All",,,,"T") -> 95.765 | D28: =RTD("cqg.rtd",,"StudyData",Q4, "Bar",, "Close","D","-20","All",,,,"T") -> 94.51 | E28: 0.15 | F28: 0.125 | G28: 1.38 | AK28: 0 | AL28: 0 | AN28: 27 | AO28: SR3S3?27 | AP28: =RTD("cqg.rtd",,"ContractData",AO28,"Symbol",, "T") -> SR3S3U29 | AV28: 27 | AW28: SR3S12?27 | AZ28: 27 | BA28: =RTD("cqg.rtd",,"ContractData",AW28,"Symbol",, "T") -> SR3S12U29
B29: =RTD("cqg.rtd",,"StudyData",Q5, "Bar",, "Close","D","-1","All",,,,"T") -> 96.18 | C29: =RTD("cqg.rtd",,"StudyData",Q5, "Bar",, "Close","D","-5","All",,,,"T") -> 96.135 | D29: =RTD("cqg.rtd",,"StudyData",Q5, "Bar",, "Close","D","-20","All",,,,"T") -> 94.85 | E29: 0.16 | F29: 0.205 | G29: 1.49 | AN29: 28 | AO29: SR3S3?28 | AP29: =RTD("cqg.rtd",,"ContractData",AO29,"Symbol",, "T") -> SR3S3Z29 | AV29: 28 | AW29: SR3S12?28 | AZ29: 28 | BA29: =RTD("cqg.rtd",,"ContractData",AW29,"Symbol",, "T") -> SR3S12Z29
B30: =RTD("cqg.rtd",,"StudyData",Q6, "Bar",, "Close","D","-1","All",,,,"T") -> 96.565 | C30: =RTD("cqg.rtd",,"StudyData",Q6, "Bar",, "Close","D","-5","All",,,,"T") -> 96.46 | D30: =RTD("cqg.rtd",,"StudyData",Q6, "Bar",, "Close","D","-20","All",,,,"T") -> 95.285 | E30: 0.16 | F30: 0.265 | G30: 1.44 | AH30: =RTD("cqg.rtd",,"ContractData",AF35,"LongDescription",, "T") -> 3 Month SOFR Calendar Spread 12, Jun 23, Jun 24
B31: =RTD("cqg.rtd",,"StudyData",Q7, "Bar",, "Close","D","-1","All",,,,"T") -> 96.86 | C31: =RTD("cqg.rtd",,"StudyData",Q7, "Bar",, "Close","D","-5","All",,,,"T") -> 96.71 | D31: =RTD("cqg.rtd",,"StudyData",Q7, "Bar",, "Close","D","-20","All",,,,"T") -> 95.695 | E31: 0.14 | F31: 0.29 | G31: 1.305 | U31: =SOFR_3_Mo_Master!I25 -> M23 | W31: =RTD("cqg.rtd",,"ContractData",U32,"LongDescription",, "T") -> 3 Month SOFR Calendar Spread 6, Jun 23, Dec 23 | AH31: =RTD("cqg.rtd",,"ContractData",AF36,"LongDescription",, "T") -> 3 Month SOFR Calendar Spread 12, Sep 23, Sep 24
B32: =RTD("cqg.rtd",,"StudyData",Q8, "Bar",, "Close","D","-1","All",,,,"T") -> 97.02 | C32: =RTD("cqg.rtd",,"StudyData",Q8, "Bar",, "Close","D","-5","All",,,,"T") -> 96.845 | D32: =RTD("cqg.rtd",,"StudyData",Q8, "Bar",, "Close","D","-20","All",,,,"T") -> 96 | E32: 0.125 | F32: 0.3 | G32: 1.145 | U32: SR3S6M23 | W32: =RTD("cqg.rtd",,"ContractData",U35,"LongDescription",, "T") -> 3 Month SOFR Calendar Spread 3, Jun 23, Sep 23 | X32: =IF(LEFT(RTD("cqg.rtd",,"StudyData",U35, "Bar",, "Close","D","-1","All",,,,"T"),3)="768",NA(),IF(RTD("cqg.rtd",,"StudyData",U35, "Bar",, "Close","D","-1","All",,,,"T")="",NA(),RTD("cqg.rtd",,"StudyData",U35, "Bar",, "Close","D","-1","All",,,,"T"))) -> -31 | AH32: =AG35 -> -154.5
B33: =RTD("cqg.rtd",,"StudyData",Q9, "Bar",, "Close","D","-1","All",,,,"T") -> 97.1 | C33: =RTD("cqg.rtd",,"StudyData",Q9, "Bar",, "Close","D","-5","All",,,,"T") -> 96.91 | D33: =RTD("cqg.rtd",,"StudyData",Q9, "Bar",, "Close","D","-20","All",,,,"T") -> 96.195 | E33: 0.12 | F33: 0.31 | G33: 1.025
B34: =RTD("cqg.rtd",,"StudyData",Q10, "Bar",, "Close","D","-1","All",,,,"T") -> 97.125 | C34: =RTD("cqg.rtd",,"StudyData",Q10, "Bar",, "Close","D","-5","All",,,,"T") -> 96.935 | D34: =RTD("cqg.rtd",,"StudyData",Q10, "Bar",, "Close","D","-20","All",,,,"T") -> 96.315 | E34: 0.12 | F34: 0.31 | G34: 0.93 | R34: Symbol Check | X34: Yesterday | Y34: 5-days | Z34: 20-days | AA34: Yesterday | AB34: 5-days | AC34: 20-days | AI34: Yesterday | AJ34: 5-days | AK34: 20-days | AL34: Yesterday | AM34: 5-days | AN34: 20-days
B35: =RTD("cqg.rtd",,"StudyData",Q11, "Bar",, "Close","D","-1","All",,,,"T") -> 97.14 | C35: =RTD("cqg.rtd",,"StudyData",Q11, "Bar",, "Close","D","-5","All",,,,"T") -> 96.945 | D35: =RTD("cqg.rtd",,"StudyData",Q11, "Bar",, "Close","D","-20","All",,,,"T") -> 96.41 | E35: 0.115 | F35: 0.31 | G35: 0.845 | Q35: =RTD("cqg.rtd",,"ContractData",Q1&"?1", "Symbol") -> SR3H23 | R35: 1 | S35: =RTD("cqg.rtd",,"ContractData",Q1&"?1", "Symbol") -> SR3H23 | T35: =AQ10 -> 2 | U35: =VLOOKUP($Y$10,$AK$2:$AL$26,2,FALSE) -> SR3S3M23 | V35: =IF(LEFT(RTD("cqg.rtd", ,"ContractData", U35,"LastTradeorSettle",,"T"),3)="768",NA(),IF(RTD("cqg.rtd", ,"ContractData", U35,"LastTradeorSettle",,"T")="",NA(),RTD("cqg.rtd", ,"ContractData", U35,"LastTradeorSettle",,"T"))) -> -34.5 | X35: =IF(LEFT(RTD("cqg.rtd",,"StudyData",U35, "Bar",, "Close","D","-1","All",,,,"T"),3)="777",NA(),IF(RTD("cqg.rtd",,"StudyData",U35, "Bar",, "Close","D","-1","All",,,,"T")="",NA(),RTD("cqg.rtd",,"StudyData",U35, "Bar",, "Close","D","-1","All",,,,"T"))) -> -31 | Y35: =IF(LEFT(RTD("cqg.rtd",,"StudyData",U35, "Bar",, "Close","D","-5","All",,,,"T"),3)="777",NA(),IF(RTD("cqg.rtd",,"StudyData",U35, "Bar",, "Close","D","-5","All",,,,"T")="",NA(),RTD("cqg.rtd",,"StudyData",U35, "Bar",, "Close","D","-5","All",,,,"T"))) -> -27.5 | Z35: =IF(LEFT(RTD("cqg.rtd",,"StudyData",U35, "Bar",, "Close","D","-20","All",,,,"T"),3)="777",NA(),IF(RTD("cqg.rtd",,"StudyData",U35, "Bar",, "Close","D","-20","All",,,,"T")="",NA(),RTD("cqg.rtd",,"StudyData",U35, "Bar",, "Close","D","-20","All",,,,"T"))) -> 4.5 | AA35: =IFERROR($V35-X35,NA()) -> -3.5 | AB35: =IFERROR($V35-Y35,NA()) -> -7 | AC35: =IFERROR($V35-Z35,NA()) -> -39 | AE35: =AY10 -> 2 | AF35: =VLOOKUP(AY10,$AZ$2:$BA$29,2,FALSE) -> SR3S12M23 | AG35: =IF(LEFT(RTD("cqg.rtd", ,"ContractData", AF35,"LastTradeorSettle",,"T"),3)="768",NA(),IF(RTD("cqg.rtd", ,"ContractData", AF35,"LastTradeorSettle",,"T")="",NA(),RTD("cqg.rtd", ,"ContractData", AF35,"LastTradeorSettle",,"T"))) -> -154.5 | AI35: =IF(LEFT(RTD("cqg.rtd",,"StudyData",AF35, "Bar",, "Close","D","-1","All",,,,"T"),3)="777",NA(),IF(RTD("cqg.rtd",,"StudyData",AF35, "Bar",, "Close","D","-1","All",,,,"T")="",NA(),RTD("cqg.rtd",,"StudyData",AF35, "Bar",, "Close","D","-1","All",,,,"T"))) -> -149.5 | AJ35: =IF(LEFT(RTD("cqg.rtd",,"StudyData",AF35, "Bar",, "Close","D","-5","All",,,,"T"),3)="777",NA(),IF(RTD("cqg.rtd",,"StudyData",AF35, "Bar",, "Close","D","-5","All",,,,"T")="",NA(),RTD("cqg.rtd",,"StudyData",AF35, "Bar",, "Close","D","-5","All",,,,"T"))) -> -125 | AK35: =IF(LEFT(RTD("cqg.rtd",,"StudyData",AF35, "Bar",, "Close","D","-20","All",,,,"T"),3)="777",NA(),IF(RTD("cqg.rtd",,"StudyData",AF35, "Bar",, "Close","D","-20","All",,,,"T")="",NA(),RTD("cqg.rtd",,"StudyData",AF35, "Bar",, "Close","D","-20","All",,,,"T"))) -> -88.5 | AL35: =$AG35-$AI35 -> -5 | AM35: =$AG35-$AJ35 -> -29.5 | AN35: =$AG35-$AK35 -> -66
B36: =RTD("cqg.rtd",,"StudyData",Q12, "Bar",, "Close","D","-1","All",,,,"T") -> 97.155 | C36: =RTD("cqg.rtd",,"StudyData",Q12, "Bar",, "Close","D","-5","All",,,,"T") -> 96.955 | D36: =RTD("cqg.rtd",,"StudyData",Q12, "Bar",, "Close","D","-20","All",,,,"T") -> 96.49 | E36: 0.11 | F36: 0.31 | G36: 0.775 | Q36: =RTD("cqg.rtd",,"ContractData",Q1&"?2", "Symbol") -> SR3M23 | R36: =R35+1 -> 2 | S36: =RTD("cqg.rtd",,"ContractData",Q1&"?2", "Symbol") -> SR3M23 | T36: =T35+1 -> 3 | U36: =VLOOKUP(T36,$AK$2:$AL$26,2,FALSE) -> SR3S3U23 | V36: =IF(LEFT(RTD("cqg.rtd", ,"ContractData", U36,"LastTradeorSettle",,"T"),3)="768",NA(),IF(RTD("cqg.rtd", ,"ContractData", U36,"LastTradeorSettle",,"T")="",NA(),RTD("cqg.rtd", ,"ContractData", U36,"LastTradeorSettle",,"T"))) -> -37 | X36: =IF(LEFT(RTD("cqg.rtd",,"StudyData",U36, "Bar",, "Close","D","-1","All",,,,"T"),3)="777",NA(),IF(RTD("cqg.rtd",,"StudyData",U36, "Bar",, "Close","D","-1","All",,,,"T")="",NA(),RTD("cqg.rtd",,"StudyData",U36, "Bar",, "Close","D","-1","All",,,,"T"))) -> -36 | Y36: =IF(LEFT(RTD("cqg.rtd",,"StudyData",U36, "Bar",, "Close","D","-5","All",,,,"T"),3)="777",NA(),IF(RTD("cqg.rtd",,"StudyData",U36, "Bar",, "Close","D","-5","All",,,,"T")="",NA(),RTD("cqg.rtd",,"StudyData",U36, "Bar",, "Close","D","-5","All",,,,"T"))) -> -28 | Z36: =IF(LEFT(RTD("cqg.rtd",,"StudyData",U36, "Bar",, "Close","D","-20","All",,,,"T"),3)="777",NA(),IF(RTD("cqg.rtd",,"StudyData",U36, "Bar",, "Close","D","-20","All",,,,"T")="",NA(),RTD("cqg.rtd",,"StudyData",U36, "Bar",, "Close","D","-20","All",,,,"T"))) -> -15.5 | AA36: =IFERROR($V36-X36,NA()) -> -1 | AB36: =IFERROR($V36-Y36,NA()) -> -9 | AC36: =IFERROR($V36-Z36,NA()) -> -21.5 | AE36: =AE35+1 -> 3 | AF36: =VLOOKUP(AE36,$AZ$2:$BA$29,2,FALSE) -> SR3S12U23 | AG36: =IF(LEFT(RTD("cqg.rtd", ,"ContractData", AF36,"LastTradeorSettle",,"T"),3)="768",NA(),IF(RTD("cqg.rtd", ,"ContractData", AF36,"LastTradeorSettle",,"T")="",NA(),RTD("cqg.rtd", ,"ContractData", AF36,"LastTradeorSettle",,"T"))) -> -148 | AI36: =IF(LEFT(RTD("cqg.rtd",,"StudyData",AF36, "Bar",, "Close","D","-1","All",,,,"T"),3)="777",NA(),IF(RTD("cqg.rtd",,"StudyData",AF36, "Bar",, "Close","D","-1","All",,,,"T")="",NA(),RTD("cqg.rtd",,"StudyData",AF36, "Bar",, "Close","D","-1","All",,,,"T"))) -> -148 | AJ36: =IF(LEFT(RTD("cqg.rtd",,"StudyData",AF36, "Bar",, "Close","D","-5","All",,,,"T"),3)="777",NA(),IF(RTD("cqg.rtd",,"StudyData",AF36, "Bar",, "Close","D","-5","All",,,,"T")="",NA(),RTD("cqg.rtd",,"StudyData",AF36, "Bar",, "Close","D","-5","All",,,,"T"))) -> -122.5 | AK36: =IF(LEFT(RTD("cqg.rtd",,"StudyData",AF36, "Bar",, "Close","D","-20","All",,,,"T"),3)="777",NA(),IF(RTD("cqg.rtd",,"StudyData",AF36, "Bar",, "Close","D","-20","All",,,,"T")="",NA(),RTD("cqg.rtd",,"StudyData",AF36, "Bar",, "Close","D","-20","All",,,,"T"))) -> -134 | AL36: =$AG36-$AI36 -> 0 | AM36: =$AG36-$AJ36 -> -25.5 | AN36: =$AG36-$AK36 -> -14
B37: =RTD("cqg.rtd",,"StudyData",Q13, "Bar",, "Close","D","-1","All",,,,"T") -> 97.145 | C37: =RTD("cqg.rtd",,"StudyData",Q13, "Bar",, "Close","D","-5","All",,,,"T") -> 96.94 | D37: =RTD("cqg.rtd",,"StudyData",Q13, "Bar",, "Close","D","-20","All",,,,"T") -> 96.55 | E37: 0.105 | F37: 0.31 | G37: 0.7 | Q37: =RTD("cqg.rtd",,"ContractData",Q1&"?3", "Symbol") -> SR3U23 | R37: =R36+1 -> 3 | S37: =RTD("cqg.rtd",,"ContractData",Q1&"?3", "Symbol") -> SR3U23 | T37: =T36+1 -> 4 | U37: =VLOOKUP(T37,$AK$2:$AL$26,2,FALSE) -> SR3S3Z23 | V37: =IF(LEFT(RTD("cqg.rtd", ,"ContractData", U37,"LastTradeorSettle",,"T"),3)="768",NA(),IF(RTD("cqg.rtd", ,"ContractData", U37,"LastTradeorSettle",,"T")="",NA(),RTD("cqg.rtd", ,"ContractData", U37,"LastTradeorSettle",,"T"))) -> -45 | X37: =IF(LEFT(RTD("cqg.rtd",,"StudyData",U37, "Bar",, "Close","D","-1","All",,,,"T"),3)="777",NA(),IF(RTD("cqg.rtd",,"StudyData",U37, "Bar",, "Close","D","-1","All",,,,"T")="",NA(),RTD("cqg.rtd",,"StudyData",U37, "Bar",, "Close","D","-1","All",,,,"T"))) -> -44 | Y37: =IF(LEFT(RTD("cqg.rtd",,"StudyData",U37, "Bar",, "Close","D","-5","All",,,,"T"),3)="777",NA(),IF(RTD("cqg.rtd",,"StudyData",U37, "Bar",, "Close","D","-5","All",,,,"T")="",NA(),RTD("cqg.rtd",,"StudyData",U37, "Bar",, "Close","D","-5","All",,,,"T"))) -> -37 | Z37: =IF(LEFT(RTD("cqg.rtd",,"StudyData",U37, "Bar",, "Close","D","-20","All",,,,"T"),3)="777",NA(),IF(RTD("cqg.rtd",,"StudyData",U37, "Bar",, "Close","D","-20","All",,,,"T")="",NA(),RTD("cqg.rtd",,"StudyData",U37, "Bar",, "Close","D","-20","All",,,,"T"))) -> -34 | AA37: -1 | AB37: -8 | AC37: -11 | AE37: =AE36+1 -> 4 | AF37: =VLOOKUP(AE37,$AZ$2:$BA$29,2,FALSE) -> SR3S12Z23 | AG37: =IF(LEFT(RTD("cqg.rtd", ,"ContractData", AF37,"LastTradeorSettle",,"T"),3)="768",NA(),IF(RTD("cqg.rtd", ,"ContractData", AF37,"LastTradeorSettle",,"T")="",NA(),RTD("cqg.rtd", ,"ContractData", AF37,"LastTradeorSettle",,"T"))) -> -125.5 | AI37: =IF(LEFT(RTD("cqg.rtd",,"StudyData",AF37, "Bar",, "Close","D","-1","All",,,,"T"),3)="777",NA(),IF(RTD("cqg.rtd",,"StudyData",AF37, "Bar",, "Close","D","-1","All",,,,"T")="",NA(),RTD("cqg.rtd",,"StudyData",AF37, "Bar",, "Close","D","-1","All",,,,"T"))) -> -128 | AJ37: =IF(LEFT(RTD("cqg.rtd",,"StudyData",AF37, "Bar",, "Close","D","-5","All",,,,"T"),3)="777",NA(),IF(RTD("cqg.rtd",,"StudyData",AF37, "Bar",, "Close","D","-5","All",,,,"T")="",NA(),RTD("cqg.rtd",,"StudyData",AF37, "Bar",, "Close","D","-5","All",,,,"T"))) -> -108 | AK37: =IF(LEFT(RTD("cqg.rtd",,"StudyData",AF37, "Bar",, "Close","D","-20","All",,,,"T"),3)="777",NA(),IF(RTD("cqg.rtd",,"StudyData",AF37, "Bar",, "Close","D","-20","All",,,,"T")="",NA(),RTD("cqg.rtd",,"StudyData",AF37, "Bar",, "Close","D","-20","All",,,,"T"))) -> -149 | AL37: 2.5 | AM37: -17.5 | AN37: 23.5
B38: =RTD("cqg.rtd",,"StudyData",Q14, "Bar",, "Close","D","-1","All",,,,"T") -> 97.135 | C38: =RTD("cqg.rtd",,"StudyData",Q14, "Bar",, "Close","D","-5","All",,,,"T") -> 96.935 | D38: =RTD("cqg.rtd",,"StudyData",Q14, "Bar",, "Close","D","-20","All",,,,"T") -> 96.59 | E38: 0.105 | F38: 0.305 | G38: 0.65 | Q38: =RTD("cqg.rtd",,"ContractData",Q1&"?4", "Symbol") -> SR3Z23 | R38: 4 | S38: =RTD("cqg.rtd",,"ContractData",Q1&"?4", "Symbol") -> SR3Z23 | T38: 5 | U38: SR3S3H24 | V38: =IF(LEFT(RTD("cqg.rtd", ,"ContractData", U38,"LastTradeorSettle",,"T"),3)="768",NA(),IF(RTD("cqg.rtd", ,"ContractData", U38,"LastTradeorSettle",,"T")="",NA(),RTD("cqg.rtd", ,"ContractData", U38,"LastTradeorSettle",,"T"))) -> -38 | X38: =IF(LEFT(RTD("cqg.rtd",,"StudyData",U38, "Bar",, "Close","D","-1","All",,,,"T"),3)="777",NA(),IF(RTD("cqg.rtd",,"StudyData",U38, "Bar",, "Close","D","-1","All",,,,"T")="",NA(),RTD("cqg.rtd",,"StudyData",U38, "Bar",, "Close","D","-1","All",,,,"T"))) -> -38.5 | Y38: =IF(LEFT(RTD("cqg.rtd",,"StudyData",U38, "Bar",, "Close","D","-5","All",,,,"T"),3)="777",NA(),IF(RTD("cqg.rtd",,"StudyData",U38, "Bar",, "Close","D","-5","All",,,,"T")="",NA(),RTD("cqg.rtd",,"StudyData",U38, "Bar",, "Close","D","-5","All",,,,"T"))) -> -32.5 | Z38: =IF(LEFT(RTD("cqg.rtd",,"StudyData",U38, "Bar",, "Close","D","-20","All",,,,"T"),3)="777",NA(),IF(RTD("cqg.rtd",,"StudyData",U38, "Bar",, "Close","D","-20","All",,,,"T")="",NA(),RTD("cqg.rtd",,"StudyData",U38, "Bar",, "Close","D","-20","All",,,,"T"))) -> -43.5 | AA38: 0.5 | AB38: -5.5 | AC38: 5.5 | AE38: 5 | AF38: SR3S12H24 | AG38: =IF(LEFT(RTD("cqg.rtd", ,"ContractData", AF38,"LastTradeorSettle",,"T"),3)="768",NA(),IF(RTD("cqg.rtd", ,"ContractData", AF38,"LastTradeorSettle",,"T")="",NA(),RTD("cqg.rtd", ,"ContractData", AF38,"LastTradeorSettle",,"T"))) -> -87.5 | AI38: =IF(LEFT(RTD("cqg.rtd",,"StudyData",AF38, "Bar",, "Close","D","-1","All",,,,"T"),3)="777",NA(),IF(RTD("cqg.rtd",,"StudyData",AF38, "Bar",, "Close","D","-1","All",,,,"T")="",NA(),RTD("cqg.rtd",,"StudyData",AF38, "Bar",, "Close","D","-1","All",,,,"T"))) -> -92 | AJ38: =IF(LEFT(RTD("cqg.rtd",,"StudyData",AF38, "Bar",, "Close","D","-5","All",,,,"T"),3)="777",NA(),IF(RTD("cqg.rtd",,"StudyData",AF38, "Bar",, "Close","D","-5","All",,,,"T")="",NA(),RTD("cqg.rtd",,"StudyData",AF38, "Bar",, "Close","D","-5","All",,,,"T"))) -> -77.5 | AK38: =IF(LEFT(RTD("cqg.rtd",,"StudyData",AF38, "Bar",, "Close","D","-20","All",,,,"T"),3)="777",NA(),IF(RTD("cqg.rtd",,"StudyData",AF38, "Bar",, "Close","D","-20","All",,,,"T")="",NA(),RTD("cqg.rtd",,"StudyData",AF38, "Bar",, "Close","D","-20","All",,,,"T"))) -> -134.5 | AL38: 4.5 | AM38: -10 | AN38: 47
B39: =RTD("cqg.rtd",,"StudyData",Q15, "Bar",, "Close","D","-1","All",,,,"T") -> 97.115 | C39: =RTD("cqg.rtd",,"StudyData",Q15, "Bar",, "Close","D","-5","All",,,,"T") -> 96.92 | D39: =RTD("cqg.rtd",,"StudyData",Q15, "Bar",, "Close","D","-20","All",,,,"T") -> 96.625 | E39: 0.1 | F39: 0.295 | G39: 0.59 | R39: 5 | T39: 6 | U39: SR3S3M24 | V39: =IF(LEFT(RTD("cqg.rtd", ,"ContractData", U39,"LastTradeorSettle",,"T"),3)="768",NA(),IF(RTD("cqg.rtd", ,"ContractData", U39,"LastTradeorSettle",,"T")="",NA(),RTD("cqg.rtd", ,"ContractData", U39,"LastTradeorSettle",,"T"))) -> -27.5 | X39: =IF(LEFT(RTD("cqg.rtd",,"StudyData",U39, "Bar",, "Close","D","-1","All",,,,"T"),3)="777",NA(),IF(RTD("cqg.rtd",,"StudyData",U39, "Bar",, "Close","D","-1","All",,,,"T")="",NA(),RTD("cqg.rtd",,"StudyData",U39, "Bar",, "Close","D","-1","All",,,,"T"))) -> -29.5 | Y39: =IF(LEFT(RTD("cqg.rtd",,"StudyData",U39, "Bar",, "Close","D","-5","All",,,,"T"),3)="777",NA(),IF(RTD("cqg.rtd",,"StudyData",U39, "Bar",, "Close","D","-5","All",,,,"T")="",NA(),RTD("cqg.rtd",,"StudyData",U39, "Bar",, "Close","D","-5","All",,,,"T"))) -> -25 | Z39: =IF(LEFT(RTD("cqg.rtd",,"StudyData",U39, "Bar",, "Close","D","-20","All",,,,"T"),3)="777",NA(),IF(RTD("cqg.rtd",,"StudyData",U39, "Bar",, "Close","D","-20","All",,,,"T")="",NA(),RTD("cqg.rtd",,"StudyData",U39, "Bar",, "Close","D","-20","All",,,,"T"))) -> -41 | AA39: 2 | AB39: -2.5 | AC39: 13.5 | AE39: 6 | AF39: SR3S12M24 | AG39: =IF(LEFT(RTD("cqg.rtd", ,"ContractData", AF39,"LastTradeorSettle",,"T"),3)="768",NA(),IF(RTD("cqg.rtd", ,"ContractData", AF39,"LastTradeorSettle",,"T")="",NA(),RTD("cqg.rtd", ,"ContractData", AF39,"LastTradeorSettle",,"T"))) -> -52.5 | AI39: =IF(LEFT(RTD("cqg.rtd",,"StudyData",AF39, "Bar",, "Close","D","-1","All",,,,"T"),3)="777",NA(),IF(RTD("cqg.rtd",,"StudyData",AF39, "Bar",, "Close","D","-1","All",,,,"T")="",NA(),RTD("cqg.rtd",,"StudyData",AF39, "Bar",, "Close","D","-1","All",,,,"T"))) -> -56 | AJ39: =IF(LEFT(RTD("cqg.rtd",,"StudyData",AF39, "Bar",, "Close","D","-5","All",,,,"T"),3)="777",NA(),IF(RTD("cqg.rtd",,"StudyData",AF39, "Bar",, "Close","D","-5","All",,,,"T")="",NA(),RTD("cqg.rtd",,"StudyData",AF39, "Bar",, "Close","D","-5","All",,,,"T"))) -> -47.5 | AK39: =IF(LEFT(RTD("cqg.rtd",,"StudyData",AF39, "Bar",, "Close","D","-20","All",,,,"T"),3)="777",NA(),IF(RTD("cqg.rtd",,"StudyData",AF39, "Bar",, "Close","D","-20","All",,,,"T")="",NA(),RTD("cqg.rtd",,"StudyData",AF39, "Bar",, "Close","D","-20","All",,,,"T"))) -> -103 | AL39: 3.5 | AM39: -5 | AN39: 50.5
B40: =RTD("cqg.rtd",,"StudyData",Q16, "Bar",, "Close","D","-1","All",,,,"T") -> 97.105 | C40: =RTD("cqg.rtd",,"StudyData",Q16, "Bar",, "Close","D","-5","All",,,,"T") -> 96.915 | D40: =RTD("cqg.rtd",,"StudyData",Q16, "Bar",, "Close","D","-20","All",,,,"T") -> 96.65 | E40: 0.095 | F40: 0.285 | G40: 0.55 | R40: 6 | T40: 7 | U40: SR3S3U24 | V40: =IF(LEFT(RTD("cqg.rtd", ,"ContractData", U40,"LastTradeorSettle",,"T"),3)="768",NA(),IF(RTD("cqg.rtd", ,"ContractData", U40,"LastTradeorSettle",,"T")="",NA(),RTD("cqg.rtd", ,"ContractData", U40,"LastTradeorSettle",,"T"))) -> -15 | X40: =IF(LEFT(RTD("cqg.rtd",,"StudyData",U40, "Bar",, "Close","D","-1","All",,,,"T"),3)="777",NA(),IF(RTD("cqg.rtd",,"StudyData",U40, "Bar",, "Close","D","-1","All",,,,"T")="",NA(),RTD("cqg.rtd",,"StudyData",U40, "Bar",, "Close","D","-1","All",,,,"T"))) -> -16 | Y40: =IF(LEFT(RTD("cqg.rtd",,"StudyData",U40, "Bar",, "Close","D","-5","All",,,,"T"),3)="777",NA(),IF(RTD("cqg.rtd",,"StudyData",U40, "Bar",, "Close","D","-5","All",,,,"T")="",NA(),RTD("cqg.rtd",,"StudyData",U40, "Bar",, "Close","D","-5","All",,,,"T"))) -> -13.5 | Z40: =IF(LEFT(RTD("cqg.rtd",,"StudyData",U40, "Bar",, "Close","D","-20","All",,,,"T"),3)="777",NA(),IF(RTD("cqg.rtd",,"StudyData",U40, "Bar",, "Close","D","-20","All",,,,"T")="",NA(),RTD("cqg.rtd",,"StudyData",U40, "Bar",, "Close","D","-20","All",,,,"T"))) -> -30.5 | AA40: 1 | AB40: -1.5 | AC40: 15.5 | AE40: 7 | AF40: SR3S12U24 | AG40: =IF(LEFT(RTD("cqg.rtd", ,"ContractData", AF40,"LastTradeorSettle",,"T"),3)="768",NA(),IF(RTD("cqg.rtd", ,"ContractData", AF40,"LastTradeorSettle",,"T")="",NA(),RTD("cqg.rtd", ,"ContractData", AF40,"LastTradeorSettle",,"T"))) -> -25.5 | AI40: =IF(LEFT(RTD("cqg.rtd",,"StudyData",AF40, "Bar",, "Close","D","-1","All",,,,"T"),3)="777",NA(),IF(RTD("cqg.rtd",,"StudyData",AF40, "Bar",, "Close","D","-1","All",,,,"T")="",NA(),RTD("cqg.rtd",,"StudyData",AF40, "Bar",, "Close","D","-1","All",,,,"T"))) -> -28 | AJ40: =IF(LEFT(RTD("cqg.rtd",,"StudyData",AF40, "Bar",, "Close","D","-5","All",,,,"T"),3)="777",NA(),IF(RTD("cqg.rtd",,"StudyData",AF40, "Bar",, "Close","D","-5","All",,,,"T")="",NA(),RTD("cqg.rtd",,"StudyData",AF40, "Bar",, "Close","D","-5","All",,,,"T"))) -> -23.5 | AK40: =IF(LEFT(RTD("cqg.rtd",,"StudyData",AF40, "Bar",, "Close","D","-20","All",,,,"T"),3)="777",NA(),IF(RTD("cqg.rtd",,"StudyData",AF40, "Bar",, "Close","D","-20","All",,,,"T")="",NA(),RTD("cqg.rtd",,"StudyData",AF40, "Bar",, "Close","D","-20","All",,,,"T"))) -> -71.5 | AL40: 2.5 | AM40: -2 | AN40: 46
B41: =RTD("cqg.rtd",,"StudyData",Q17, "Bar",, "Close","D","-1","All",,,,"T") -> 97.09 | C41: =RTD("cqg.rtd",,"StudyData",Q17, "Bar",, "Close","D","-5","All",,,,"T") -> 96.9 | D41: =RTD("cqg.rtd",,"StudyData",Q17, "Bar",, "Close","D","-20","All",,,,"T") -> 96.67 | E41: 0.085 | F41: 0.275 | G41: 0.505 | R41: 7 | T41: 8 | U41: SR3S3Z24 | V41: =IF(LEFT(RTD("cqg.rtd", ,"ContractData", U41,"LastTradeorSettle",,"T"),3)="768",NA(),IF(RTD("cqg.rtd", ,"ContractData", U41,"LastTradeorSettle",,"T")="",NA(),RTD("cqg.rtd", ,"ContractData", U41,"LastTradeorSettle",,"T"))) -> -7.5 | X41: =IF(LEFT(RTD("cqg.rtd",,"StudyData",U41, "Bar",, "Close","D","-1","All",,,,"T"),3)="777",NA(),IF(RTD("cqg.rtd",,"StudyData",U41, "Bar",, "Close","D","-1","All",,,,"T")="",NA(),RTD("cqg.rtd",,"StudyData",U41, "Bar",, "Close","D","-1","All",,,,"T"))) -> -8 | Y41: =IF(LEFT(RTD("cqg.rtd",,"StudyData",U41, "Bar",, "Close","D","-5","All",,,,"T"),3)="777",NA(),IF(RTD("cqg.rtd",,"StudyData",U41, "Bar",, "Close","D","-5","All",,,,"T")="",NA(),RTD("cqg.rtd",,"StudyData",U41, "Bar",, "Close","D","-5","All",,,,"T"))) -> -6.5 | Z41: =IF(LEFT(RTD("cqg.rtd",,"StudyData",U41, "Bar",, "Close","D","-20","All",,,,"T"),3)="777",NA(),IF(RTD("cqg.rtd",,"StudyData",U41, "Bar",, "Close","D","-20","All",,,,"T")="",NA(),RTD("cqg.rtd",,"StudyData",U41, "Bar",, "Close","D","-20","All",,,,"T"))) -> -19.5 | AA41: 0.5 | AB41: -1 | AC41: 12 | AE41: 8 | AF41: SR3S12Z24 | AG41: =IF(LEFT(RTD("cqg.rtd", ,"ContractData", AF41,"LastTradeorSettle",,"T"),3)="768",NA(),IF(RTD("cqg.rtd", ,"ContractData", AF41,"LastTradeorSettle",,"T")="",NA(),RTD("cqg.rtd", ,"ContractData", AF41,"LastTradeorSettle",,"T"))) -> -12 | AI41: =IF(LEFT(RTD("cqg.rtd",,"StudyData",AF41, "Bar",, "Close","D","-1","All",,,,"T"),3)="777",NA(),IF(RTD("cqg.rtd",,"StudyData",AF41, "Bar",, "Close","D","-1","All",,,,"T")="",NA(),RTD("cqg.rtd",,"StudyData",AF41, "Bar",, "Close","D","-1","All",,,,"T"))) -> -13.5 | AJ41: =IF(LEFT(RTD("cqg.rtd",,"StudyData",AF41, "Bar",, "Close","D","-5","All",,,,"T"),3)="777",NA(),IF(RTD("cqg.rtd",,"StudyData",AF41, "Bar",, "Close","D","-5","All",,,,"T")="",NA(),RTD("cqg.rtd",,"StudyData",AF41, "Bar",, "Close","D","-5","All",,,,"T"))) -> -11 | AK41: =IF(LEFT(RTD("cqg.rtd",,"StudyData",AF41, "Bar",, "Close","D","-20","All",,,,"T"),3)="777",NA(),IF(RTD("cqg.rtd",,"StudyData",AF41, "Bar",, "Close","D","-20","All",,,,"T")="",NA(),RTD("cqg.rtd",,"StudyData",AF41, "Bar",, "Close","D","-20","All",,,,"T"))) -> -49 | AL41: 1.5 | AM41: -1 | AN41: 37
B42: =RTD("cqg.rtd",,"StudyData",Q18, "Bar",, "Close","D","-1","All",,,,"T") -> 97.06 | C42: =RTD("cqg.rtd",,"StudyData",Q18, "Bar",, "Close","D","-5","All",,,,"T") -> 96.88 | D42: =RTD("cqg.rtd",,"StudyData",Q18, "Bar",, "Close","D","-20","All",,,,"T") -> 96.67 | E42: 0.085 | F42: 0.265 | G42: 0.475 | R42: 8 | T42: 9 | U42: SR3S3H25 | V42: =IF(LEFT(RTD("cqg.rtd", ,"ContractData", U42,"LastTradeorSettle",,"T"),3)="768",NA(),IF(RTD("cqg.rtd", ,"ContractData", U42,"LastTradeorSettle",,"T")="",NA(),RTD("cqg.rtd", ,"ContractData", U42,"LastTradeorSettle",,"T"))) -> -2.5 | X42: =IF(LEFT(RTD("cqg.rtd",,"StudyData",U42, "Bar",, "Close","D","-1","All",,,,"T"),3)="777",NA(),IF(RTD("cqg.rtd",,"StudyData",U42, "Bar",, "Close","D","-1","All",,,,"T")="",NA(),RTD("cqg.rtd",,"StudyData",U42, "Bar",, "Close","D","-1","All",,,,"T"))) -> -2.5 | Y42: =IF(LEFT(RTD("cqg.rtd",,"StudyData",U42, "Bar",, "Close","D","-5","All",,,,"T"),3)="777",NA(),IF(RTD("cqg.rtd",,"StudyData",U42, "Bar",, "Close","D","-5","All",,,,"T")="",NA(),RTD("cqg.rtd",,"StudyData",U42, "Bar",, "Close","D","-5","All",,,,"T"))) -> -2.5 | Z42: =IF(LEFT(RTD("cqg.rtd",,"StudyData",U42, "Bar",, "Close","D","-20","All",,,,"T"),3)="777",NA(),IF(RTD("cqg.rtd",,"StudyData",U42, "Bar",, "Close","D","-20","All",,,,"T")="",NA(),RTD("cqg.rtd",,"StudyData",U42, "Bar",, "Close","D","-20","All",,,,"T"))) -> -12 | AA42: 0 | AB42: 0 | AC42: 9.5 | AE42: 9 | AF42: SR3S12H25 | AG42: =IF(LEFT(RTD("cqg.rtd", ,"ContractData", AF42,"LastTradeorSettle",,"T"),3)="768",NA(),IF(RTD("cqg.rtd", ,"ContractData", AF42,"LastTradeorSettle",,"T")="",NA(),RTD("cqg.rtd", ,"ContractData", AF42,"LastTradeorSettle",,"T"))) -> -3 | AI42: =IF(LEFT(RTD("cqg.rtd",,"StudyData",AF42, "Bar",, "Close","D","-1","All",,,,"T"),3)="777",NA(),IF(RTD("cqg.rtd",,"StudyData",AF42, "Bar",, "Close","D","-1","All",,,,"T")="",NA(),RTD("cqg.rtd",,"StudyData",AF42, "Bar",, "Close","D","-1","All",,,,"T"))) -> -4.5 | AJ42: =IF(LEFT(RTD("cqg.rtd",,"StudyData",AF42, "Bar",, "Close","D","-5","All",,,,"T"),3)="777",NA(),IF(RTD("cqg.rtd",,"StudyData",AF42, "Bar",, "Close","D","-5","All",,,,"T")="",NA(),RTD("cqg.rtd",,"StudyData",AF42, "Bar",, "Close","D","-5","All",,,,"T"))) -> -3 | AK42: =IF(LEFT(RTD("cqg.rtd",,"StudyData",AF42, "Bar",, "Close","D","-20","All",,,,"T"),3)="777",NA(),IF(RTD("cqg.rtd",,"StudyData",AF42, "Bar",, "Close","D","-20","All",,,,"T")="",NA(),RTD("cqg.rtd",,"StudyData",AF42, "Bar",, "Close","D","-20","All",,,,"T"))) -> -35.5 | AL42: 1.5 | AM42: 0 | AN42: 32.5
B43: =RTD("cqg.rtd",,"StudyData",Q19, "Bar",, "Close","D","-1","All",,,,"T") -> 97.015 | C43: =RTD("cqg.rtd",,"StudyData",Q19, "Bar",, "Close","D","-5","All",,,,"T") -> 96.845 | D43: =RTD("cqg.rtd",,"StudyData",Q19, "Bar",, "Close","D","-20","All",,,,"T") -> 96.655 | E43: 0.085 | F43: 0.255 | G43: 0.445 | R43: 9 | T43: 10 | U43: SR3S3M25 | V43: =IF(LEFT(RTD("cqg.rtd", ,"ContractData", U43,"LastTradeorSettle",,"T"),3)="768",NA(),IF(RTD("cqg.rtd", ,"ContractData", U43,"LastTradeorSettle",,"T")="",NA(),RTD("cqg.rtd", ,"ContractData", U43,"LastTradeorSettle",,"T"))) -> -1.5 | X43: =IF(LEFT(RTD("cqg.rtd",,"StudyData",U43, "Bar",, "Close","D","-1","All",,,,"T"),3)="777",NA(),IF(RTD("cqg.rtd",,"StudyData",U43, "Bar",, "Close","D","-1","All",,,,"T")="",NA(),RTD("cqg.rtd",,"StudyData",U43, "Bar",, "Close","D","-1","All",,,,"T"))) -> -1.5 | Y43: =IF(LEFT(RTD("cqg.rtd",,"StudyData",U43, "Bar",, "Close","D","-5","All",,,,"T"),3)="777",NA(),IF(RTD("cqg.rtd",,"StudyData",U43, "Bar",, "Close","D","-5","All",,,,"T")="",NA(),RTD("cqg.rtd",,"StudyData",U43, "Bar",, "Close","D","-5","All",,,,"T"))) -> -1 | Z43: =IF(LEFT(RTD("cqg.rtd",,"StudyData",U43, "Bar",, "Close","D","-20","All",,,,"T"),3)="777",NA(),IF(RTD("cqg.rtd",,"StudyData",U43, "Bar",, "Close","D","-20","All",,,,"T")="",NA(),RTD("cqg.rtd",,"StudyData",U43, "Bar",, "Close","D","-20","All",,,,"T"))) -> -9.5 | AA43: 0 | AB43: -0.5 | AC43: 8 | AE43: 10 | AF43: SR3S12M25 | AG43: =IF(LEFT(RTD("cqg.rtd", ,"ContractData", AF43,"LastTradeorSettle",,"T"),3)="768",NA(),IF(RTD("cqg.rtd", ,"ContractData", AF43,"LastTradeorSettle",,"T")="",NA(),RTD("cqg.rtd", ,"ContractData", AF43,"LastTradeorSettle",,"T"))) -> 0.5 | AI43: =IF(LEFT(RTD("cqg.rtd",,"StudyData",AF43, "Bar",, "Close","D","-1","All",,,,"T"),3)="777",NA(),IF(RTD("cqg.rtd",,"StudyData",AF43, "Bar",, "Close","D","-1","All",,,,"T")="",NA(),RTD("cqg.rtd",,"StudyData",AF43, "Bar",, "Close","D","-1","All",,,,"T"))) -> -1 | AJ43: =IF(LEFT(RTD("cqg.rtd",,"StudyData",AF43, "Bar",, "Close","D","-5","All",,,,"T"),3)="777",NA(),IF(RTD("cqg.rtd",,"StudyData",AF43, "Bar",, "Close","D","-5","All",,,,"T")="",NA(),RTD("cqg.rtd",,"StudyData",AF43, "Bar",, "Close","D","-5","All",,,,"T"))) -> 0 | AK43: =IF(LEFT(RTD("cqg.rtd",,"StudyData",AF43, "Bar",, "Close","D","-20","All",,,,"T"),3)="777",NA(),IF(RTD("cqg.rtd",,"StudyData",AF43, "Bar",, "Close","D","-20","All",,,,"T")="",NA(),RTD("cqg.rtd",,"StudyData",AF43, "Bar",, "Close","D","-20","All",,,,"T"))) -> -27.5 | AL43: 1.5 | AM43: 0.5 | AN43: 28
B44: =IFERROR( RTD("cqg.rtd",,"StudyData",Q20, "Bar",, "Close","D","-1","All",,,,"T"),NA()) -> 96.985 | C44: =IF(RTD("cqg.rtd",,"StudyData",Q20, "Bar",, "Close","D","-5","All",,,,"T")="",NA(),RTD("cqg.rtd",,"StudyData",Q20, "Bar",, "Close","D","-5","All",,,,"T")) -> 96.825 | D44: =IF(RTD("cqg.rtd",,"StudyData",Q20, "Bar",, "Close","D","-20","All",,,,"T")="",NA(),RTD("cqg.rtd",,"StudyData",Q20, "Bar",, "Close","D","-20","All",,,,"T")) -> 96.64 | E44: =IFERROR( R20-B44,NA()) -> 0.09 | F44: =IFERROR( R20-C44,NA()) -> 0.25 | G44: =IFERROR( R20-D44,NA()) -> 0.435 | R44: 10 | T44: 11 | U44: SR3S3U25 | V44: =IF(LEFT(RTD("cqg.rtd", ,"ContractData", U44,"LastTradeorSettle",,"T"),3)="768",NA(),IF(RTD("cqg.rtd", ,"ContractData", U44,"LastTradeorSettle",,"T")="",NA(),RTD("cqg.rtd", ,"ContractData", U44,"LastTradeorSettle",,"T"))) -> -1 | X44: =IF(LEFT(RTD("cqg.rtd",,"StudyData",U44, "Bar",, "Close","D","-1","All",,,,"T"),3)="777",NA(),IF(RTD("cqg.rtd",,"StudyData",U44, "Bar",, "Close","D","-1","All",,,,"T")="",NA(),RTD("cqg.rtd",,"StudyData",U44, "Bar",, "Close","D","-1","All",,,,"T"))) -> -1.5 | Y44: =IF(LEFT(RTD("cqg.rtd",,"StudyData",U44, "Bar",, "Close","D","-5","All",,,,"T"),3)="777",NA(),IF(RTD("cqg.rtd",,"StudyData",U44, "Bar",, "Close","D","-5","All",,,,"T")="",NA(),RTD("cqg.rtd",,"StudyData",U44, "Bar",, "Close","D","-5","All",,,,"T"))) -> -1 | Z44: =IF(LEFT(RTD("cqg.rtd",,"StudyData",U44, "Bar",, "Close","D","-20","All",,,,"T"),3)="777",NA(),IF(RTD("cqg.rtd",,"StudyData",U44, "Bar",, "Close","D","-20","All",,,,"T")="",NA(),RTD("cqg.rtd",,"StudyData",U44, "Bar",, "Close","D","-20","All",,,,"T"))) -> -8 | AA44: 0.5 | AB44: 0 | AC44: 7 | AE44: 11 | AF44: SR3S12U25 | AG44: =IF(LEFT(RTD("cqg.rtd", ,"ContractData", AF44,"LastTradeorSettle",,"T"),3)="768",NA(),IF(RTD("cqg.rtd", ,"ContractData", AF44,"LastTradeorSettle",,"T")="",NA(),RTD("cqg.rtd", ,"ContractData", AF44,"LastTradeorSettle",,"T"))) -> 4 | AI44: =IF(LEFT(RTD("cqg.rtd",,"StudyData",AF44, "Bar",, "Close","D","-1","All",,,,"T"),3)="777",NA(),IF(RTD("cqg.rtd",,"StudyData",AF44, "Bar",, "Close","D","-1","All",,,,"T")="",NA(),RTD("cqg.rtd",,"StudyData",AF44, "Bar",, "Close","D","-1","All",,,,"T"))) -> 2.5 | AJ44: =IF(LEFT(RTD("cqg.rtd",,"StudyData",AF44, "Bar",, "Close","D","-5","All",,,,"T"),3)="777",NA(),IF(RTD("cqg.rtd",,"StudyData",AF44, "Bar",, "Close","D","-5","All",,,,"T")="",NA(),RTD("cqg.rtd",,"StudyData",AF44, "Bar",, "Close","D","-5","All",,,,"T"))) -> 2.5 | AK44: =IF(LEFT(RTD("cqg.rtd",,"StudyData",AF44, "Bar",, "Close","D","-20","All",,,,"T"),3)="777",NA(),IF(RTD("cqg.rtd",,"StudyData",AF44, "Bar",, "Close","D","-20","All",,,,"T")="",NA(),RTD("cqg.rtd",,"StudyData",AF44, "Bar",, "Close","D","-20","All",,,,"T"))) -> -21.5 | AL44: 1.5 | AM44: 1.5 | AN44: 25.5
B45: =IFERROR( RTD("cqg.rtd",,"StudyData",Q21, "Bar",, "Close","D","-1","All",,,,"T"),"") -> 96.96 | C45: =IF(RTD("cqg.rtd",,"StudyData",Q21, "Bar",, "Close","D","-5","All",,,,"T")="",NA(),RTD("cqg.rtd",,"StudyData",Q21, "Bar",, "Close","D","-5","All",,,,"T")) -> 96.815 | D45: =IF(RTD("cqg.rtd",,"StudyData",Q21, "Bar",, "Close","D","-20","All",,,,"T")="",NA(),RTD("cqg.rtd",,"StudyData",Q21, "Bar",, "Close","D","-20","All",,,,"T")) -> 96.62 | E45: =IFERROR( R21-B45,NA()) -> 0.085 | F45: =IFERROR( R21-C45,NA()) -> 0.23 | G45: =IFERROR( R21-D45,NA()) -> 0.425 | R45: 11 | T45: 12 | U45: SR3S3Z25 | V45: =IF(LEFT(RTD("cqg.rtd", ,"ContractData", U45,"LastTradeorSettle",,"T"),3)="768",NA(),IF(RTD("cqg.rtd", ,"ContractData", U45,"LastTradeorSettle",,"T")="",NA(),RTD("cqg.rtd", ,"ContractData", U45,"LastTradeorSettle",,"T"))) -> 1.5 | X45: =IF(LEFT(RTD("cqg.rtd",,"StudyData",U45, "Bar",, "Close","D","-1","All",,,,"T"),3)="777",NA(),IF(RTD("cqg.rtd",,"StudyData",U45, "Bar",, "Close","D","-1","All",,,,"T")="",NA(),RTD("cqg.rtd",,"StudyData",U45, "Bar",, "Close","D","-1","All",,,,"T"))) -> 1 | Y45: =IF(LEFT(RTD("cqg.rtd",,"StudyData",U45, "Bar",, "Close","D","-5","All",,,,"T"),3)="777",NA(),IF(RTD("cqg.rtd",,"StudyData",U45, "Bar",, "Close","D","-5","All",,,,"T")="",NA(),RTD("cqg.rtd",,"StudyData",U45, "Bar",, "Close","D","-5","All",,,,"T"))) -> 1.5 | Z45: =IF(LEFT(RTD("cqg.rtd",,"StudyData",U45, "Bar",, "Close","D","-20","All",,,,"T"),3)="777",NA(),IF(RTD("cqg.rtd",,"StudyData",U45, "Bar",, "Close","D","-20","All",,,,"T")="",NA(),RTD("cqg.rtd",,"StudyData",U45, "Bar",, "Close","D","-20","All",,,,"T"))) -> -6 | AA45: 0.5 | AB45: 0 | AC45: 7.5 | AE45: 12 | AF45: SR3S12Z25 | AG45: =IF(LEFT(RTD("cqg.rtd", ,"ContractData", AF45,"LastTradeorSettle",,"T"),3)="768",NA(),IF(RTD("cqg.rtd", ,"ContractData", AF45,"LastTradeorSettle",,"T")="",NA(),RTD("cqg.rtd", ,"ContractData", AF45,"LastTradeorSettle",,"T"))) -> 6.5 | AI45: =IF(LEFT(RTD("cqg.rtd",,"StudyData",AF45, "Bar",, "Close","D","-1","All",,,,"T"),3)="777",NA(),IF(RTD("cqg.rtd",,"StudyData",AF45, "Bar",, "Close","D","-1","All",,,,"T")="",NA(),RTD("cqg.rtd",,"StudyData",AF45, "Bar",, "Close","D","-1","All",,,,"T"))) -> 5 | AJ45: =IF(LEFT(RTD("cqg.rtd",,"StudyData",AF45, "Bar",, "Close","D","-5","All",,,,"T"),3)="777",NA(),IF(RTD("cqg.rtd",,"StudyData",AF45, "Bar",, "Close","D","-5","All",,,,"T")="",NA(),RTD("cqg.rtd",,"StudyData",AF45, "Bar",, "Close","D","-5","All",,,,"T"))) -> 4 | AK45: =IF(LEFT(RTD("cqg.rtd",,"StudyData",AF45, "Bar",, "Close","D","-20","All",,,,"T"),3)="777",NA(),IF(RTD("cqg.rtd",,"StudyData",AF45, "Bar",, "Close","D","-20","All",,,,"T")="",NA(),RTD("cqg.rtd",,"StudyData",AF45, "Bar",, "Close","D","-20","All",,,,"T"))) -> -16 | AL45: 1.5 | AM45: 2.5 | AN45: 22.5
R46: 12 | T46: 13 | U46: SR3S3H26 | V46: =IF(LEFT(RTD("cqg.rtd", ,"ContractData", U46,"LastTradeorSettle",,"T"),3)="768",NA(),IF(RTD("cqg.rtd", ,"ContractData", U46,"LastTradeorSettle",,"T")="",NA(),RTD("cqg.rtd", ,"ContractData", U46,"LastTradeorSettle",,"T"))) -> 1.5 | X46: =IF(LEFT(RTD("cqg.rtd",,"StudyData",U46, "Bar",, "Close","D","-1","All",,,,"T"),3)="777",NA(),IF(RTD("cqg.rtd",,"StudyData",U46, "Bar",, "Close","D","-1","All",,,,"T")="",NA(),RTD("cqg.rtd",,"StudyData",U46, "Bar",, "Close","D","-1","All",,,,"T"))) -> 1 | Y46: =IF(LEFT(RTD("cqg.rtd",,"StudyData",U46, "Bar",, "Close","D","-5","All",,,,"T"),3)="777",NA(),IF(RTD("cqg.rtd",,"StudyData",U46, "Bar",, "Close","D","-5","All",,,,"T")="",NA(),RTD("cqg.rtd",,"StudyData",U46, "Bar",, "Close","D","-5","All",,,,"T"))) -> 0.5 | Z46: =IF(LEFT(RTD("cqg.rtd",,"StudyData",U46, "Bar",, "Close","D","-20","All",,,,"T"),3)="777",NA(),IF(RTD("cqg.rtd",,"StudyData",U46, "Bar",, "Close","D","-20","All",,,,"T")="",NA(),RTD("cqg.rtd",,"StudyData",U46, "Bar",, "Close","D","-20","All",,,,"T"))) -> -4 | AA46: 0.5 | AB46: 1 | AC46: 5.5 | AE46: 13 | AF46: SR3S12H26 | AG46: =IF(LEFT(RTD("cqg.rtd", ,"ContractData", AF46,"LastTradeorSettle",,"T"),3)="768",NA(),IF(RTD("cqg.rtd", ,"ContractData", AF46,"LastTradeorSettle",,"T")="",NA(),RTD("cqg.rtd", ,"ContractData", AF46,"LastTradeorSettle",,"T"))) -> 8 | AI46: =IF(LEFT(RTD("cqg.rtd",,"StudyData",AF46, "Bar",, "Close","D","-1","All",,,,"T"),3)="777",NA(),IF(RTD("cqg.rtd",,"StudyData",AF46, "Bar",, "Close","D","-1","All",,,,"T")="",NA(),RTD("cqg.rtd",,"StudyData",AF46, "Bar",, "Close","D","-1","All",,,,"T"))) -> 5.5 | AJ46: =IF(LEFT(RTD("cqg.rtd",,"StudyData",AF46, "Bar",, "Close","D","-5","All",,,,"T"),3)="777",NA(),IF(RTD("cqg.rtd",,"StudyData",AF46, "Bar",, "Close","D","-5","All",,,,"T")="",NA(),RTD("cqg.rtd",,"StudyData",AF46, "Bar",, "Close","D","-5","All",,,,"T"))) -> 4 | AK46: =IF(LEFT(RTD("cqg.rtd",,"StudyData",AF46, "Bar",, "Close","D","-20","All",,,,"T"),3)="777",NA(),IF(RTD("cqg.rtd",,"StudyData",AF46, "Bar",, "Close","D","-20","All",,,,"T")="",NA(),RTD("cqg.rtd",,"StudyData",AF46, "Bar",, "Close","D","-20","All",,,,"T"))) -> -12 | AL46: 2.5 | AM46: 4 | AN46: 20
R47: 13 | T47: 14 | U47: SR3S3M26 | V47: =IF(LEFT(RTD("cqg.rtd", ,"ContractData", U47,"LastTradeorSettle",,"T"),3)="768",NA(),IF(RTD("cqg.rtd", ,"ContractData", U47,"LastTradeorSettle",,"T")="",NA(),RTD("cqg.rtd", ,"ContractData", U47,"LastTradeorSettle",,"T"))) -> 2.5 | X47: =IF(LEFT(RTD("cqg.rtd",,"StudyData",U47, "Bar",, "Close","D","-1","All",,,,"T"),3)="777",NA(),IF(RTD("cqg.rtd",,"StudyData",U47, "Bar",, "Close","D","-1","All",,,,"T")="",NA(),RTD("cqg.rtd",,"StudyData",U47, "Bar",, "Close","D","-1","All",,,,"T"))) -> 2 | Y47: =IF(LEFT(RTD("cqg.rtd",,"StudyData",U47, "Bar",, "Close","D","-5","All",,,,"T"),3)="777",NA(),IF(RTD("cqg.rtd",,"StudyData",U47, "Bar",, "Close","D","-5","All",,,,"T")="",NA(),RTD("cqg.rtd",,"StudyData",U47, "Bar",, "Close","D","-5","All",,,,"T"))) -> 1.5 | Z47: =IF(LEFT(RTD("cqg.rtd",,"StudyData",U47, "Bar",, "Close","D","-20","All",,,,"T"),3)="777",NA(),IF(RTD("cqg.rtd",,"StudyData",U47, "Bar",, "Close","D","-20","All",,,,"T")="",NA(),RTD("cqg.rtd",,"StudyData",U47, "Bar",, "Close","D","-20","All",,,,"T"))) -> -3.5 | AA47: 0.5 | AB47: 1 | AC47: 6 | AE47: 14 | AF47: SR3S12M26 | AG47: =IF(LEFT(RTD("cqg.rtd", ,"ContractData", AF47,"LastTradeorSettle",,"T"),3)="768",NA(),IF(RTD("cqg.rtd", ,"ContractData", AF47,"LastTradeorSettle",,"T")="",NA(),RTD("cqg.rtd", ,"ContractData", AF47,"LastTradeorSettle",,"T"))) -> 9 | AI47: =IF(LEFT(RTD("cqg.rtd",,"StudyData",AF47, "Bar",, "Close","D","-1","All",,,,"T"),3)="777",NA(),IF(RTD("cqg.rtd",,"StudyData",AF47, "Bar",, "Close","D","-1","All",,,,"T")="",NA(),RTD("cqg.rtd",,"StudyData",AF47, "Bar",, "Close","D","-1","All",,,,"T"))) -> 7.5 | AJ47: =IF(LEFT(RTD("cqg.rtd",,"StudyData",AF47, "Bar",, "Close","D","-5","All",,,,"T"),3)="777",NA(),IF(RTD("cqg.rtd",,"StudyData",AF47, "Bar",, "Close","D","-5","All",,,,"T")="",NA(),RTD("cqg.rtd",,"StudyData",AF47, "Bar",, "Close","D","-5","All",,,,"T"))) -> 5.5 | AK47: =IF(LEFT(RTD("cqg.rtd",,"StudyData",AF47, "Bar",, "Close","D","-20","All",,,,"T"),3)="777",NA(),IF(RTD("cqg.rtd",,"StudyData",AF47, "Bar",, "Close","D","-20","All",,,,"T")="",NA(),RTD("cqg.rtd",,"StudyData",AF47, "Bar",, "Close","D","-20","All",,,,"T"))) -> -8 | AL47: 1.5 | AM47: 3.5 | AN47: 17
R48: 14 | T48: 15 | U48: SR3S3U26 | V48: =IF(LEFT(RTD("cqg.rtd", ,"ContractData", U48,"LastTradeorSettle",,"T"),3)="768",NA(),IF(RTD("cqg.rtd", ,"ContractData", U48,"LastTradeorSettle",,"T")="",NA(),RTD("cqg.rtd", ,"ContractData", U48,"LastTradeorSettle",,"T"))) -> 1.5 | X48: =IF(LEFT(RTD("cqg.rtd",,"StudyData",U48, "Bar",, "Close","D","-1","All",,,,"T"),3)="777",NA(),IF(RTD("cqg.rtd",,"StudyData",U48, "Bar",, "Close","D","-1","All",,,,"T")="",NA(),RTD("cqg.rtd",,"StudyData",U48, "Bar",, "Close","D","-1","All",,,,"T"))) -> 1 | Y48: =IF(LEFT(RTD("cqg.rtd",,"StudyData",U48, "Bar",, "Close","D","-5","All",,,,"T"),3)="777",NA(),IF(RTD("cqg.rtd",,"StudyData",U48, "Bar",, "Close","D","-5","All",,,,"T")="",NA(),RTD("cqg.rtd",,"StudyData",U48, "Bar",, "Close","D","-5","All",,,,"T"))) -> 0.5 | Z48: =IF(LEFT(RTD("cqg.rtd",,"StudyData",U48, "Bar",, "Close","D","-20","All",,,,"T"),3)="777",NA(),IF(RTD("cqg.rtd",,"StudyData",U48, "Bar",, "Close","D","-20","All",,,,"T")="",NA(),RTD("cqg.rtd",,"StudyData",U48, "Bar",, "Close","D","-20","All",,,,"T"))) -> -2.5 | AA48: 0.5 | AB48: 1 | AC48: 4 | AE48: 15 | AF48: SR3S12U26 | AG48: =IF(LEFT(RTD("cqg.rtd", ,"ContractData", AF48,"LastTradeorSettle",,"T"),3)="768",NA(),IF(RTD("cqg.rtd", ,"ContractData", AF48,"LastTradeorSettle",,"T")="",NA(),RTD("cqg.rtd", ,"ContractData", AF48,"LastTradeorSettle",,"T"))) -> 11 | AI48: =IF(LEFT(RTD("cqg.rtd",,"StudyData",AF48, "Bar",, "Close","D","-1","All",,,,"T"),3)="777",NA(),IF(RTD("cqg.rtd",,"StudyData",AF48, "Bar",, "Close","D","-1","All",,,,"T")="",NA(),RTD("cqg.rtd",,"StudyData",AF48, "Bar",, "Close","D","-1","All",,,,"T"))) -> 10 | AJ48: =IF(LEFT(RTD("cqg.rtd",,"StudyData",AF48, "Bar",, "Close","D","-5","All",,,,"T"),3)="777",NA(),IF(RTD("cqg.rtd",,"StudyData",AF48, "Bar",, "Close","D","-5","All",,,,"T")="",NA(),RTD("cqg.rtd",,"StudyData",AF48, "Bar",, "Close","D","-5","All",,,,"T"))) -> 7.5 | AK48: =IF(LEFT(RTD("cqg.rtd",,"StudyData",AF48, "Bar",, "Close","D","-20","All",,,,"T"),3)="777",NA(),IF(RTD("cqg.rtd",,"StudyData",AF48, "Bar",, "Close","D","-20","All",,,,"T")="",NA(),RTD("cqg.rtd",,"StudyData",AF48, "Bar",, "Close","D","-20","All",,,,"T"))) -> -3 | AL48: 1 | AM48: 3.5 | AN48: 14
R49: 15 | T49: 16 | U49: SR3S3Z26 | V49: =IF(LEFT(RTD("cqg.rtd", ,"ContractData", U49,"LastTradeorSettle",,"T"),3)="768",NA(),IF(RTD("cqg.rtd", ,"ContractData", U49,"LastTradeorSettle",,"T")="",NA(),RTD("cqg.rtd", ,"ContractData", U49,"LastTradeorSettle",,"T"))) -> 2.5 | X49: =IF(LEFT(RTD("cqg.rtd",,"StudyData",U49, "Bar",, "Close","D","-1","All",,,,"T"),3)="777",NA(),IF(RTD("cqg.rtd",,"StudyData",U49, "Bar",, "Close","D","-1","All",,,,"T")="",NA(),RTD("cqg.rtd",,"StudyData",U49, "Bar",, "Close","D","-1","All",,,,"T"))) -> 1.5 | Y49: =IF(LEFT(RTD("cqg.rtd",,"StudyData",U49, "Bar",, "Close","D","-5","All",,,,"T"),3)="777",NA(),IF(RTD("cqg.rtd",,"StudyData",U49, "Bar",, "Close","D","-5","All",,,,"T")="",NA(),RTD("cqg.rtd",,"StudyData",U49, "Bar",, "Close","D","-5","All",,,,"T"))) -> 1.5 | Z49: =IF(LEFT(RTD("cqg.rtd",,"StudyData",U49, "Bar",, "Close","D","-20","All",,,,"T"),3)="777",NA(),IF(RTD("cqg.rtd",,"StudyData",U49, "Bar",, "Close","D","-20","All",,,,"T")="",NA(),RTD("cqg.rtd",,"StudyData",U49, "Bar",, "Close","D","-20","All",,,,"T"))) -> -2 | AA49: 1 | AB49: 1 | AC49: 4.5 | AE49: 16 | AF49: SR3S12Z26 | AG49: =IF(LEFT(RTD("cqg.rtd", ,"ContractData", AF49,"LastTradeorSettle",,"T"),3)="768",NA(),IF(RTD("cqg.rtd", ,"ContractData", AF49,"LastTradeorSettle",,"T")="",NA(),RTD("cqg.rtd", ,"ContractData", AF49,"LastTradeorSettle",,"T"))) -> 12.5 | AI49: =IF(LEFT(RTD("cqg.rtd",,"StudyData",AF49, "Bar",, "Close","D","-1","All",,,,"T"),3)="777",NA(),IF(RTD("cqg.rtd",,"StudyData",AF49, "Bar",, "Close","D","-1","All",,,,"T")="",NA(),RTD("cqg.rtd",,"StudyData",AF49, "Bar",, "Close","D","-1","All",,,,"T"))) -> 12 | AJ49: =IF(LEFT(RTD("cqg.rtd",,"StudyData",AF49, "Bar",, "Close","D","-5","All",,,,"T"),3)="777",NA(),IF(RTD("cqg.rtd",,"StudyData",AF49, "Bar",, "Close","D","-5","All",,,,"T")="",NA(),RTD("cqg.rtd",,"StudyData",AF49, "Bar",, "Close","D","-5","All",,,,"T"))) -> 9 | AK49: =IF(LEFT(RTD("cqg.rtd",,"StudyData",AF49, "Bar",, "Close","D","-20","All",,,,"T"),3)="777",NA(),IF(RTD("cqg.rtd",,"StudyData",AF49, "Bar",, "Close","D","-20","All",,,,"T")="",NA(),RTD("cqg.rtd",,"StudyData",AF49, "Bar",, "Close","D","-20","All",,,,"T"))) -> 1 | AL49: 0.5 | AM49: 3.5 | AN49: 11.5
R50: 16 | T50: 17 | U50: SR3S3H27 | V50: =IF(LEFT(RTD("cqg.rtd", ,"ContractData", U50,"LastTradeorSettle",,"T"),3)="768",NA(),IF(RTD("cqg.rtd", ,"ContractData", U50,"LastTradeorSettle",,"T")="",NA(),RTD("cqg.rtd", ,"ContractData", U50,"LastTradeorSettle",,"T"))) -> 2.5 | X50: =IF(LEFT(RTD("cqg.rtd",,"StudyData",U50, "Bar",, "Close","D","-1","All",,,,"T"),3)="777",NA(),IF(RTD("cqg.rtd",,"StudyData",U50, "Bar",, "Close","D","-1","All",,,,"T")="",NA(),RTD("cqg.rtd",,"StudyData",U50, "Bar",, "Close","D","-1","All",,,,"T"))) -> 3 | Y50: =IF(LEFT(RTD("cqg.rtd",,"StudyData",U50, "Bar",, "Close","D","-5","All",,,,"T"),3)="777",NA(),IF(RTD("cqg.rtd",,"StudyData",U50, "Bar",, "Close","D","-5","All",,,,"T")="",NA(),RTD("cqg.rtd",,"StudyData",U50, "Bar",, "Close","D","-5","All",,,,"T"))) -> 2 | Z50: =IF(LEFT(RTD("cqg.rtd",,"StudyData",U50, "Bar",, "Close","D","-20","All",,,,"T"),3)="777",NA(),IF(RTD("cqg.rtd",,"StudyData",U50, "Bar",, "Close","D","-20","All",,,,"T")="",NA(),RTD("cqg.rtd",,"StudyData",U50, "Bar",, "Close","D","-20","All",,,,"T"))) -> 0 | AA50: -0.5 | AB50: 0.5 | AC50: 2.5 | AE50: 17 | AF50: SR3S12H27 | AG50: =IF(LEFT(RTD("cqg.rtd", ,"ContractData", AF50,"LastTradeorSettle",,"T"),3)="768",NA(),IF(RTD("cqg.rtd", ,"ContractData", AF50,"LastTradeorSettle",,"T")="",NA(),RTD("cqg.rtd", ,"ContractData", AF50,"LastTradeorSettle",,"T"))) -> 12.5 | AI50: =IF(LEFT(RTD("cqg.rtd",,"StudyData",AF50, "Bar",, "Close","D","-1","All",,,,"T"),3)="777",NA(),IF(RTD("cqg.rtd",,"StudyData",AF50, "Bar",, "Close","D","-1","All",,,,"T")="",NA(),RTD("cqg.rtd",,"StudyData",AF50, "Bar",, "Close","D","-1","All",,,,"T"))) -> 13 | AJ50: =IF(LEFT(RTD("cqg.rtd",,"StudyData",AF50, "Bar",, "Close","D","-5","All",,,,"T"),3)="777",NA(),IF(RTD("cqg.rtd",,"StudyData",AF50, "Bar",, "Close","D","-5","All",,,,"T")="",NA(),RTD("cqg.rtd",,"StudyData",AF50, "Bar",, "Close","D","-5","All",,,,"T"))) -> 8.5 | AK50: =IF(LEFT(RTD("cqg.rtd",,"StudyData",AF50, "Bar",, "Close","D","-20","All",,,,"T"),3)="777",NA(),IF(RTD("cqg.rtd",,"StudyData",AF50, "Bar",, "Close","D","-20","All",,,,"T")="",NA(),RTD("cqg.rtd",,"StudyData",AF50, "Bar",, "Close","D","-20","All",,,,"T"))) -> 5 | AL50: -0.5 | AM50: 4 | AN50: 7.5
R51: 17 | T51: 18 | U51: SR3S3M27 | V51: =IF(LEFT(RTD("cqg.rtd", ,"ContractData", U51,"LastTradeorSettle",,"T"),3)="768",NA(),IF(RTD("cqg.rtd", ,"ContractData", U51,"LastTradeorSettle",,"T")="",NA(),RTD("cqg.rtd", ,"ContractData", U51,"LastTradeorSettle",,"T"))) -> 4.5 | X51: =IF(LEFT(RTD("cqg.rtd",,"StudyData",U51, "Bar",, "Close","D","-1","All",,,,"T"),3)="777",NA(),IF(RTD("cqg.rtd",,"StudyData",U51, "Bar",, "Close","D","-1","All",,,,"T")="",NA(),RTD("cqg.rtd",,"StudyData",U51, "Bar",, "Close","D","-1","All",,,,"T"))) -> 4.5 | Y51: =IF(LEFT(RTD("cqg.rtd",,"StudyData",U51, "Bar",, "Close","D","-5","All",,,,"T"),3)="777",NA(),IF(RTD("cqg.rtd",,"StudyData",U51, "Bar",, "Close","D","-5","All",,,,"T")="",NA(),RTD("cqg.rtd",,"StudyData",U51, "Bar",, "Close","D","-5","All",,,,"T"))) -> 3.5 | Z51: =IF(LEFT(RTD("cqg.rtd",,"StudyData",U51, "Bar",, "Close","D","-20","All",,,,"T"),3)="777",NA(),IF(RTD("cqg.rtd",,"StudyData",U51, "Bar",, "Close","D","-20","All",,,,"T")="",NA(),RTD("cqg.rtd",,"StudyData",U51, "Bar",, "Close","D","-20","All",,,,"T"))) -> 1.5 | AA51: 0 | AB51: 1 | AC51: 3 | AE51: 18 | AF51: SR3S12M27 | AG51: =IF(LEFT(RTD("cqg.rtd", ,"ContractData", AF51,"LastTradeorSettle",,"T"),3)="768",NA(),IF(RTD("cqg.rtd", ,"ContractData", AF51,"LastTradeorSettle",,"T")="",NA(),RTD("cqg.rtd", ,"ContractData", AF51,"LastTradeorSettle",,"T"))) -> 14 | AI51: =IF(LEFT(RTD("cqg.rtd",,"StudyData",AF51, "Bar",, "Close","D","-1","All",,,,"T"),3)="777",NA(),IF(RTD("cqg.rtd",,"StudyData",AF51, "Bar",, "Close","D","-1","All",,,,"T")="",NA(),RTD("cqg.rtd",,"StudyData",AF51, "Bar",, "Close","D","-1","All",,,,"T"))) -> 13 | AJ51: =IF(LEFT(RTD("cqg.rtd",,"StudyData",AF51, "Bar",, "Close","D","-5","All",,,,"T"),3)="777",NA(),IF(RTD("cqg.rtd",,"StudyData",AF51, "Bar",, "Close","D","-5","All",,,,"T")="",NA(),RTD("cqg.rtd",,"StudyData",AF51, "Bar",, "Close","D","-5","All",,,,"T"))) -> 8.5 | AK51: =IF(LEFT(RTD("cqg.rtd",,"StudyData",AF51, "Bar",, "Close","D","-20","All",,,,"T"),3)="777",NA(),IF(RTD("cqg.rtd",,"StudyData",AF51, "Bar",, "Close","D","-20","All",,,,"T")="",NA(),RTD("cqg.rtd",,"StudyData",AF51, "Bar",, "Close","D","-20","All",,,,"T"))) -> 6.5 | AL51: 1 | AM51: 5.5 | AN51: 7.5
R52: 18 | T52: 19 | U52: SR3S3U27 | V52: =IF(LEFT(RTD("cqg.rtd", ,"ContractData", U52,"LastTradeorSettle",,"T"),3)="768",NA(),IF(RTD("cqg.rtd", ,"ContractData", U52,"LastTradeorSettle",,"T")="",NA(),RTD("cqg.rtd", ,"ContractData", U52,"LastTradeorSettle",,"T"))) -> 2.5 | X52: =IF(LEFT(RTD("cqg.rtd",,"StudyData",U52, "Bar",, "Close","D","-1","All",,,,"T"),3)="777",NA(),IF(RTD("cqg.rtd",,"StudyData",U52, "Bar",, "Close","D","-1","All",,,,"T")="",NA(),RTD("cqg.rtd",,"StudyData",U52, "Bar",, "Close","D","-1","All",,,,"T"))) -> 3 | Y52: =IF(LEFT(RTD("cqg.rtd",,"StudyData",U52, "Bar",, "Close","D","-5","All",,,,"T"),3)="777",NA(),IF(RTD("cqg.rtd",,"StudyData",U52, "Bar",, "Close","D","-5","All",,,,"T")="",NA(),RTD("cqg.rtd",,"StudyData",U52, "Bar",, "Close","D","-5","All",,,,"T"))) -> 2 | Z52: =IF(LEFT(RTD("cqg.rtd",,"StudyData",U52, "Bar",, "Close","D","-20","All",,,,"T"),3)="777",NA(),IF(RTD("cqg.rtd",,"StudyData",U52, "Bar",, "Close","D","-20","All",,,,"T")="",NA(),RTD("cqg.rtd",,"StudyData",U52, "Bar",, "Close","D","-20","All",,,,"T"))) -> 1.5 | AA52: -0.5 | AB52: 0.5 | AC52: 1 | AE52: 19 | AF52: SR3S12U27 | AG52: =IF(LEFT(RTD("cqg.rtd", ,"ContractData", AF52,"LastTradeorSettle",,"T"),3)="768",NA(),IF(RTD("cqg.rtd", ,"ContractData", AF52,"LastTradeorSettle",,"T")="",NA(),RTD("cqg.rtd", ,"ContractData", AF52,"LastTradeorSettle",,"T"))) ->  | AI52: =IF(LEFT(RTD("cqg.rtd",,"StudyData",AF52, "Bar",, "Close","D","-1","All",,,,"T"),3)="777",NA(),IF(RTD("cqg.rtd",,"StudyData",AF52, "Bar",, "Close","D","-1","All",,,,"T")="",NA(),RTD("cqg.rtd",,"StudyData",AF52, "Bar",, "Close","D","-1","All",,,,"T"))) -> 11.5 | AJ52: =IF(LEFT(RTD("cqg.rtd",,"StudyData",AF52, "Bar",, "Close","D","-5","All",,,,"T"),3)="777",NA(),IF(RTD("cqg.rtd",,"StudyData",AF52, "Bar",, "Close","D","-5","All",,,,"T")="",NA(),RTD("cqg.rtd",,"StudyData",AF52, "Bar",, "Close","D","-5","All",,,,"T"))) -> 8 | AK52: =IF(LEFT(RTD("cqg.rtd",,"StudyData",AF52, "Bar",, "Close","D","-20","All",,,,"T"),3)="777",NA(),IF(RTD("cqg.rtd",,"StudyData",AF52, "Bar",, "Close","D","-20","All",,,,"T")="",NA(),RTD("cqg.rtd",,"StudyData",AF52, "Bar",, "Close","D","-20","All",,,,"T"))) -> 7.5
R53: 19 | T53: 20 | U53: SR3S3Z27 | V53: =IF(LEFT(RTD("cqg.rtd", ,"ContractData", U53,"LastTradeorSettle",,"T"),3)="768",NA(),IF(RTD("cqg.rtd", ,"ContractData", U53,"LastTradeorSettle",,"T")="",NA(),RTD("cqg.rtd", ,"ContractData", U53,"LastTradeorSettle",,"T"))) -> 3 | X53: =IF(LEFT(RTD("cqg.rtd",,"StudyData",U53, "Bar",, "Close","D","-1","All",,,,"T"),3)="777",NA(),IF(RTD("cqg.rtd",,"StudyData",U53, "Bar",, "Close","D","-1","All",,,,"T")="",NA(),RTD("cqg.rtd",,"StudyData",U53, "Bar",, "Close","D","-1","All",,,,"T"))) -> 2.5 | Y53: =IF(LEFT(RTD("cqg.rtd",,"StudyData",U53, "Bar",, "Close","D","-5","All",,,,"T"),3)="777",NA(),IF(RTD("cqg.rtd",,"StudyData",U53, "Bar",, "Close","D","-5","All",,,,"T")="",NA(),RTD("cqg.rtd",,"StudyData",U53, "Bar",, "Close","D","-5","All",,,,"T"))) -> 1 | Z53: =IF(LEFT(RTD("cqg.rtd",,"StudyData",U53, "Bar",, "Close","D","-20","All",,,,"T"),3)="777",NA(),IF(RTD("cqg.rtd",,"StudyData",U53, "Bar",, "Close","D","-20","All",,,,"T")="",NA(),RTD("cqg.rtd",,"StudyData",U53, "Bar",, "Close","D","-20","All",,,,"T"))) -> 2 | AA53: 0.5 | AB53: 2 | AC53: 1 | AE53: 20 | AF53: SR3S12Z27 | AG53: =IF(LEFT(RTD("cqg.rtd", ,"ContractData", AF53,"LastTradeorSettle",,"T"),3)="768",NA(),IF(RTD("cqg.rtd", ,"ContractData", AF53,"LastTradeorSettle",,"T")="",NA(),RTD("cqg.rtd", ,"ContractData", AF53,"LastTradeorSettle",,"T"))) -> 13 | AI53: =IF(LEFT(RTD("cqg.rtd",,"StudyData",AF53, "Bar",, "Close","D","-1","All",,,,"T"),3)="777",NA(),IF(RTD("cqg.rtd",,"StudyData",AF53, "Bar",, "Close","D","-1","All",,,,"T")="",NA(),RTD("cqg.rtd",,"StudyData",AF53, "Bar",, "Close","D","-1","All",,,,"T"))) -> 11 | AJ53: =IF(LEFT(RTD("cqg.rtd",,"StudyData",AF53, "Bar",, "Close","D","-5","All",,,,"T"),3)="777",NA(),IF(RTD("cqg.rtd",,"StudyData",AF53, "Bar",, "Close","D","-5","All",,,,"T")="",NA(),RTD("cqg.rtd",,"StudyData",AF53, "Bar",, "Close","D","-5","All",,,,"T"))) -> 8 | AK53: =IF(LEFT(RTD("cqg.rtd",,"StudyData",AF53, "Bar",, "Close","D","-20","All",,,,"T"),3)="777",NA(),IF(RTD("cqg.rtd",,"StudyData",AF53, "Bar",, "Close","D","-20","All",,,,"T")="",NA(),RTD("cqg.rtd",,"StudyData",AF53, "Bar",, "Close","D","-20","All",,,,"T"))) -> 8.5 | AL53: 2 | AM53: 5 | AN53: 4.5
R54: 20 | T54: 21 | U54: SR3S3H28 | V54: =IF(LEFT(RTD("cqg.rtd", ,"ContractData", U54,"LastTradeorSettle",,"T"),3)="768",NA(),IF(RTD("cqg.rtd", ,"ContractData", U54,"LastTradeorSettle",,"T")="",NA(),RTD("cqg.rtd", ,"ContractData", U54,"LastTradeorSettle",,"T"))) -> 3 | X54: =IF(LEFT(RTD("cqg.rtd",,"StudyData",U54, "Bar",, "Close","D","-1","All",,,,"T"),3)="777",NA(),IF(RTD("cqg.rtd",,"StudyData",U54, "Bar",, "Close","D","-1","All",,,,"T")="",NA(),RTD("cqg.rtd",,"StudyData",U54, "Bar",, "Close","D","-1","All",,,,"T"))) -> 3 | Y54: =IF(LEFT(RTD("cqg.rtd",,"StudyData",U54, "Bar",, "Close","D","-5","All",,,,"T"),3)="777",NA(),IF(RTD("cqg.rtd",,"StudyData",U54, "Bar",, "Close","D","-5","All",,,,"T")="",NA(),RTD("cqg.rtd",,"StudyData",U54, "Bar",, "Close","D","-5","All",,,,"T"))) -> 2 | Z54: =IF(LEFT(RTD("cqg.rtd",,"StudyData",U54, "Bar",, "Close","D","-20","All",,,,"T"),3)="777",NA(),IF(RTD("cqg.rtd",,"StudyData",U54, "Bar",, "Close","D","-20","All",,,,"T")="",NA(),RTD("cqg.rtd",,"StudyData",U54, "Bar",, "Close","D","-20","All",,,,"T"))) -> 1.5 | AA54: 0 | AB54: 1 | AC54: 1.5 | AE54: 21 | AF54: SR3S12H28 | AG54: =IF(LEFT(RTD("cqg.rtd", ,"ContractData", AF54,"LastTradeorSettle",,"T"),3)="768",NA(),IF(RTD("cqg.rtd", ,"ContractData", AF54,"LastTradeorSettle",,"T")="",NA(),RTD("cqg.rtd", ,"ContractData", AF54,"LastTradeorSettle",,"T"))) ->  | AI54: =IF(LEFT(RTD("cqg.rtd",,"StudyData",AF54, "Bar",, "Close","D","-1","All",,,,"T"),3)="777",NA(),IF(RTD("cqg.rtd",,"StudyData",AF54, "Bar",, "Close","D","-1","All",,,,"T")="",NA(),RTD("cqg.rtd",,"StudyData",AF54, "Bar",, "Close","D","-1","All",,,,"T"))) -> 10 | AJ54: =IF(LEFT(RTD("cqg.rtd",,"StudyData",AF54, "Bar",, "Close","D","-5","All",,,,"T"),3)="777",NA(),IF(RTD("cqg.rtd",,"StudyData",AF54, "Bar",, "Close","D","-5","All",,,,"T")="",NA(),RTD("cqg.rtd",,"StudyData",AF54, "Bar",, "Close","D","-5","All",,,,"T"))) -> 8 | AK54: =IF(LEFT(RTD("cqg.rtd",,"StudyData",AF54, "Bar",, "Close","D","-20","All",,,,"T"),3)="777",NA(),IF(RTD("cqg.rtd",,"StudyData",AF54, "Bar",, "Close","D","-20","All",,,,"T")="",NA(),RTD("cqg.rtd",,"StudyData",AF54, "Bar",, "Close","D","-20","All",,,,"T"))) -> 9
R55: 21
R56: 22
R57: 23
R58: 24
R59: 25
